Workbook

Sheet SumTestResults (hidden)
A1: Geotechnical Soil Survey
A3: Tarrant County, Texas
A7: TABLE 1: SUMMARY OF LABORATORY TEST RESULTS
D9: Atterberg Limits | G9: Percent | H9: Percent | I9: Soluble
A10: Borehole | B10: Sample | C10: Moisture | D10: Liquid | E10: Plastic | F10: Plasticity | G10: Passing, | H10: Passing, | I10: Sulfate
A11: Number | B11: Depth, | C11: Content, | D11: Limit | E11: Limit | F11: Index | G11: Sieve | H11: Sieve | I11: Content,
B12: ft | C12: % | D12: (LL) | E12: (PL) | F12: (PI) | G12: No. 40 | H12: No. 200 | I12: ppm

Sheet PVR BH
A1: TxDOT Manuals > | D1: Tex-124-E
B2: TEXAS DEPARTMENT OF TRANSPORTATION | S2: 60
S3: 1
B4: POTENTIAL VERTICAL RISE (PVR) | S4: tx124.xlsm::45454.659502
B5: TEX-124-E
Q7: ="File Version: " & TEXT(MID(sn,SEARCH("::",sn,1)+2,20),"mm/dd/yy hh:mm:ss") -> File Version: 06/11/24 15:49:41
D8: SAMPLE ID: | J8: SAMPLED DATE:
D9: TEST NUMBER: | J9: LETTING DATE:
D10: SAMPLE STATUS: | J10: CONTROLLING CSJ:
D11: COUNTY: | J11: SPEC YEAR:
D12: SAMPLED BY: | J12: SPEC ITEM:
D13: SAMPLE LOCATION: | J13: SPECIAL PROVISION:
D14: MATERIAL CODE: | J14: GRADE:
D15: MATERIAL NAME:
D16: PRODUCER:
D17: AREA ENGINEER: | J17: PROJECT MANAGER:
D19: COURSE\LIFT: | H19: STATION: | L19: DIST. FROM CL:
B21: Boring Number: | F21: Ground Elevation (z): | J21: Longitude (x): | N21: Latitude (y):
B23: PVR Data BH
B24: Depth to Bottom of Layer [ft] | C24: Average Load [psi] | D24: Liquid Limit (LL) | E24: Dry 0.2LL+9 | F24: Wet 0.47LL+2 | G24: Percent Moisture | H24: Dry Avg Wet | I24: Percent -No.40 | J24: Plasticity Index (PI) | K24: Percent Volume Swell | L24: Percent Free Swell | M24: PVR [in] Top of Layer | N24: PVR [in] Bottom of Layer | O24: Differential Swell [in] | P24: Modified -No.40 Factor | Q24: Modified Density Factor | R24: PVR in Layers [in] | S24: Total PVR [in]
A25: 0 | B25: 0 | C25: 0 | D25: - | E25: - | F25: - | G25: - | H25: - | I25: - | J25: - | K25: - | L25: - | M25: - | N25: - | O25: - | P25: - | Q25: - | R25: - | S25: =SUM(R26:$R$35) -> 0
A26: 1 | C26: =(B26+B25)/2 -> 0 | E26: =(0.2*D26)+9 -> 9 | F26: =(0.47*D26)+2 -> 2 | H26: =IF(G26<Calculations!E15,"Dry",IF(G26>Calculations!F15,"Wet","Avg")) -> Dry | K26: =IF(J26="",0,IF(J26>60,(0.429*J26)-11,IF(H26="Wet",Calculations!H15,IF(H26="Avg",Calculations!I15,IF(H26="Dry",Calculations!J15))))) -> 0 | L26: =IF(K26=0,0,K26*1.07+2.6) -> 0 | M26: 0 | N26: =IF(ISERROR(IF(Calculations!AI14=0,M26,Calculations!AI14)),0,IF(Calculations!AI14=0,M26,Calculations!AI14)) -> 0 | O26: =IF(N26="","",N26-M26) -> 0 | P26: =I26*0.01 -> 0 | Q26: 1 | R26: =IF(O26="",0,O26*P26*Q26) -> 0 | S26: =SUM(R27:$R$35) -> 0
A27: 2 | C27: 0 | E27: 9 | F27: 2 | H27: =IF(G27<Calculations!E16,"Dry",IF(G27>Calculations!F16,"Wet","Avg")) -> Dry | K27: =IF(J27="",0,IF(J27>60,(0.429*J27)-11,IF(H27="Wet",Calculations!H16,IF(H27="Avg",Calculations!I16,IF(H27="Dry",Calculations!J16))))) -> 0 | L27: 0 | M27: =IF(ISERROR(IF(Calculations!W15=0,N26,Calculations!W15)),0,IF(Calculations!W15=0,N26,Calculations!W15)) -> 0 | N27: =IF(ISERROR(IF(Calculations!AI15=0,M27,Calculations!AI15)),0,IF(Calculations!AI15=0,M27,Calculations!AI15)) -> 0 | O27: 0 | P27: 0 | Q27: 1 | R27: 0 | S27: =SUM(R28:$R$35) -> 0
A28: 3 | C28: 0 | E28: 9 | F28: 2 | H28: =IF(G28<Calculations!E17,"Dry",IF(G28>Calculations!F17,"Wet","Avg")) -> Dry | K28: =IF(J28="",0,IF(J28>60,(0.429*J28)-11,IF(H28="Wet",Calculations!H17,IF(H28="Avg",Calculations!I17,IF(H28="Dry",Calculations!J17))))) -> 0 | L28: 0 | M28: =IF(ISERROR(IF(Calculations!W16=0,N27,Calculations!W16)),0,IF(Calculations!W16=0,N27,Calculations!W16)) -> 0 | N28: =IF(ISERROR(IF(Calculations!AI16=0,M28,Calculations!AI16)),0,IF(Calculations!AI16=0,M28,Calculations!AI16)) -> 0 | O28: 0 | P28: 0 | Q28: 1 | R28: 0 | S28: =SUM(R29:$R$35) -> 0
A29: 4 | C29: 0 | E29: 9 | F29: 2 | H29: =IF(G29<Calculations!E18,"Dry",IF(G29>Calculations!F18,"Wet","Avg")) -> Dry | K29: =IF(J29="",0,IF(J29>60,(0.429*J29)-11,IF(H29="Wet",Calculations!H18,IF(H29="Avg",Calculations!I18,IF(H29="Dry",Calculations!J18))))) -> 0 | L29: 0 | M29: =IF(ISERROR(IF(Calculations!W17=0,N28,Calculations!W17)),0,IF(Calculations!W17=0,N28,Calculations!W17)) -> 0 | N29: =IF(ISERROR(IF(Calculations!AI17=0,M29,Calculations!AI17)),0,IF(Calculations!AI17=0,M29,Calculations!AI17)) -> 0 | O29: 0 | P29: 0 | Q29: 1 | R29: 0 | S29: =SUM(R30:$R$35) -> 0
A30: 5 | C30: 0 | E30: 9 | F30: 2 | H30: =IF(G30<Calculations!E19,"Dry",IF(G30>Calculations!F19,"Wet","Avg")) -> Dry | K30: =IF(J30="",0,IF(J30>60,(0.429*J30)-11,IF(H30="Wet",Calculations!H19,IF(H30="Avg",Calculations!I19,IF(H30="Dry",Calculations!J19))))) -> 0 | L30: 0 | M30: =IF(ISERROR(IF(Calculations!W18=0,N29,Calculations!W18)),0,IF(Calculations!W18=0,N29,Calculations!W18)) -> 0 | N30: =IF(ISERROR(IF(Calculations!AI18=0,M30,Calculations!AI18)),0,IF(Calculations!AI18=0,M30,Calculations!AI18)) -> 0 | O30: 0 | P30: 0 | Q30: 1 | R30: 0 | S30: =SUM(R31:$R$35) -> 0
A31: 6 | C31: 0 | E31: 9 | F31: 2 | H31: =IF(G31<Calculations!E20,"Dry",IF(G31>Calculations!F20,"Wet","Avg")) -> Dry | K31: =IF(J31="",0,IF(J31>60,(0.429*J31)-11,IF(H31="Wet",Calculations!H20,IF(H31="Avg",Calculations!I20,IF(H31="Dry",Calculations!J20))))) -> 0 | L31: 0 | M31: =IF(ISERROR(IF(Calculations!W19=0,N30,Calculations!W19)),0,IF(Calculations!W19=0,N30,Calculations!W19)) -> 0 | N31: =IF(ISERROR(IF(Calculations!AI19=0,M31,Calculations!AI19)),0,IF(Calculations!AI19=0,M31,Calculations!AI19)) -> 0 | O31: 0 | P31: 0 | Q31: 1 | R31: 0 | S31: =SUM(R32:$R$35) -> 0
A32: 7 | C32: 0 | E32: 9 | F32: 2 | H32: =IF(G32<Calculations!E21,"Dry",IF(G32>Calculations!F21,"Wet","Avg")) -> Dry | K32: =IF(J32="",0,IF(J32>60,(0.429*J32)-11,IF(H32="Wet",Calculations!H21,IF(H32="Avg",Calculations!I21,IF(H32="Dry",Calculations!J21))))) -> 0 | L32: 0 | M32: =IF(ISERROR(IF(Calculations!W20=0,N31,Calculations!W20)),0,IF(Calculations!W20=0,N31,Calculations!W20)) -> 0 | N32: =IF(ISERROR(IF(Calculations!AI20=0,M32,Calculations!AI20)),0,IF(Calculations!AI20=0,M32,Calculations!AI20)) -> 0 | O32: 0 | P32: 0 | Q32: 1 | R32: 0 | S32: =SUM(R33:$R$35) -> 0
A33: 8 | C33: 0 | E33: 9 | F33: 2 | H33: =IF(G33<Calculations!E22,"Dry",IF(G33>Calculations!F22,"Wet","Avg")) -> Dry | K33: =IF(J33="",0,IF(J33>60,(0.429*J33)-11,IF(H33="Wet",Calculations!H22,IF(H33="Avg",Calculations!I22,IF(H33="Dry",Calculations!J22))))) -> 0 | L33: 0 | M33: =IF(ISERROR(IF(Calculations!W21=0,N32,Calculations!W21)),0,IF(Calculations!W21=0,N32,Calculations!W21)) -> 0 | N33: =IF(ISERROR(IF(Calculations!AI21=0,M33,Calculations!AI21)),0,IF(Calculations!AI21=0,M33,Calculations!AI21)) -> 0 | O33: 0 | P33: 0 | Q33: 1 | R33: 0 | S33: =SUM(R34:$R$35) -> 0
A34: 9 | C34: 0 | E34: 9 | F34: 2 | H34: =IF(G34<Calculations!E23,"Dry",IF(G34>Calculations!F23,"Wet","Avg")) -> Dry | K34: =IF(J34="",0,IF(J34>60,(0.429*J34)-11,IF(H34="Wet",Calculations!H23,IF(H34="Avg",Calculations!I23,IF(H34="Dry",Calculations!J23))))) -> 0 | L34: 0 | M34: =IF(ISERROR(IF(Calculations!W22=0,N33,Calculations!W22)),0,IF(Calculations!W22=0,N33,Calculations!W22)) -> 0 | N34: =IF(ISERROR(IF(Calculations!AI22=0,M34,Calculations!AI22)),0,IF(Calculations!AI22=0,M34,Calculations!AI22)) -> 0 | O34: 0 | P34: 0 | Q34: 1 | R34: 0 | S34: =SUM(R35:$R$35) -> 0
A35: 10 | C35: 0 | E35: 9 | F35: 2 | H35: =IF(G35<Calculations!E24,"Dry",IF(G35>Calculations!F24,"Wet","Avg")) -> Dry | K35: =IF(J35="",0,IF(J35>60,(0.429*J35)-11,IF(H35="Wet",Calculations!H24,IF(H35="Avg",Calculations!I24,IF(H35="Dry",Calculations!J24))))) -> 0 | L35: 0 | M35: =IF(ISERROR(IF(Calculations!W23=0,N34,Calculations!W23)),0,IF(Calculations!W23=0,N34,Calculations!W23)) -> 0 | N35: =IF(ISERROR(IF(Calculations!AI23=0,M35,Calculations!AI23)),0,IF(Calculations!AI23=0,M35,Calculations!AI23)) -> 0 | O35: 0 | P35: 0 | Q35: 1 | R35: 0 | S35: 0
B37: Fields are chart inputs | F37: Fields are final answers per layer | J37: Final Total PVR for the borehole
B38: Note: PVR calculations are based on future pavement grade being the same as present grade. Bold numbers are interpolated and extrapolated values.
B62: Remarks: | C62: =NOW() -> 2024-06-11T15:49:41.680
B65: Test Method: | C65: Tested By: | H65: Tested Date:
B66: TX124
B67: Test Stamp Code: | E67: Omit Test: | F67: Completed Date: | H67: Reviewed By:
B69: Locked By: | C69: TxDOT: | D69: District: | E69: Area:
B71: Authorized By: | F71: Authorized Date:

Sheet RX (hidden)
A1: 206
A2: Fld_nbr | B2: Value | C2: Desc_1 | D2: Desc_2 | E2: Desc_3 | F2: Desc_4 | G2: Desc_5 | H2: Desc_6 | I2: Desc_7
A3: 1 | B3: =IF('PVR BH'!$B$63="","",'PVR BH'!$B$63) ->  | C3: ='PVR BH'!$B$62 -> Remarks:
A4: 2 | B4: =IF('PVR BH'!$E$19="","",'PVR BH'!$E$19) ->  | C4: =IF('PVR BH'!$D$19="","",'PVR BH'!$D$19) -> COURSE\LIFT:
A5: 3 | B5: =IF('PVR BH'!$C$66="","",'PVR BH'!$C$66) ->  | C5: Tested By | D5: =IF('PVR BH'!$B$66="","",'PVR BH'!$B$66) -> TX124
A6: 4 | B6: =IF('PVR BH'!$H$66="","",'PVR BH'!$H$66) ->  | C6: Tested Date | D6: =IF('PVR BH'!$B$66="","",'PVR BH'!$B$66) -> TX124
A7: 5 | B7: =IF('PVR BH'!$D$21="","",'PVR BH'!$D$21) ->  | C7: =IF( 'PVR BH'!$B$5="","", 'PVR BH'!$B$5) -> TEX-124-E | D7: =IF('PVR BH'!$B$21="","",'PVR BH'!$B$21) -> Boring Number:
A8: 6 | B8: =IF('PVR BH'!$H$21="","",'PVR BH'!$H$21) ->  | C8: =IF( 'PVR BH'!$B$5="","", 'PVR BH'!$B$5) -> TEX-124-E | D8: =IF('PVR BH'!$F$21="","",'PVR BH'!$F$21) -> Ground Elevation (z):
A9: 7 | B9: =IF('PVR BH'!$L$21="","",'PVR BH'!$L$21) ->  | C9: =IF( 'PVR BH'!$B$5="","", 'PVR BH'!$B$5) -> TEX-124-E | D9: =IF('PVR BH'!$J$21="","",'PVR BH'!$J$21) -> Longitude (x):
A10: 8 | B10: =IF('PVR BH'!$P$21="","",'PVR BH'!$P$21) ->  | C10: =IF( 'PVR BH'!$B$5="","", 'PVR BH'!$B$5) -> TEX-124-E | D10: =IF('PVR BH'!$N$21="","",'PVR BH'!$N$21) -> Latitude (y):
A11: 9 | B11: =IF('PVR BH'!$B$25="","",'PVR BH'!$B$25) -> 0 | C11: =IF( 'PVR BH'!$B$5="","", 'PVR BH'!$B$5) -> TEX-124-E | D11: =IF('PVR BH'!$B$24="","",'PVR BH'!$B$24) -> Depth to Bottom of Layer [ft] | E11: =IF('PVR BH'!$A$25="","",'PVR BH'!$A$25) -> 0
A12: 10 | B12: =IF('PVR BH'!$B$26="","",'PVR BH'!$B$26) ->  | C12: =IF( 'PVR BH'!$B$5="","", 'PVR BH'!$B$5) -> TEX-124-E | D12: =IF('PVR BH'!$B$24="","",'PVR BH'!$B$24) -> Depth to Bottom of Layer [ft] | E12: =IF('PVR BH'!$A$26="","",'PVR BH'!$A$26) -> 1
A13: 11 | B13: =IF('PVR BH'!$B$27="","",'PVR BH'!$B$27) ->  | C13: =IF( 'PVR BH'!$B$5="","", 'PVR BH'!$B$5) -> TEX-124-E | D13: =IF('PVR BH'!$B$24="","",'PVR BH'!$B$24) -> Depth to Bottom of Layer [ft] | E13: =IF('PVR BH'!$A$27="","",'PVR BH'!$A$27) -> 2
A14: 12 | B14: =IF('PVR BH'!$B$28="","",'PVR BH'!$B$28) ->  | C14: =IF( 'PVR BH'!$B$5="","", 'PVR BH'!$B$5) -> TEX-124-E | D14: =IF('PVR BH'!$B$24="","",'PVR BH'!$B$24) -> Depth to Bottom of Layer [ft] | E14: =IF('PVR BH'!$A$28="","",'PVR BH'!$A$28) -> 3
A15: 13 | B15: =IF('PVR BH'!$B$29="","",'PVR BH'!$B$29) ->  | C15: =IF( 'PVR BH'!$B$5="","", 'PVR BH'!$B$5) -> TEX-124-E | D15: =IF('PVR BH'!$B$24="","",'PVR BH'!$B$24) -> Depth to Bottom of Layer [ft] | E15: =IF('PVR BH'!$A$29="","",'PVR BH'!$A$29) -> 4
A16: 14 | B16: =IF('PVR BH'!$B$30="","",'PVR BH'!$B$30) ->  | C16: =IF( 'PVR BH'!$B$5="","", 'PVR BH'!$B$5) -> TEX-124-E | D16: =IF('PVR BH'!$B$24="","",'PVR BH'!$B$24) -> Depth to Bottom of Layer [ft] | E16: =IF('PVR BH'!$A$30="","",'PVR BH'!$A$30) -> 5
A17: 15 | B17: =IF('PVR BH'!$B$31="","",'PVR BH'!$B$31) ->  | C17: =IF( 'PVR BH'!$B$5="","", 'PVR BH'!$B$5) -> TEX-124-E | D17: =IF('PVR BH'!$B$24="","",'PVR BH'!$B$24) -> Depth to Bottom of Layer [ft] | E17: =IF('PVR BH'!$A$31="","",'PVR BH'!$A$31) -> 6
A18: 16 | B18: =IF('PVR BH'!$B$32="","",'PVR BH'!$B$32) ->  | C18: =IF( 'PVR BH'!$B$5="","", 'PVR BH'!$B$5) -> TEX-124-E | D18: =IF('PVR BH'!$B$24="","",'PVR BH'!$B$24) -> Depth to Bottom of Layer [ft] | E18: =IF('PVR BH'!$A$32="","",'PVR BH'!$A$32) -> 7
A19: 17 | B19: =IF('PVR BH'!$B$33="","",'PVR BH'!$B$33) ->  | C19: =IF( 'PVR BH'!$B$5="","", 'PVR BH'!$B$5) -> TEX-124-E | D19: =IF('PVR BH'!$B$24="","",'PVR BH'!$B$24) -> Depth to Bottom of Layer [ft] | E19: =IF('PVR BH'!$A$33="","",'PVR BH'!$A$33) -> 8
A20: 18 | B20: =IF('PVR BH'!$B$34="","",'PVR BH'!$B$34) ->  | C20: =IF( 'PVR BH'!$B$5="","", 'PVR BH'!$B$5) -> TEX-124-E | D20: =IF('PVR BH'!$B$24="","",'PVR BH'!$B$24) -> Depth to Bottom of Layer [ft] | E20: =IF('PVR BH'!$A$34="","",'PVR BH'!$A$34) -> 9
A21: 19 | B21: =IF('PVR BH'!$B$35="","",'PVR BH'!$B$35) ->  | C21: =IF( 'PVR BH'!$B$5="","", 'PVR BH'!$B$5) -> TEX-124-E | D21: =IF('PVR BH'!$B$24="","",'PVR BH'!$B$24) -> Depth to Bottom of Layer [ft] | E21: =IF('PVR BH'!$A$35="","",'PVR BH'!$A$35) -> 10
A22: 20 | B22: =IF('PVR BH'!$C$25="","",'PVR BH'!$C$25) -> 0 | C22: =IF( 'PVR BH'!$B$5="","", 'PVR BH'!$B$5) -> TEX-124-E | D22: =IF('PVR BH'!$C$24="","",'PVR BH'!$C$24) -> Average Load [psi] | E22: =IF('PVR BH'!$A$25="","",'PVR BH'!$A$25) -> 0
A23: 21 | B23: =IF('PVR BH'!$C$26="","",'PVR BH'!$C$26) -> 0 | C23: =IF( 'PVR BH'!$B$5="","", 'PVR BH'!$B$5) -> TEX-124-E | D23: =IF('PVR BH'!$C$24="","",'PVR BH'!$C$24) -> Average Load [psi] | E23: =IF('PVR BH'!$A$26="","",'PVR BH'!$A$26) -> 1
A24: 22 | B24: =IF('PVR BH'!$C$27="","",'PVR BH'!$C$27) -> 0 | C24: =IF( 'PVR BH'!$B$5="","", 'PVR BH'!$B$5) -> TEX-124-E | D24: =IF('PVR BH'!$C$24="","",'PVR BH'!$C$24) -> Average Load [psi] | E24: =IF('PVR BH'!$A$27="","",'PVR BH'!$A$27) -> 2
A25: 23 | B25: =IF('PVR BH'!$C$28="","",'PVR BH'!$C$28) -> 0 | C25: =IF( 'PVR BH'!$B$5="","", 'PVR BH'!$B$5) -> TEX-124-E | D25: =IF('PVR BH'!$C$24="","",'PVR BH'!$C$24) -> Average Load [psi] | E25: =IF('PVR BH'!$A$28="","",'PVR BH'!$A$28) -> 3
A26: 24 | B26: =IF('PVR BH'!$C$29="","",'PVR BH'!$C$29) -> 0 | C26: =IF( 'PVR BH'!$B$5="","", 'PVR BH'!$B$5) -> TEX-124-E | D26: =IF('PVR BH'!$C$24="","",'PVR BH'!$C$24) -> Average Load [psi] | E26: =IF('PVR BH'!$A$29="","",'PVR BH'!$A$29) -> 4
A27: 25 | B27: =IF('PVR BH'!$C$30="","",'PVR BH'!$C$30) -> 0 | C27: =IF( 'PVR BH'!$B$5="","", 'PVR BH'!$B$5) -> TEX-124-E | D27: =IF('PVR BH'!$C$24="","",'PVR BH'!$C$24) -> Average Load [psi] | E27: =IF('PVR BH'!$A$30="","",'PVR BH'!$A$30) -> 5
A28: 26 | B28: =IF('PVR BH'!$C$31="","",'PVR BH'!$C$31) -> 0 | C28: =IF( 'PVR BH'!$B$5="","", 'PVR BH'!$B$5) -> TEX-124-E | D28: =IF('PVR BH'!$C$24="","",'PVR BH'!$C$24) -> Average Load [psi] | E28: =IF('PVR BH'!$A$31="","",'PVR BH'!$A$31) -> 6
A29: 27 | B29: =IF('PVR BH'!$C$32="","",'PVR BH'!$C$32) -> 0 | C29: =IF( 'PVR BH'!$B$5="","", 'PVR BH'!$B$5) -> TEX-124-E | D29: =IF('PVR BH'!$C$24="","",'PVR BH'!$C$24) -> Average Load [psi] | E29: =IF('PVR BH'!$A$32="","",'PVR BH'!$A$32) -> 7
A30: 28 | B30: =IF('PVR BH'!$C$33="","",'PVR BH'!$C$33) -> 0 | C30: =IF( 'PVR BH'!$B$5="","", 'PVR BH'!$B$5) -> TEX-124-E | D30: =IF('PVR BH'!$C$24="","",'PVR BH'!$C$24) -> Average Load [psi] | E30: =IF('PVR BH'!$A$33="","",'PVR BH'!$A$33) -> 8
A31: 29 | B31: =IF('PVR BH'!$C$34="","",'PVR BH'!$C$34) -> 0 | C31: =IF( 'PVR BH'!$B$5="","", 'PVR BH'!$B$5) -> TEX-124-E | D31: =IF('PVR BH'!$C$24="","",'PVR BH'!$C$24) -> Average Load [psi] | E31: =IF('PVR BH'!$A$34="","",'PVR BH'!$A$34) -> 9
A32: 30 | B32: =IF('PVR BH'!$C$35="","",'PVR BH'!$C$35) -> 0 | C32: =IF( 'PVR BH'!$B$5="","", 'PVR BH'!$B$5) -> TEX-124-E | D32: =IF('PVR BH'!$C$24="","",'PVR BH'!$C$24) -> Average Load [psi] | E32: =IF('PVR BH'!$A$35="","",'PVR BH'!$A$35) -> 10
A33: 31 | B33: =IF('PVR BH'!$D$25="","",'PVR BH'!$D$25) -> - | C33: =IF( 'PVR BH'!$B$5="","", 'PVR BH'!$B$5) -> TEX-124-E | D33: =IF('PVR BH'!$D$24="","",'PVR BH'!$D$24) -> Liquid Limit (LL) | E33: =IF('PVR BH'!$A$25="","",'PVR BH'!$A$25) -> 0
A34: 32 | B34: =IF('PVR BH'!$D$26="","",'PVR BH'!$D$26) ->  | C34: =IF( 'PVR BH'!$B$5="","", 'PVR BH'!$B$5) -> TEX-124-E | D34: =IF('PVR BH'!$D$24="","",'PVR BH'!$D$24) -> Liquid Limit (LL) | E34: =IF('PVR BH'!$A$26="","",'PVR BH'!$A$26) -> 1
A35: 33 | B35: =IF('PVR BH'!$D$27="","",'PVR BH'!$D$27) ->  | C35: =IF( 'PVR BH'!$B$5="","", 'PVR BH'!$B$5) -> TEX-124-E | D35: =IF('PVR BH'!$D$24="","",'PVR BH'!$D$24) -> Liquid Limit (LL) | E35: =IF('PVR BH'!$A$27="","",'PVR BH'!$A$27) -> 2
A36: 34 | B36: =IF('PVR BH'!$D$28="","",'PVR BH'!$D$28) ->  | C36: =IF( 'PVR BH'!$B$5="","", 'PVR BH'!$B$5) -> TEX-124-E | D36: =IF('PVR BH'!$D$24="","",'PVR BH'!$D$24) -> Liquid Limit (LL) | E36: =IF('PVR BH'!$A$28="","",'PVR BH'!$A$28) -> 3
A37: 35 | B37: =IF('PVR BH'!$D$29="","",'PVR BH'!$D$29) ->  | C37: =IF( 'PVR BH'!$B$5="","", 'PVR BH'!$B$5) -> TEX-124-E | D37: =IF('PVR BH'!$D$24="","",'PVR BH'!$D$24) -> Liquid Limit (LL) | E37: =IF('PVR BH'!$A$29="","",'PVR BH'!$A$29) -> 4
A38: 36 | B38: =IF('PVR BH'!$D$30="","",'PVR BH'!$D$30) ->  | C38: =IF( 'PVR BH'!$B$5="","", 'PVR BH'!$B$5) -> TEX-124-E | D38: =IF('PVR BH'!$D$24="","",'PVR BH'!$D$24) -> Liquid Limit (LL) | E38: =IF('PVR BH'!$A$30="","",'PVR BH'!$A$30) -> 5
A39: 37 | B39: =IF('PVR BH'!$D$31="","",'PVR BH'!$D$31) ->  | C39: =IF( 'PVR BH'!$B$5="","", 'PVR BH'!$B$5) -> TEX-124-E | D39: =IF('PVR BH'!$D$24="","",'PVR BH'!$D$24) -> Liquid Limit (LL) | E39: =IF('PVR BH'!$A$31="","",'PVR BH'!$A$31) -> 6
A40: 38 | B40: =IF('PVR BH'!$D$32="","",'PVR BH'!$D$32) ->  | C40: =IF( 'PVR BH'!$B$5="","", 'PVR BH'!$B$5) -> TEX-124-E | D40: =IF('PVR BH'!$D$24="","",'PVR BH'!$D$24) -> Liquid Limit (LL) | E40: =IF('PVR BH'!$A$32="","",'PVR BH'!$A$32) -> 7
A41: 39 | B41: =IF('PVR BH'!$D$33="","",'PVR BH'!$D$33) ->  | C41: =IF( 'PVR BH'!$B$5="","", 'PVR BH'!$B$5) -> TEX-124-E | D41: =IF('PVR BH'!$D$24="","",'PVR BH'!$D$24) -> Liquid Limit (LL) | E41: =IF('PVR BH'!$A$33="","",'PVR BH'!$A$33) -> 8
A42: 40 | B42: =IF('PVR BH'!$D$34="","",'PVR BH'!$D$34) ->  | C42: =IF( 'PVR BH'!$B$5="","", 'PVR BH'!$B$5) -> TEX-124-E | D42: =IF('PVR BH'!$D$24="","",'PVR BH'!$D$24) -> Liquid Limit (LL) | E42: =IF('PVR BH'!$A$34="","",'PVR BH'!$A$34) -> 9
A43: 41 | B43: =IF('PVR BH'!$D$35="","",'PVR BH'!$D$35) ->  | C43: =IF( 'PVR BH'!$B$5="","", 'PVR BH'!$B$5) -> TEX-124-E | D43: =IF('PVR BH'!$D$24="","",'PVR BH'!$D$24) -> Liquid Limit (LL) | E43: =IF('PVR BH'!$A$35="","",'PVR BH'!$A$35) -> 10
A44: 42 | B44: =IF('PVR BH'!$E$25="","",'PVR BH'!$E$25) -> - | C44: =IF( 'PVR BH'!$B$5="","", 'PVR BH'!$B$5) -> TEX-124-E | D44: =IF('PVR BH'!$E$24="","",'PVR BH'!$E$24) -> Dry 0.2LL+9 | E44: =IF('PVR BH'!$A$25="","",'PVR BH'!$A$25) -> 0
A45: 43 | B45: =IF('PVR BH'!$E$26="","",'PVR BH'!$E$26) -> 9 | C45: =IF( 'PVR BH'!$B$5="","", 'PVR BH'!$B$5) -> TEX-124-E | D45: =IF('PVR BH'!$E$24="","",'PVR BH'!$E$24) -> Dry 0.2LL+9 | E45: =IF('PVR BH'!$A$26="","",'PVR BH'!$A$26) -> 1
A46: 44 | B46: =IF('PVR BH'!$E$27="","",'PVR BH'!$E$27) -> 9 | C46: =IF( 'PVR BH'!$B$5="","", 'PVR BH'!$B$5) -> TEX-124-E | D46: =IF('PVR BH'!$E$24="","",'PVR BH'!$E$24) -> Dry 0.2LL+9 | E46: =IF('PVR BH'!$A$27="","",'PVR BH'!$A$27) -> 2
A47: 45 | B47: =IF('PVR BH'!$E$28="","",'PVR BH'!$E$28) -> 9 | C47: =IF( 'PVR BH'!$B$5="","", 'PVR BH'!$B$5) -> TEX-124-E | D47: =IF('PVR BH'!$E$24="","",'PVR BH'!$E$24) -> Dry 0.2LL+9 | E47: =IF('PVR BH'!$A$28="","",'PVR BH'!$A$28) -> 3
A48: 46 | B48: =IF('PVR BH'!$E$29="","",'PVR BH'!$E$29) -> 9 | C48: =IF( 'PVR BH'!$B$5="","", 'PVR BH'!$B$5) -> TEX-124-E | D48: =IF('PVR BH'!$E$24="","",'PVR BH'!$E$24) -> Dry 0.2LL+9 | E48: =IF('PVR BH'!$A$29="","",'PVR BH'!$A$29) -> 4
A49: 47 | B49: =IF('PVR BH'!$E$30="","",'PVR BH'!$E$30) -> 9 | C49: =IF( 'PVR BH'!$B$5="","", 'PVR BH'!$B$5) -> TEX-124-E | D49: =IF('PVR BH'!$E$24="","",'PVR BH'!$E$24) -> Dry 0.2LL+9 | E49: =IF('PVR BH'!$A$30="","",'PVR BH'!$A$30) -> 5
A50: 48 | B50: =IF('PVR BH'!$E$31="","",'PVR BH'!$E$31) -> 9 | C50: =IF( 'PVR BH'!$B$5="","", 'PVR BH'!$B$5) -> TEX-124-E | D50: =IF('PVR BH'!$E$24="","",'PVR BH'!$E$24) -> Dry 0.2LL+9 | E50: =IF('PVR BH'!$A$31="","",'PVR BH'!$A$31) -> 6
A51: 49 | B51: =IF('PVR BH'!$E$32="","",'PVR BH'!$E$32) -> 9 | C51: =IF( 'PVR BH'!$B$5="","", 'PVR BH'!$B$5) -> TEX-124-E | D51: =IF('PVR BH'!$E$24="","",'PVR BH'!$E$24) -> Dry 0.2LL+9 | E51: =IF('PVR BH'!$A$32="","",'PVR BH'!$A$32) -> 7
A52: 50 | B52: =IF('PVR BH'!$E$33="","",'PVR BH'!$E$33) -> 9 | C52: =IF( 'PVR BH'!$B$5="","", 'PVR BH'!$B$5) -> TEX-124-E | D52: =IF('PVR BH'!$E$24="","",'PVR BH'!$E$24) -> Dry 0.2LL+9 | E52: =IF('PVR BH'!$A$33="","",'PVR BH'!$A$33) -> 8
A53: 51 | B53: =IF('PVR BH'!$E$34="","",'PVR BH'!$E$34) -> 9 | C53: =IF( 'PVR BH'!$B$5="","", 'PVR BH'!$B$5) -> TEX-124-E | D53: =IF('PVR BH'!$E$24="","",'PVR BH'!$E$24) -> Dry 0.2LL+9 | E53: =IF('PVR BH'!$A$34="","",'PVR BH'!$A$34) -> 9
A54: 52 | B54: =IF('PVR BH'!$E$35="","",'PVR BH'!$E$35) -> 9 | C54: =IF( 'PVR BH'!$B$5="","", 'PVR BH'!$B$5) -> TEX-124-E | D54: =IF('PVR BH'!$E$24="","",'PVR BH'!$E$24) -> Dry 0.2LL+9 | E54: =IF('PVR BH'!$A$35="","",'PVR BH'!$A$35) -> 10
A55: 53 | B55: =IF('PVR BH'!$F$25="","",'PVR BH'!$F$25) -> - | C55: =IF( 'PVR BH'!$B$5="","", 'PVR BH'!$B$5) -> TEX-124-E | D55: =IF('PVR BH'!$F$24="","",'PVR BH'!$F$24) -> Wet 0.47LL+2 | E55: =IF('PVR BH'!$A$25="","",'PVR BH'!$A$25) -> 0
A56: 54 | B56: =IF('PVR BH'!$F$26="","",'PVR BH'!$F$26) -> 2 | C56: =IF( 'PVR BH'!$B$5="","", 'PVR BH'!$B$5) -> TEX-124-E | D56: =IF('PVR BH'!$F$24="","",'PVR BH'!$F$24) -> Wet 0.47LL+2 | E56: =IF('PVR BH'!$A$26="","",'PVR BH'!$A$26) -> 1
A57: 55 | B57: =IF('PVR BH'!$F$27="","",'PVR BH'!$F$27) -> 2 | C57: =IF( 'PVR BH'!$B$5="","", 'PVR BH'!$B$5) -> TEX-124-E | D57: =IF('PVR BH'!$F$24="","",'PVR BH'!$F$24) -> Wet 0.47LL+2 | E57: =IF('PVR BH'!$A$27="","",'PVR BH'!$A$27) -> 2
A58: 56 | B58: =IF('PVR BH'!$F$28="","",'PVR BH'!$F$28) -> 2 | C58: =IF( 'PVR BH'!$B$5="","", 'PVR BH'!$B$5) -> TEX-124-E | D58: =IF('PVR BH'!$F$24="","",'PVR BH'!$F$24) -> Wet 0.47LL+2 | E58: =IF('PVR BH'!$A$28="","",'PVR BH'!$A$28) -> 3
A59: 57 | B59: =IF('PVR BH'!$F$29="","",'PVR BH'!$F$29) -> 2 | C59: =IF( 'PVR BH'!$B$5="","", 'PVR BH'!$B$5) -> TEX-124-E | D59: =IF('PVR BH'!$F$24="","",'PVR BH'!$F$24) -> Wet 0.47LL+2 | E59: =IF('PVR BH'!$A$29="","",'PVR BH'!$A$29) -> 4
A60: 58 | B60: =IF('PVR BH'!$F$30="","",'PVR BH'!$F$30) -> 2 | C60: =IF( 'PVR BH'!$B$5="","", 'PVR BH'!$B$5) -> TEX-124-E | D60: =IF('PVR BH'!$F$24="","",'PVR BH'!$F$24) -> Wet 0.47LL+2 | E60: =IF('PVR BH'!$A$30="","",'PVR BH'!$A$30) -> 5
A61: 59 | B61: =IF('PVR BH'!$F$31="","",'PVR BH'!$F$31) -> 2 | C61: =IF( 'PVR BH'!$B$5="","", 'PVR BH'!$B$5) -> TEX-124-E | D61: =IF('PVR BH'!$F$24="","",'PVR BH'!$F$24) -> Wet 0.47LL+2 | E61: =IF('PVR BH'!$A$31="","",'PVR BH'!$A$31) -> 6
A62: 60 | B62: =IF('PVR BH'!$F$32="","",'PVR BH'!$F$32) -> 2 | C62: =IF( 'PVR BH'!$B$5="","", 'PVR BH'!$B$5) -> TEX-124-E | D62: =IF('PVR BH'!$F$24="","",'PVR BH'!$F$24) -> Wet 0.47LL+2 | E62: =IF('PVR BH'!$A$32="","",'PVR BH'!$A$32) -> 7
A63: 61 | B63: =IF('PVR BH'!$F$33="","",'PVR BH'!$F$33) -> 2 | C63: =IF( 'PVR BH'!$B$5="","", 'PVR BH'!$B$5) -> TEX-124-E | D63: =IF('PVR BH'!$F$24="","",'PVR BH'!$F$24) -> Wet 0.47LL+2 | E63: =IF('PVR BH'!$A$33="","",'PVR BH'!$A$33) -> 8
A64: 62 | B64: =IF('PVR BH'!$F$34="","",'PVR BH'!$F$34) -> 2 | C64: =IF( 'PVR BH'!$B$5="","", 'PVR BH'!$B$5) -> TEX-124-E | D64: =IF('PVR BH'!$F$24="","",'PVR BH'!$F$24) -> Wet 0.47LL+2 | E64: =IF('PVR BH'!$A$34="","",'PVR BH'!$A$34) -> 9
A65: 63 | B65: =IF('PVR BH'!$F$35="","",'PVR BH'!$F$35) -> 2 | C65: =IF( 'PVR BH'!$B$5="","", 'PVR BH'!$B$5) -> TEX-124-E | D65: =IF('PVR BH'!$F$24="","",'PVR BH'!$F$24) -> Wet 0.47LL+2 | E65: =IF('PVR BH'!$A$35="","",'PVR BH'!$A$35) -> 10
A66: 64 | B66: =IF('PVR BH'!$G$25="","",'PVR BH'!$G$25) -> - | C66: =IF( 'PVR BH'!$B$5="","", 'PVR BH'!$B$5) -> TEX-124-E | D66: =IF('PVR BH'!$G$24="","",'PVR BH'!$G$24) -> Percent Moisture | E66: =IF('PVR BH'!$A$25="","",'PVR BH'!$A$25) -> 0
A67: 65 | B67: =IF('PVR BH'!$G$26="","",'PVR BH'!$G$26) ->  | C67: =IF( 'PVR BH'!$B$5="","", 'PVR BH'!$B$5) -> TEX-124-E | D67: =IF('PVR BH'!$G$24="","",'PVR BH'!$G$24) -> Percent Moisture | E67: =IF('PVR BH'!$A$26="","",'PVR BH'!$A$26) -> 1
A68: 66 | B68: =IF('PVR BH'!$G$27="","",'PVR BH'!$G$27) ->  | C68: =IF( 'PVR BH'!$B$5="","", 'PVR BH'!$B$5) -> TEX-124-E | D68: =IF('PVR BH'!$G$24="","",'PVR BH'!$G$24) -> Percent Moisture | E68: =IF('PVR BH'!$A$27="","",'PVR BH'!$A$27) -> 2
A69: 67 | B69: =IF('PVR BH'!$G$28="","",'PVR BH'!$G$28) ->  | C69: =IF( 'PVR BH'!$B$5="","", 'PVR BH'!$B$5) -> TEX-124-E | D69: =IF('PVR BH'!$G$24="","",'PVR BH'!$G$24) -> Percent Moisture | E69: =IF('PVR BH'!$A$28="","",'PVR BH'!$A$28) -> 3
A70: 68 | B70: =IF('PVR BH'!$G$29="","",'PVR BH'!$G$29) ->  | C70: =IF( 'PVR BH'!$B$5="","", 'PVR BH'!$B$5) -> TEX-124-E | D70: =IF('PVR BH'!$G$24="","",'PVR BH'!$G$24) -> Percent Moisture | E70: =IF('PVR BH'!$A$29="","",'PVR BH'!$A$29) -> 4
A71: 69 | B71: =IF('PVR BH'!$G$30="","",'PVR BH'!$G$30) ->  | C71: =IF( 'PVR BH'!$B$5="","", 'PVR BH'!$B$5) -> TEX-124-E | D71: =IF('PVR BH'!$G$24="","",'PVR BH'!$G$24) -> Percent Moisture | E71: =IF('PVR BH'!$A$30="","",'PVR BH'!$A$30) -> 5
A72: 70 | B72: =IF('PVR BH'!$G$31="","",'PVR BH'!$G$31) ->  | C72: =IF( 'PVR BH'!$B$5="","", 'PVR BH'!$B$5) -> TEX-124-E | D72: =IF('PVR BH'!$G$24="","",'PVR BH'!$G$24) -> Percent Moisture | E72: =IF('PVR BH'!$A$31="","",'PVR BH'!$A$31) -> 6
A73: 71 | B73: =IF('PVR BH'!$G$32="","",'PVR BH'!$G$32) ->  | C73: =IF( 'PVR BH'!$B$5="","", 'PVR BH'!$B$5) -> TEX-124-E | D73: =IF('PVR BH'!$G$24="","",'PVR BH'!$G$24) -> Percent Moisture | E73: =IF('PVR BH'!$A$32="","",'PVR BH'!$A$32) -> 7
A74: 72 | B74: =IF('PVR BH'!$G$33="","",'PVR BH'!$G$33) ->  | C74: =IF( 'PVR BH'!$B$5="","", 'PVR BH'!$B$5) -> TEX-124-E | D74: =IF('PVR BH'!$G$24="","",'PVR BH'!$G$24) -> Percent Moisture | E74: =IF('PVR BH'!$A$33="","",'PVR BH'!$A$33) -> 8
A75: 73 | B75: =IF('PVR BH'!$G$34="","",'PVR BH'!$G$34) ->  | C75: =IF( 'PVR BH'!$B$5="","", 'PVR BH'!$B$5) -> TEX-124-E | D75: =IF('PVR BH'!$G$24="","",'PVR BH'!$G$24) -> Percent Moisture | E75: =IF('PVR BH'!$A$34="","",'PVR BH'!$A$34) -> 9
A76: 74 | B76: =IF('PVR BH'!$G$35="","",'PVR BH'!$G$35) ->  | C76: =IF( 'PVR BH'!$B$5="","", 'PVR BH'!$B$5) -> TEX-124-E | D76: =IF('PVR BH'!$G$24="","",'PVR BH'!$G$24) -> Percent Moisture | E76: =IF('PVR BH'!$A$35="","",'PVR BH'!$A$35) -> 10
A77: 75 | B77: =IF('PVR BH'!$H$25="","",'PVR BH'!$H$25) -> - | C77: =IF( 'PVR BH'!$B$5="","", 'PVR BH'!$B$5) -> TEX-124-E | D77: =IF('PVR BH'!$H$24="","",'PVR BH'!$H$24) -> Dry Avg Wet | E77: =IF('PVR BH'!$A$25="","",'PVR BH'!$A$25) -> 0
A78: 76 | B78: =IF('PVR BH'!$H$26="","",'PVR BH'!$H$26) -> Dry | C78: =IF( 'PVR BH'!$B$5="","", 'PVR BH'!$B$5) -> TEX-124-E | D78: =IF('PVR BH'!$H$24="","",'PVR BH'!$H$24) -> Dry Avg Wet | E78: =IF('PVR BH'!$A$26="","",'PVR BH'!$A$26) -> 1
A79: 77 | B79: =IF('PVR BH'!$H$27="","",'PVR BH'!$H$27) -> Dry | C79: =IF( 'PVR BH'!$B$5="","", 'PVR BH'!$B$5) -> TEX-124-E | D79: =IF('PVR BH'!$H$24="","",'PVR BH'!$H$24) -> Dry Avg Wet | E79: =IF('PVR BH'!$A$27="","",'PVR BH'!$A$27) -> 2
A80: 78 | B80: =IF('PVR BH'!$H$28="","",'PVR BH'!$H$28) -> Dry | C80: =IF( 'PVR BH'!$B$5="","", 'PVR BH'!$B$5) -> TEX-124-E | D80: =IF('PVR BH'!$H$24="","",'PVR BH'!$H$24) -> Dry Avg Wet | E80: =IF('PVR BH'!$A$28="","",'PVR BH'!$A$28) -> 3
A81: 79 | B81: =IF('PVR BH'!$H$29="","",'PVR BH'!$H$29) -> Dry | C81: =IF( 'PVR BH'!$B$5="","", 'PVR BH'!$B$5) -> TEX-124-E | D81: =IF('PVR BH'!$H$24="","",'PVR BH'!$H$24) -> Dry Avg Wet | E81: =IF('PVR BH'!$A$29="","",'PVR BH'!$A$29) -> 4
A82: 80 | B82: =IF('PVR BH'!$H$30="","",'PVR BH'!$H$30) -> Dry | C82: =IF( 'PVR BH'!$B$5="","", 'PVR BH'!$B$5) -> TEX-124-E | D82: =IF('PVR BH'!$H$24="","",'PVR BH'!$H$24) -> Dry Avg Wet | E82: =IF('PVR BH'!$A$30="","",'PVR BH'!$A$30) -> 5
A83: 81 | B83: =IF('PVR BH'!$H$31="","",'PVR BH'!$H$31) -> Dry | C83: =IF( 'PVR BH'!$B$5="","", 'PVR BH'!$B$5) -> TEX-124-E | D83: =IF('PVR BH'!$H$24="","",'PVR BH'!$H$24) -> Dry Avg Wet | E83: =IF('PVR BH'!$A$31="","",'PVR BH'!$A$31) -> 6
A84: 82 | B84: =IF('PVR BH'!$H$32="","",'PVR BH'!$H$32) -> Dry | C84: =IF( 'PVR BH'!$B$5="","", 'PVR BH'!$B$5) -> TEX-124-E | D84: =IF('PVR BH'!$H$24="","",'PVR BH'!$H$24) -> Dry Avg Wet | E84: =IF('PVR BH'!$A$32="","",'PVR BH'!$A$32) -> 7
A85: 83 | B85: =IF('PVR BH'!$H$33="","",'PVR BH'!$H$33) -> Dry | C85: =IF( 'PVR BH'!$B$5="","", 'PVR BH'!$B$5) -> TEX-124-E | D85: =IF('PVR BH'!$H$24="","",'PVR BH'!$H$24) -> Dry Avg Wet | E85: =IF('PVR BH'!$A$33="","",'PVR BH'!$A$33) -> 8
A86: 84 | B86: =IF('PVR BH'!$H$34="","",'PVR BH'!$H$34) -> Dry | C86: =IF( 'PVR BH'!$B$5="","", 'PVR BH'!$B$5) -> TEX-124-E | D86: =IF('PVR BH'!$H$24="","",'PVR BH'!$H$24) -> Dry Avg Wet | E86: =IF('PVR BH'!$A$34="","",'PVR BH'!$A$34) -> 9
A87: 85 | B87: =IF('PVR BH'!$H$35="","",'PVR BH'!$H$35) -> Dry | C87: =IF( 'PVR BH'!$B$5="","", 'PVR BH'!$B$5) -> TEX-124-E | D87: =IF('PVR BH'!$H$24="","",'PVR BH'!$H$24) -> Dry Avg Wet | E87: =IF('PVR BH'!$A$35="","",'PVR BH'!$A$35) -> 10
A88: 86 | B88: =IF('PVR BH'!$I$25="","",'PVR BH'!$I$25) -> - | C88: =IF( 'PVR BH'!$B$5="","", 'PVR BH'!$B$5) -> TEX-124-E | D88: =IF('PVR BH'!$I$24="","",'PVR BH'!$I$24) -> Percent -No.40 | E88: =IF('PVR BH'!$A$25="","",'PVR BH'!$A$25) -> 0
A89: 87 | B89: =IF('PVR BH'!$I$26="","",'PVR BH'!$I$26) ->  | C89: =IF( 'PVR BH'!$B$5="","", 'PVR BH'!$B$5) -> TEX-124-E | D89: =IF('PVR BH'!$I$24="","",'PVR BH'!$I$24) -> Percent -No.40 | E89: =IF('PVR BH'!$A$26="","",'PVR BH'!$A$26) -> 1
A90: 88 | B90: =IF('PVR BH'!$I$27="","",'PVR BH'!$I$27) ->  | C90: =IF( 'PVR BH'!$B$5="","", 'PVR BH'!$B$5) -> TEX-124-E | D90: =IF('PVR BH'!$I$24="","",'PVR BH'!$I$24) -> Percent -No.40 | E90: =IF('PVR BH'!$A$27="","",'PVR BH'!$A$27) -> 2
A91: 89 | B91: =IF('PVR BH'!$I$28="","",'PVR BH'!$I$28) ->  | C91: =IF( 'PVR BH'!$B$5="","", 'PVR BH'!$B$5) -> TEX-124-E | D91: =IF('PVR BH'!$I$24="","",'PVR BH'!$I$24) -> Percent -No.40 | E91: =IF('PVR BH'!$A$28="","",'PVR BH'!$A$28) -> 3
A92: 90 | B92: =IF('PVR BH'!$I$29="","",'PVR BH'!$I$29) ->  | C92: =IF( 'PVR BH'!$B$5="","", 'PVR BH'!$B$5) -> TEX-124-E | D92: =IF('PVR BH'!$I$24="","",'PVR BH'!$I$24) -> Percent -No.40 | E92: =IF('PVR BH'!$A$29="","",'PVR BH'!$A$29) -> 4
A93: 91 | B93: =IF('PVR BH'!$I$30="","",'PVR BH'!$I$30) ->  | C93: =IF( 'PVR BH'!$B$5="","", 'PVR BH'!$B$5) -> TEX-124-E | D93: =IF('PVR BH'!$I$24="","",'PVR BH'!$I$24) -> Percent -No.40 | E93: =IF('PVR BH'!$A$30="","",'PVR BH'!$A$30) -> 5
A94: 92 | B94: =IF('PVR BH'!$I$31="","",'PVR BH'!$I$31) ->  | C94: =IF( 'PVR BH'!$B$5="","", 'PVR BH'!$B$5) -> TEX-124-E | D94: =IF('PVR BH'!$I$24="","",'PVR BH'!$I$24) -> Percent -No.40 | E94: =IF('PVR BH'!$A$31="","",'PVR BH'!$A$31) -> 6
A95: 93 | B95: =IF('PVR BH'!$I$32="","",'PVR BH'!$I$32) ->  | C95: =IF( 'PVR BH'!$B$5="","", 'PVR BH'!$B$5) -> TEX-124-E | D95: =IF('PVR BH'!$I$24="","",'PVR BH'!$I$24) -> Percent -No.40 | E95: =IF('PVR BH'!$A$32="","",'PVR BH'!$A$32) -> 7
A96: 94 | B96: =IF('PVR BH'!$I$33="","",'PVR BH'!$I$33) ->  | C96: =IF( 'PVR BH'!$B$5="","", 'PVR BH'!$B$5) -> TEX-124-E | D96: =IF('PVR BH'!$I$24="","",'PVR BH'!$I$24) -> Percent -No.40 | E96: =IF('PVR BH'!$A$33="","",'PVR BH'!$A$33) -> 8
A97: 95 | B97: =IF('PVR BH'!$I$34="","",'PVR BH'!$I$34) ->  | C97: =IF( 'PVR BH'!$B$5="","", 'PVR BH'!$B$5) -> TEX-124-E | D97: =IF('PVR BH'!$I$24="","",'PVR BH'!$I$24) -> Percent -No.40 | E97: =IF('PVR BH'!$A$34="","",'PVR BH'!$A$34) -> 9
A98: 96 | B98: =IF('PVR BH'!$I$35="","",'PVR BH'!$I$35) ->  | C98: =IF( 'PVR BH'!$B$5="","", 'PVR BH'!$B$5) -> TEX-124-E | D98: =IF('PVR BH'!$I$24="","",'PVR BH'!$I$24) -> Percent -No.40 | E98: =IF('PVR BH'!$A$35="","",'PVR BH'!$A$35) -> 10
A99: 97 | B99: =IF('PVR BH'!$J$25="","",'PVR BH'!$J$25) -> - | C99: =IF( 'PVR BH'!$B$5="","", 'PVR BH'!$B$5) -> TEX-124-E | D99: =IF('PVR BH'!$J$24="","",'PVR BH'!$J$24) -> Plasticity Index (PI) | E99: =IF('PVR BH'!$A$25="","",'PVR BH'!$A$25) -> 0
A100: 98 | B100: =IF('PVR BH'!$J$26="","",'PVR BH'!$J$26) ->  | C100: =IF( 'PVR BH'!$B$5="","", 'PVR BH'!$B$5) -> TEX-124-E | D100: =IF('PVR BH'!$J$24="","",'PVR BH'!$J$24) -> Plasticity Index (PI) | E100: =IF('PVR BH'!$A$26="","",'PVR BH'!$A$26) -> 1
A101: 99 | B101: =IF('PVR BH'!$J$27="","",'PVR BH'!$J$27) ->  | C101: =IF( 'PVR BH'!$B$5="","", 'PVR BH'!$B$5) -> TEX-124-E | D101: =IF('PVR BH'!$J$24="","",'PVR BH'!$J$24) -> Plasticity Index (PI) | E101: =IF('PVR BH'!$A$27="","",'PVR BH'!$A$27) -> 2
A102: 100 | B102: =IF('PVR BH'!$J$28="","",'PVR BH'!$J$28) ->  | C102: =IF( 'PVR BH'!$B$5="","", 'PVR BH'!$B$5) -> TEX-124-E | D102: =IF('PVR BH'!$J$24="","",'PVR BH'!$J$24) -> Plasticity Index (PI) | E102: =IF('PVR BH'!$A$28="","",'PVR BH'!$A$28) -> 3
A103: 101 | B103: =IF('PVR BH'!$J$29="","",'PVR BH'!$J$29) ->  | C103: =IF( 'PVR BH'!$B$5="","", 'PVR BH'!$B$5) -> TEX-124-E | D103: =IF('PVR BH'!$J$24="","",'PVR BH'!$J$24) -> Plasticity Index (PI) | E103: =IF('PVR BH'!$A$29="","",'PVR BH'!$A$29) -> 4
A104: 102 | B104: =IF('PVR BH'!$J$30="","",'PVR BH'!$J$30) ->  | C104: =IF( 'PVR BH'!$B$5="","", 'PVR BH'!$B$5) -> TEX-124-E | D104: =IF('PVR BH'!$J$24="","",'PVR BH'!$J$24) -> Plasticity Index (PI) | E104: =IF('PVR BH'!$A$30="","",'PVR BH'!$A$30) -> 5
A105: 103 | B105: =IF('PVR BH'!$J$31="","",'PVR BH'!$J$31) ->  | C105: =IF( 'PVR BH'!$B$5="","", 'PVR BH'!$B$5) -> TEX-124-E | D105: =IF('PVR BH'!$J$24="","",'PVR BH'!$J$24) -> Plasticity Index (PI) | E105: =IF('PVR BH'!$A$31="","",'PVR BH'!$A$31) -> 6
A106: 104 | B106: =IF('PVR BH'!$J$32="","",'PVR BH'!$J$32) ->  | C106: =IF( 'PVR BH'!$B$5="","", 'PVR BH'!$B$5) -> TEX-124-E | D106: =IF('PVR BH'!$J$24="","",'PVR BH'!$J$24) -> Plasticity Index (PI) | E106: =IF('PVR BH'!$A$32="","",'PVR BH'!$A$32) -> 7
A107: 105 | B107: =IF('PVR BH'!$J$33="","",'PVR BH'!$J$33) ->  | C107: =IF( 'PVR BH'!$B$5="","", 'PVR BH'!$B$5) -> TEX-124-E | D107: =IF('PVR BH'!$J$24="","",'PVR BH'!$J$24) -> Plasticity Index (PI) | E107: =IF('PVR BH'!$A$33="","",'PVR BH'!$A$33) -> 8
A108: 106 | B108: =IF('PVR BH'!$J$34="","",'PVR BH'!$J$34) ->  | C108: =IF( 'PVR BH'!$B$5="","", 'PVR BH'!$B$5) -> TEX-124-E | D108: =IF('PVR BH'!$J$24="","",'PVR BH'!$J$24) -> Plasticity Index (PI) | E108: =IF('PVR BH'!$A$34="","",'PVR BH'!$A$34) -> 9
A109: 107 | B109: =IF('PVR BH'!$J$35="","",'PVR BH'!$J$35) ->  | C109: =IF( 'PVR BH'!$B$5="","", 'PVR BH'!$B$5) -> TEX-124-E | D109: =IF('PVR BH'!$J$24="","",'PVR BH'!$J$24) -> Plasticity Index (PI) | E109: =IF('PVR BH'!$A$35="","",'PVR BH'!$A$35) -> 10
A110: 108 | B110: =IF('PVR BH'!$K$25="","",'PVR BH'!$K$25) -> - | C110: =IF( 'PVR BH'!$B$5="","", 'PVR BH'!$B$5) -> TEX-124-E | D110: =IF('PVR BH'!$K$24="","",'PVR BH'!$K$24) -> Percent Volume Swell | E110: =IF('PVR BH'!$A$25="","",'PVR BH'!$A$25) -> 0
A111: 109 | B111: =IF('PVR BH'!$K$26="","",'PVR BH'!$K$26) -> 0 | C111: =IF( 'PVR BH'!$B$5="","", 'PVR BH'!$B$5) -> TEX-124-E | D111: =IF('PVR BH'!$K$24="","",'PVR BH'!$K$24) -> Percent Volume Swell | E111: =IF('PVR BH'!$A$26="","",'PVR BH'!$A$26) -> 1
A112: 110 | B112: =IF('PVR BH'!$K$27="","",'PVR BH'!$K$27) -> 0 | C112: =IF( 'PVR BH'!$B$5="","", 'PVR BH'!$B$5) -> TEX-124-E | D112: =IF('PVR BH'!$K$24="","",'PVR BH'!$K$24) -> Percent Volume Swell | E112: =IF('PVR BH'!$A$27="","",'PVR BH'!$A$27) -> 2
A113: 111 | B113: =IF('PVR BH'!$K$28="","",'PVR BH'!$K$28) -> 0 | C113: =IF( 'PVR BH'!$B$5="","", 'PVR BH'!$B$5) -> TEX-124-E | D113: =IF('PVR BH'!$K$24="","",'PVR BH'!$K$24) -> Percent Volume Swell | E113: =IF('PVR BH'!$A$28="","",'PVR BH'!$A$28) -> 3
A114: 112 | B114: =IF('PVR BH'!$K$29="","",'PVR BH'!$K$29) -> 0 | C114: =IF( 'PVR BH'!$B$5="","", 'PVR BH'!$B$5) -> TEX-124-E | D114: =IF('PVR BH'!$K$24="","",'PVR BH'!$K$24) -> Percent Volume Swell | E114: =IF('PVR BH'!$A$29="","",'PVR BH'!$A$29) -> 4
A115: 113 | B115: =IF('PVR BH'!$K$30="","",'PVR BH'!$K$30) -> 0 | C115: =IF( 'PVR BH'!$B$5="","", 'PVR BH'!$B$5) -> TEX-124-E | D115: =IF('PVR BH'!$K$24="","",'PVR BH'!$K$24) -> Percent Volume Swell | E115: =IF('PVR BH'!$A$30="","",'PVR BH'!$A$30) -> 5
A116: 114 | B116: =IF('PVR BH'!$K$31="","",'PVR BH'!$K$31) -> 0 | C116: =IF( 'PVR BH'!$B$5="","", 'PVR BH'!$B$5) -> TEX-124-E | D116: =IF('PVR BH'!$K$24="","",'PVR BH'!$K$24) -> Percent Volume Swell | E116: =IF('PVR BH'!$A$31="","",'PVR BH'!$A$31) -> 6
A117: 115 | B117: =IF('PVR BH'!$K$32="","",'PVR BH'!$K$32) -> 0 | C117: =IF( 'PVR BH'!$B$5="","", 'PVR BH'!$B$5) -> TEX-124-E | D117: =IF('PVR BH'!$K$24="","",'PVR BH'!$K$24) -> Percent Volume Swell | E117: =IF('PVR BH'!$A$32="","",'PVR BH'!$A$32) -> 7
A118: 116 | B118: =IF('PVR BH'!$K$33="","",'PVR BH'!$K$33) -> 0 | C118: =IF( 'PVR BH'!$B$5="","", 'PVR BH'!$B$5) -> TEX-124-E | D118: =IF('PVR BH'!$K$24="","",'PVR BH'!$K$24) -> Percent Volume Swell | E118: =IF('PVR BH'!$A$33="","",'PVR BH'!$A$33) -> 8
A119: 117 | B119: =IF('PVR BH'!$K$34="","",'PVR BH'!$K$34) -> 0 | C119: =IF( 'PVR BH'!$B$5="","", 'PVR BH'!$B$5) -> TEX-124-E | D119: =IF('PVR BH'!$K$24="","",'PVR BH'!$K$24) -> Percent Volume Swell | E119: =IF('PVR BH'!$A$34="","",'PVR BH'!$A$34) -> 9
A120: 118 | B120: =IF('PVR BH'!$K$35="","",'PVR BH'!$K$35) -> 0 | C120: =IF( 'PVR BH'!$B$5="","", 'PVR BH'!$B$5) -> TEX-124-E | D120: =IF('PVR BH'!$K$24="","",'PVR BH'!$K$24) -> Percent Volume Swell | E120: =IF('PVR BH'!$A$35="","",'PVR BH'!$A$35) -> 10
A121: 119 | B121: =IF('PVR BH'!$L$25="","",'PVR BH'!$L$25) -> - | C121: =IF( 'PVR BH'!$B$5="","", 'PVR BH'!$B$5) -> TEX-124-E | D121: =IF('PVR BH'!$L$24="","",'PVR BH'!$L$24) -> Percent Free Swell | E121: =IF('PVR BH'!$A$25="","",'PVR BH'!$A$25) -> 0
A122: 120 | B122: =IF('PVR BH'!$L$26="","",'PVR BH'!$L$26) -> 0 | C122: =IF( 'PVR BH'!$B$5="","", 'PVR BH'!$B$5) -> TEX-124-E | D122: =IF('PVR BH'!$L$24="","",'PVR BH'!$L$24) -> Percent Free Swell | E122: =IF('PVR BH'!$A$26="","",'PVR BH'!$A$26) -> 1
A123: 121 | B123: =IF('PVR BH'!$L$27="","",'PVR BH'!$L$27) -> 0 | C123: =IF( 'PVR BH'!$B$5="","", 'PVR BH'!$B$5) -> TEX-124-E | D123: =IF('PVR BH'!$L$24="","",'PVR BH'!$L$24) -> Percent Free Swell | E123: =IF('PVR BH'!$A$27="","",'PVR BH'!$A$27) -> 2
A124: 122 | B124: =IF('PVR BH'!$L$28="","",'PVR BH'!$L$28) -> 0 | C124: =IF( 'PVR BH'!$B$5="","", 'PVR BH'!$B$5) -> TEX-124-E | D124: =IF('PVR BH'!$L$24="","",'PVR BH'!$L$24) -> Percent Free Swell | E124: =IF('PVR BH'!$A$28="","",'PVR BH'!$A$28) -> 3
A125: 123 | B125: =IF('PVR BH'!$L$29="","",'PVR BH'!$L$29) -> 0 | C125: =IF( 'PVR BH'!$B$5="","", 'PVR BH'!$B$5) -> TEX-124-E | D125: =IF('PVR BH'!$L$24="","",'PVR BH'!$L$24) -> Percent Free Swell | E125: =IF('PVR BH'!$A$29="","",'PVR BH'!$A$29) -> 4
A126: 124 | B126: =IF('PVR BH'!$L$30="","",'PVR BH'!$L$30) -> 0 | C126: =IF( 'PVR BH'!$B$5="","", 'PVR BH'!$B$5) -> TEX-124-E | D126: =IF('PVR BH'!$L$24="","",'PVR BH'!$L$24) -> Percent Free Swell | E126: =IF('PVR BH'!$A$30="","",'PVR BH'!$A$30) -> 5
A127: 125 | B127: =IF('PVR BH'!$L$31="","",'PVR BH'!$L$31) -> 0 | C127: =IF( 'PVR BH'!$B$5="","", 'PVR BH'!$B$5) -> TEX-124-E | D127: =IF('PVR BH'!$L$24="","",'PVR BH'!$L$24) -> Percent Free Swell | E127: =IF('PVR BH'!$A$31="","",'PVR BH'!$A$31) -> 6
A128: 126 | B128: =IF('PVR BH'!$L$32="","",'PVR BH'!$L$32) -> 0 | C128: =IF( 'PVR BH'!$B$5="","", 'PVR BH'!$B$5) -> TEX-124-E | D128: =IF('PVR BH'!$L$24="","",'PVR BH'!$L$24) -> Percent Free Swell | E128: =IF('PVR BH'!$A$32="","",'PVR BH'!$A$32) -> 7
A129: 127 | B129: =IF('PVR BH'!$L$33="","",'PVR BH'!$L$33) -> 0 | C129: =IF( 'PVR BH'!$B$5="","", 'PVR BH'!$B$5) -> TEX-124-E | D129: =IF('PVR BH'!$L$24="","",'PVR BH'!$L$24) -> Percent Free Swell | E129: =IF('PVR BH'!$A$33="","",'PVR BH'!$A$33) -> 8
A130: 128 | B130: =IF('PVR BH'!$L$34="","",'PVR BH'!$L$34) -> 0 | C130: =IF( 'PVR BH'!$B$5="","", 'PVR BH'!$B$5) -> TEX-124-E | D130: =IF('PVR BH'!$L$24="","",'PVR BH'!$L$24) -> Percent Free Swell | E130: =IF('PVR BH'!$A$34="","",'PVR BH'!$A$34) -> 9
A131: 129 | B131: =IF('PVR BH'!$L$35="","",'PVR BH'!$L$35) -> 0 | C131: =IF( 'PVR BH'!$B$5="","", 'PVR BH'!$B$5) -> TEX-124-E | D131: =IF('PVR BH'!$L$24="","",'PVR BH'!$L$24) -> Percent Free Swell | E131: =IF('PVR BH'!$A$35="","",'PVR BH'!$A$35) -> 10
A132: 130 | B132: =IF('PVR BH'!$M$25="","",'PVR BH'!$M$25) -> - | C132: =IF( 'PVR BH'!$B$5="","", 'PVR BH'!$B$5) -> TEX-124-E | D132: =IF('PVR BH'!$M$24="","",'PVR BH'!$M$24) -> PVR [in] Top of Layer | E132: =IF('PVR BH'!$A$25="","",'PVR BH'!$A$25) -> 0
A133: 131 | B133: =IF('PVR BH'!$M$26="","",'PVR BH'!$M$26) -> 0 | C133: =IF( 'PVR BH'!$B$5="","", 'PVR BH'!$B$5) -> TEX-124-E | D133: =IF('PVR BH'!$M$24="","",'PVR BH'!$M$24) -> PVR [in] Top of Layer | E133: =IF('PVR BH'!$A$26="","",'PVR BH'!$A$26) -> 1
A134: 132 | B134: =IF('PVR BH'!$M$27="","",'PVR BH'!$M$27) -> 0 | C134: =IF( 'PVR BH'!$B$5="","", 'PVR BH'!$B$5) -> TEX-124-E | D134: =IF('PVR BH'!$M$24="","",'PVR BH'!$M$24) -> PVR [in] Top of Layer | E134: =IF('PVR BH'!$A$27="","",'PVR BH'!$A$27) -> 2
A135: 133 | B135: =IF('PVR BH'!$M$28="","",'PVR BH'!$M$28) -> 0 | C135: =IF( 'PVR BH'!$B$5="","", 'PVR BH'!$B$5) -> TEX-124-E | D135: =IF('PVR BH'!$M$24="","",'PVR BH'!$M$24) -> PVR [in] Top of Layer | E135: =IF('PVR BH'!$A$28="","",'PVR BH'!$A$28) -> 3
A136: 134 | B136: =IF('PVR BH'!$M$29="","",'PVR BH'!$M$29) -> 0 | C136: =IF( 'PVR BH'!$B$5="","", 'PVR BH'!$B$5) -> TEX-124-E | D136: =IF('PVR BH'!$M$24="","",'PVR BH'!$M$24) -> PVR [in] Top of Layer | E136: =IF('PVR BH'!$A$29="","",'PVR BH'!$A$29) -> 4
A137: 135 | B137: =IF('PVR BH'!$M$30="","",'PVR BH'!$M$30) -> 0 | C137: =IF( 'PVR BH'!$B$5="","", 'PVR BH'!$B$5) -> TEX-124-E | D137: =IF('PVR BH'!$M$24="","",'PVR BH'!$M$24) -> PVR [in] Top of Layer | E137: =IF('PVR BH'!$A$30="","",'PVR BH'!$A$30) -> 5
A138: 136 | B138: =IF('PVR BH'!$M$31="","",'PVR BH'!$M$31) -> 0 | C138: =IF( 'PVR BH'!$B$5="","", 'PVR BH'!$B$5) -> TEX-124-E | D138: =IF('PVR BH'!$M$24="","",'PVR BH'!$M$24) -> PVR [in] Top of Layer | E138: =IF('PVR BH'!$A$31="","",'PVR BH'!$A$31) -> 6
A139: 137 | B139: =IF('PVR BH'!$M$32="","",'PVR BH'!$M$32) -> 0 | C139: =IF( 'PVR BH'!$B$5="","", 'PVR BH'!$B$5) -> TEX-124-E | D139: =IF('PVR BH'!$M$24="","",'PVR BH'!$M$24) -> PVR [in] Top of Layer | E139: =IF('PVR BH'!$A$32="","",'PVR BH'!$A$32) -> 7
A140: 138 | B140: =IF('PVR BH'!$M$33="","",'PVR BH'!$M$33) -> 0 | C140: =IF( 'PVR BH'!$B$5="","", 'PVR BH'!$B$5) -> TEX-124-E | D140: =IF('PVR BH'!$M$24="","",'PVR BH'!$M$24) -> PVR [in] Top of Layer | E140: =IF('PVR BH'!$A$33="","",'PVR BH'!$A$33) -> 8
A141: 139 | B141: =IF('PVR BH'!$M$34="","",'PVR BH'!$M$34) -> 0 | C141: =IF( 'PVR BH'!$B$5="","", 'PVR BH'!$B$5) -> TEX-124-E | D141: =IF('PVR BH'!$M$24="","",'PVR BH'!$M$24) -> PVR [in] Top of Layer | E141: =IF('PVR BH'!$A$34="","",'PVR BH'!$A$34) -> 9
A142: 140 | B142: =IF('PVR BH'!$M$35="","",'PVR BH'!$M$35) -> 0 | C142: =IF( 'PVR BH'!$B$5="","", 'PVR BH'!$B$5) -> TEX-124-E | D142: =IF('PVR BH'!$M$24="","",'PVR BH'!$M$24) -> PVR [in] Top of Layer | E142: =IF('PVR BH'!$A$35="","",'PVR BH'!$A$35) -> 10
A143: 141 | B143: =IF('PVR BH'!$N$25="","",'PVR BH'!$N$25) -> - | C143: =IF( 'PVR BH'!$B$5="","", 'PVR BH'!$B$5) -> TEX-124-E | D143: =IF('PVR BH'!$N$24="","",'PVR BH'!$N$24) -> PVR [in] Bottom of Layer | E143: =IF('PVR BH'!$A$25="","",'PVR BH'!$A$25) -> 0
A144: 142 | B144: =IF('PVR BH'!$N$26="","",'PVR BH'!$N$26) -> 0 | C144: =IF( 'PVR BH'!$B$5="","", 'PVR BH'!$B$5) -> TEX-124-E | D144: =IF('PVR BH'!$N$24="","",'PVR BH'!$N$24) -> PVR [in] Bottom of Layer | E144: =IF('PVR BH'!$A$26="","",'PVR BH'!$A$26) -> 1
A145: 143 | B145: =IF('PVR BH'!$N$27="","",'PVR BH'!$N$27) -> 0 | C145: =IF( 'PVR BH'!$B$5="","", 'PVR BH'!$B$5) -> TEX-124-E | D145: =IF('PVR BH'!$N$24="","",'PVR BH'!$N$24) -> PVR [in] Bottom of Layer | E145: =IF('PVR BH'!$A$27="","",'PVR BH'!$A$27) -> 2
A146: 144 | B146: =IF('PVR BH'!$N$28="","",'PVR BH'!$N$28) -> 0 | C146: =IF( 'PVR BH'!$B$5="","", 'PVR BH'!$B$5) -> TEX-124-E | D146: =IF('PVR BH'!$N$24="","",'PVR BH'!$N$24) -> PVR [in] Bottom of Layer | E146: =IF('PVR BH'!$A$28="","",'PVR BH'!$A$28) -> 3
A147: 145 | B147: =IF('PVR BH'!$N$29="","",'PVR BH'!$N$29) -> 0 | C147: =IF( 'PVR BH'!$B$5="","", 'PVR BH'!$B$5) -> TEX-124-E | D147: =IF('PVR BH'!$N$24="","",'PVR BH'!$N$24) -> PVR [in] Bottom of Layer | E147: =IF('PVR BH'!$A$29="","",'PVR BH'!$A$29) -> 4
A148: 146 | B148: =IF('PVR BH'!$N$30="","",'PVR BH'!$N$30) -> 0 | C148: =IF( 'PVR BH'!$B$5="","", 'PVR BH'!$B$5) -> TEX-124-E | D148: =IF('PVR BH'!$N$24="","",'PVR BH'!$N$24) -> PVR [in] Bottom of Layer | E148: =IF('PVR BH'!$A$30="","",'PVR BH'!$A$30) -> 5
A149: 147 | B149: =IF('PVR BH'!$N$31="","",'PVR BH'!$N$31) -> 0 | C149: =IF( 'PVR BH'!$B$5="","", 'PVR BH'!$B$5) -> TEX-124-E | D149: =IF('PVR BH'!$N$24="","",'PVR BH'!$N$24) -> PVR [in] Bottom of Layer | E149: =IF('PVR BH'!$A$31="","",'PVR BH'!$A$31) -> 6
A150: 148 | B150: =IF('PVR BH'!$N$32="","",'PVR BH'!$N$32) -> 0 | C150: =IF( 'PVR BH'!$B$5="","", 'PVR BH'!$B$5) -> TEX-124-E | D150: =IF('PVR BH'!$N$24="","",'PVR BH'!$N$24) -> PVR [in] Bottom of Layer | E150: =IF('PVR BH'!$A$32="","",'PVR BH'!$A$32) -> 7
A151: 149 | B151: =IF('PVR BH'!$N$33="","",'PVR BH'!$N$33) -> 0 | C151: =IF( 'PVR BH'!$B$5="","", 'PVR BH'!$B$5) -> TEX-124-E | D151: =IF('PVR BH'!$N$24="","",'PVR BH'!$N$24) -> PVR [in] Bottom of Layer | E151: =IF('PVR BH'!$A$33="","",'PVR BH'!$A$33) -> 8
A152: 150 | B152: =IF('PVR BH'!$N$34="","",'PVR BH'!$N$34) -> 0 | C152: =IF( 'PVR BH'!$B$5="","", 'PVR BH'!$B$5) -> TEX-124-E | D152: =IF('PVR BH'!$N$24="","",'PVR BH'!$N$24) -> PVR [in] Bottom of Layer | E152: =IF('PVR BH'!$A$34="","",'PVR BH'!$A$34) -> 9
A153: 151 | B153: =IF('PVR BH'!$N$35="","",'PVR BH'!$N$35) -> 0 | C153: =IF( 'PVR BH'!$B$5="","", 'PVR BH'!$B$5) -> TEX-124-E | D153: =IF('PVR BH'!$N$24="","",'PVR BH'!$N$24) -> PVR [in] Bottom of Layer | E153: =IF('PVR BH'!$A$35="","",'PVR BH'!$A$35) -> 10
A154: 152 | B154: =IF('PVR BH'!$O$25="","",'PVR BH'!$O$25) -> - | C154: =IF( 'PVR BH'!$B$5="","", 'PVR BH'!$B$5) -> TEX-124-E | D154: =IF('PVR BH'!$O$24="","",'PVR BH'!$O$24) -> Differential Swell [in] | E154: =IF('PVR BH'!$A$25="","",'PVR BH'!$A$25) -> 0
A155: 153 | B155: =IF('PVR BH'!$O$26="","",'PVR BH'!$O$26) -> 0 | C155: =IF( 'PVR BH'!$B$5="","", 'PVR BH'!$B$5) -> TEX-124-E | D155: =IF('PVR BH'!$O$24="","",'PVR BH'!$O$24) -> Differential Swell [in] | E155: =IF('PVR BH'!$A$26="","",'PVR BH'!$A$26) -> 1
A156: 154 | B156: =IF('PVR BH'!$O$27="","",'PVR BH'!$O$27) -> 0 | C156: =IF( 'PVR BH'!$B$5="","", 'PVR BH'!$B$5) -> TEX-124-E | D156: =IF('PVR BH'!$O$24="","",'PVR BH'!$O$24) -> Differential Swell [in] | E156: =IF('PVR BH'!$A$27="","",'PVR BH'!$A$27) -> 2
A157: 155 | B157: =IF('PVR BH'!$O$28="","",'PVR BH'!$O$28) -> 0 | C157: =IF( 'PVR BH'!$B$5="","", 'PVR BH'!$B$5) -> TEX-124-E | D157: =IF('PVR BH'!$O$24="","",'PVR BH'!$O$24) -> Differential Swell [in] | E157: =IF('PVR BH'!$A$28="","",'PVR BH'!$A$28) -> 3
A158: 156 | B158: =IF('PVR BH'!$O$29="","",'PVR BH'!$O$29) -> 0 | C158: =IF( 'PVR BH'!$B$5="","", 'PVR BH'!$B$5) -> TEX-124-E | D158: =IF('PVR BH'!$O$24="","",'PVR BH'!$O$24) -> Differential Swell [in] | E158: =IF('PVR BH'!$A$29="","",'PVR BH'!$A$29) -> 4
A159: 157 | B159: =IF('PVR BH'!$O$30="","",'PVR BH'!$O$30) -> 0 | C159: =IF( 'PVR BH'!$B$5="","", 'PVR BH'!$B$5) -> TEX-124-E | D159: =IF('PVR BH'!$O$24="","",'PVR BH'!$O$24) -> Differential Swell [in] | E159: =IF('PVR BH'!$A$30="","",'PVR BH'!$A$30) -> 5
A160: 158 | B160: =IF('PVR BH'!$O$31="","",'PVR BH'!$O$31) -> 0 | C160: =IF( 'PVR BH'!$B$5="","", 'PVR BH'!$B$5) -> TEX-124-E | D160: =IF('PVR BH'!$O$24="","",'PVR BH'!$O$24) -> Differential Swell [in] | E160: =IF('PVR BH'!$A$31="","",'PVR BH'!$A$31) -> 6
A161: 159 | B161: =IF('PVR BH'!$O$32="","",'PVR BH'!$O$32) -> 0 | C161: =IF( 'PVR BH'!$B$5="","", 'PVR BH'!$B$5) -> TEX-124-E | D161: =IF('PVR BH'!$O$24="","",'PVR BH'!$O$24) -> Differential Swell [in] | E161: =IF('PVR BH'!$A$32="","",'PVR BH'!$A$32) -> 7
A162: 160 | B162: =IF('PVR BH'!$O$33="","",'PVR BH'!$O$33) -> 0 | C162: =IF( 'PVR BH'!$B$5="","", 'PVR BH'!$B$5) -> TEX-124-E | D162: =IF('PVR BH'!$O$24="","",'PVR BH'!$O$24) -> Differential Swell [in] | E162: =IF('PVR BH'!$A$33="","",'PVR BH'!$A$33) -> 8
A163: 161 | B163: =IF('PVR BH'!$O$34="","",'PVR BH'!$O$34) -> 0 | C163: =IF( 'PVR BH'!$B$5="","", 'PVR BH'!$B$5) -> TEX-124-E | D163: =IF('PVR BH'!$O$24="","",'PVR BH'!$O$24) -> Differential Swell [in] | E163: =IF('PVR BH'!$A$34="","",'PVR BH'!$A$34) -> 9
A164: 162 | B164: =IF('PVR BH'!$O$35="","",'PVR BH'!$O$35) -> 0 | C164: =IF( 'PVR BH'!$B$5="","", 'PVR BH'!$B$5) -> TEX-124-E | D164: =IF('PVR BH'!$O$24="","",'PVR BH'!$O$24) -> Differential Swell [in] | E164: =IF('PVR BH'!$A$35="","",'PVR BH'!$A$35) -> 10
A165: 163 | B165: =IF('PVR BH'!$P$25="","",'PVR BH'!$P$25) -> - | C165: =IF( 'PVR BH'!$B$5="","", 'PVR BH'!$B$5) -> TEX-124-E | D165: =IF('PVR BH'!$P$24="","",'PVR BH'!$P$24) -> Modified -No.40 Factor | E165: =IF('PVR BH'!$A$25="","",'PVR BH'!$A$25) -> 0
A166: 164 | B166: =IF('PVR BH'!$P$26="","",'PVR BH'!$P$26) -> 0 | C166: =IF( 'PVR BH'!$B$5="","", 'PVR BH'!$B$5) -> TEX-124-E | D166: =IF('PVR BH'!$P$24="","",'PVR BH'!$P$24) -> Modified -No.40 Factor | E166: =IF('PVR BH'!$A$26="","",'PVR BH'!$A$26) -> 1
A167: 165 | B167: =IF('PVR BH'!$P$27="","",'PVR BH'!$P$27) -> 0 | C167: =IF( 'PVR BH'!$B$5="","", 'PVR BH'!$B$5) -> TEX-124-E | D167: =IF('PVR BH'!$P$24="","",'PVR BH'!$P$24) -> Modified -No.40 Factor | E167: =IF('PVR BH'!$A$27="","",'PVR BH'!$A$27) -> 2
A168: 166 | B168: =IF('PVR BH'!$P$28="","",'PVR BH'!$P$28) -> 0 | C168: =IF( 'PVR BH'!$B$5="","", 'PVR BH'!$B$5) -> TEX-124-E | D168: =IF('PVR BH'!$P$24="","",'PVR BH'!$P$24) -> Modified -No.40 Factor | E168: =IF('PVR BH'!$A$28="","",'PVR BH'!$A$28) -> 3
A169: 167 | B169: =IF('PVR BH'!$P$29="","",'PVR BH'!$P$29) -> 0 | C169: =IF( 'PVR BH'!$B$5="","", 'PVR BH'!$B$5) -> TEX-124-E | D169: =IF('PVR BH'!$P$24="","",'PVR BH'!$P$24) -> Modified -No.40 Factor | E169: =IF('PVR BH'!$A$29="","",'PVR BH'!$A$29) -> 4
A170: 168 | B170: =IF('PVR BH'!$P$30="","",'PVR BH'!$P$30) -> 0 | C170: =IF( 'PVR BH'!$B$5="","", 'PVR BH'!$B$5) -> TEX-124-E | D170: =IF('PVR BH'!$P$24="","",'PVR BH'!$P$24) -> Modified -No.40 Factor | E170: =IF('PVR BH'!$A$30="","",'PVR BH'!$A$30) -> 5
A171: 169 | B171: =IF('PVR BH'!$P$31="","",'PVR BH'!$P$31) -> 0 | C171: =IF( 'PVR BH'!$B$5="","", 'PVR BH'!$B$5) -> TEX-124-E | D171: =IF('PVR BH'!$P$24="","",'PVR BH'!$P$24) -> Modified -No.40 Factor | E171: =IF('PVR BH'!$A$31="","",'PVR BH'!$A$31) -> 6
A172: 170 | B172: =IF('PVR BH'!$P$32="","",'PVR BH'!$P$32) -> 0 | C172: =IF( 'PVR BH'!$B$5="","", 'PVR BH'!$B$5) -> TEX-124-E | D172: =IF('PVR BH'!$P$24="","",'PVR BH'!$P$24) -> Modified -No.40 Factor | E172: =IF('PVR BH'!$A$32="","",'PVR BH'!$A$32) -> 7
A173: 171 | B173: =IF('PVR BH'!$P$33="","",'PVR BH'!$P$33) -> 0 | C173: =IF( 'PVR BH'!$B$5="","", 'PVR BH'!$B$5) -> TEX-124-E | D173: =IF('PVR BH'!$P$24="","",'PVR BH'!$P$24) -> Modified -No.40 Factor | E173: =IF('PVR BH'!$A$33="","",'PVR BH'!$A$33) -> 8
A174: 172 | B174: =IF('PVR BH'!$P$34="","",'PVR BH'!$P$34) -> 0 | C174: =IF( 'PVR BH'!$B$5="","", 'PVR BH'!$B$5) -> TEX-124-E | D174: =IF('PVR BH'!$P$24="","",'PVR BH'!$P$24) -> Modified -No.40 Factor | E174: =IF('PVR BH'!$A$34="","",'PVR BH'!$A$34) -> 9
A175: 173 | B175: =IF('PVR BH'!$P$35="","",'PVR BH'!$P$35) -> 0 | C175: =IF( 'PVR BH'!$B$5="","", 'PVR BH'!$B$5) -> TEX-124-E | D175: =IF('PVR BH'!$P$24="","",'PVR BH'!$P$24) -> Modified -No.40 Factor | E175: =IF('PVR BH'!$A$35="","",'PVR BH'!$A$35) -> 10
A176: 174 | B176: =IF('PVR BH'!$Q$25="","",'PVR BH'!$Q$25) -> - | C176: =IF( 'PVR BH'!$B$5="","", 'PVR BH'!$B$5) -> TEX-124-E | D176: =IF('PVR BH'!$Q$24="","",'PVR BH'!$Q$24) -> Modified Density Factor | E176: =IF('PVR BH'!$A$25="","",'PVR BH'!$A$25) -> 0
A177: 175 | B177: =IF('PVR BH'!$Q$26="","",'PVR BH'!$Q$26) -> 1 | C177: =IF( 'PVR BH'!$B$5="","", 'PVR BH'!$B$5) -> TEX-124-E | D177: =IF('PVR BH'!$Q$24="","",'PVR BH'!$Q$24) -> Modified Density Factor | E177: =IF('PVR BH'!$A$26="","",'PVR BH'!$A$26) -> 1
A178: 176 | B178: =IF('PVR BH'!$Q$27="","",'PVR BH'!$Q$27) -> 1 | C178: =IF( 'PVR BH'!$B$5="","", 'PVR BH'!$B$5) -> TEX-124-E | D178: =IF('PVR BH'!$Q$24="","",'PVR BH'!$Q$24) -> Modified Density Factor | E178: =IF('PVR BH'!$A$27="","",'PVR BH'!$A$27) -> 2
A179: 177 | B179: =IF('PVR BH'!$Q$28="","",'PVR BH'!$Q$28) -> 1 | C179: =IF( 'PVR BH'!$B$5="","", 'PVR BH'!$B$5) -> TEX-124-E | D179: =IF('PVR BH'!$Q$24="","",'PVR BH'!$Q$24) -> Modified Density Factor | E179: =IF('PVR BH'!$A$28="","",'PVR BH'!$A$28) -> 3
A180: 178 | B180: =IF('PVR BH'!$Q$29="","",'PVR BH'!$Q$29) -> 1 | C180: =IF( 'PVR BH'!$B$5="","", 'PVR BH'!$B$5) -> TEX-124-E | D180: =IF('PVR BH'!$Q$24="","",'PVR BH'!$Q$24) -> Modified Density Factor | E180: =IF('PVR BH'!$A$29="","",'PVR BH'!$A$29) -> 4
A181: 179 | B181: =IF('PVR BH'!$Q$30="","",'PVR BH'!$Q$30) -> 1 | C181: =IF( 'PVR BH'!$B$5="","", 'PVR BH'!$B$5) -> TEX-124-E | D181: =IF('PVR BH'!$Q$24="","",'PVR BH'!$Q$24) -> Modified Density Factor | E181: =IF('PVR BH'!$A$30="","",'PVR BH'!$A$30) -> 5
A182: 180 | B182: =IF('PVR BH'!$Q$31="","",'PVR BH'!$Q$31) -> 1 | C182: =IF( 'PVR BH'!$B$5="","", 'PVR BH'!$B$5) -> TEX-124-E | D182: =IF('PVR BH'!$Q$24="","",'PVR BH'!$Q$24) -> Modified Density Factor | E182: =IF('PVR BH'!$A$31="","",'PVR BH'!$A$31) -> 6
A183: 181 | B183: =IF('PVR BH'!$Q$32="","",'PVR BH'!$Q$32) -> 1 | C183: =IF( 'PVR BH'!$B$5="","", 'PVR BH'!$B$5) -> TEX-124-E | D183: =IF('PVR BH'!$Q$24="","",'PVR BH'!$Q$24) -> Modified Density Factor | E183: =IF('PVR BH'!$A$32="","",'PVR BH'!$A$32) -> 7
A184: 182 | B184: =IF('PVR BH'!$Q$33="","",'PVR BH'!$Q$33) -> 1 | C184: =IF( 'PVR BH'!$B$5="","", 'PVR BH'!$B$5) -> TEX-124-E | D184: =IF('PVR BH'!$Q$24="","",'PVR BH'!$Q$24) -> Modified Density Factor | E184: =IF('PVR BH'!$A$33="","",'PVR BH'!$A$33) -> 8
A185: 183 | B185: =IF('PVR BH'!$Q$34="","",'PVR BH'!$Q$34) -> 1 | C185: =IF( 'PVR BH'!$B$5="","", 'PVR BH'!$B$5) -> TEX-124-E | D185: =IF('PVR BH'!$Q$24="","",'PVR BH'!$Q$24) -> Modified Density Factor | E185: =IF('PVR BH'!$A$34="","",'PVR BH'!$A$34) -> 9
A186: 184 | B186: =IF('PVR BH'!$Q$35="","",'PVR BH'!$Q$35) -> 1 | C186: =IF( 'PVR BH'!$B$5="","", 'PVR BH'!$B$5) -> TEX-124-E | D186: =IF('PVR BH'!$Q$24="","",'PVR BH'!$Q$24) -> Modified Density Factor | E186: =IF('PVR BH'!$A$35="","",'PVR BH'!$A$35) -> 10
A187: 185 | B187: =IF('PVR BH'!$R$25="","",'PVR BH'!$R$25) -> - | C187: =IF( 'PVR BH'!$B$5="","", 'PVR BH'!$B$5) -> TEX-124-E | D187: =IF('PVR BH'!$R$24="","",'PVR BH'!$R$24) -> PVR in Layers [in] | E187: =IF('PVR BH'!$A$25="","",'PVR BH'!$A$25) -> 0
A188: 186 | B188: =IF('PVR BH'!$R$26="","",'PVR BH'!$R$26) -> 0 | C188: =IF( 'PVR BH'!$B$5="","", 'PVR BH'!$B$5) -> TEX-124-E | D188: =IF('PVR BH'!$R$24="","",'PVR BH'!$R$24) -> PVR in Layers [in] | E188: =IF('PVR BH'!$A$26="","",'PVR BH'!$A$26) -> 1
A189: 187 | B189: =IF('PVR BH'!$R$27="","",'PVR BH'!$R$27) -> 0 | C189: =IF( 'PVR BH'!$B$5="","", 'PVR BH'!$B$5) -> TEX-124-E | D189: =IF('PVR BH'!$R$24="","",'PVR BH'!$R$24) -> PVR in Layers [in] | E189: =IF('PVR BH'!$A$27="","",'PVR BH'!$A$27) -> 2
A190: 188 | B190: =IF('PVR BH'!$R$28="","",'PVR BH'!$R$28) -> 0 | C190: =IF( 'PVR BH'!$B$5="","", 'PVR BH'!$B$5) -> TEX-124-E | D190: =IF('PVR BH'!$R$24="","",'PVR BH'!$R$24) -> PVR in Layers [in] | E190: =IF('PVR BH'!$A$28="","",'PVR BH'!$A$28) -> 3
A191: 189 | B191: =IF('PVR BH'!$R$29="","",'PVR BH'!$R$29) -> 0 | C191: =IF( 'PVR BH'!$B$5="","", 'PVR BH'!$B$5) -> TEX-124-E | D191: =IF('PVR BH'!$R$24="","",'PVR BH'!$R$24) -> PVR in Layers [in] | E191: =IF('PVR BH'!$A$29="","",'PVR BH'!$A$29) -> 4
A192: 190 | B192: =IF('PVR BH'!$R$30="","",'PVR BH'!$R$30) -> 0 | C192: =IF( 'PVR BH'!$B$5="","", 'PVR BH'!$B$5) -> TEX-124-E | D192: =IF('PVR BH'!$R$24="","",'PVR BH'!$R$24) -> PVR in Layers [in] | E192: =IF('PVR BH'!$A$30="","",'PVR BH'!$A$30) -> 5
A193: 191 | B193: =IF('PVR BH'!$R$31="","",'PVR BH'!$R$31) -> 0 | C193: =IF( 'PVR BH'!$B$5="","", 'PVR BH'!$B$5) -> TEX-124-E | D193: =IF('PVR BH'!$R$24="","",'PVR BH'!$R$24) -> PVR in Layers [in] | E193: =IF('PVR BH'!$A$31="","",'PVR BH'!$A$31) -> 6
A194: 192 | B194: =IF('PVR BH'!$R$32="","",'PVR BH'!$R$32) -> 0 | C194: =IF( 'PVR BH'!$B$5="","", 'PVR BH'!$B$5) -> TEX-124-E | D194: =IF('PVR BH'!$R$24="","",'PVR BH'!$R$24) -> PVR in Layers [in] | E194: =IF('PVR BH'!$A$32="","",'PVR BH'!$A$32) -> 7
A195: 193 | B195: =IF('PVR BH'!$R$33="","",'PVR BH'!$R$33) -> 0 | C195: =IF( 'PVR BH'!$B$5="","", 'PVR BH'!$B$5) -> TEX-124-E | D195: =IF('PVR BH'!$R$24="","",'PVR BH'!$R$24) -> PVR in Layers [in] | E195: =IF('PVR BH'!$A$33="","",'PVR BH'!$A$33) -> 8
A196: 194 | B196: =IF('PVR BH'!$R$34="","",'PVR BH'!$R$34) -> 0 | C196: =IF( 'PVR BH'!$B$5="","", 'PVR BH'!$B$5) -> TEX-124-E | D196: =IF('PVR BH'!$R$24="","",'PVR BH'!$R$24) -> PVR in Layers [in] | E196: =IF('PVR BH'!$A$34="","",'PVR BH'!$A$34) -> 9
A197: 195 | B197: =IF('PVR BH'!$R$35="","",'PVR BH'!$R$35) -> 0 | C197: =IF( 'PVR BH'!$B$5="","", 'PVR BH'!$B$5) -> TEX-124-E | D197: =IF('PVR BH'!$R$24="","",'PVR BH'!$R$24) -> PVR in Layers [in] | E197: =IF('PVR BH'!$A$35="","",'PVR BH'!$A$35) -> 10
A198: 196 | B198: =IF('PVR BH'!$S$25="","",'PVR BH'!$S$25) -> 0 | C198: =IF( 'PVR BH'!$B$5="","", 'PVR BH'!$B$5) -> TEX-124-E | D198: =IF('PVR BH'!$S$24="","",'PVR BH'!$S$24) -> Total PVR [in] | E198: =IF('PVR BH'!$A$25="","",'PVR BH'!$A$25) -> 0
A199: 197 | B199: =IF('PVR BH'!$S$26="","",'PVR BH'!$S$26) -> 0 | C199: =IF( 'PVR BH'!$B$5="","", 'PVR BH'!$B$5) -> TEX-124-E | D199: =IF('PVR BH'!$S$24="","",'PVR BH'!$S$24) -> Total PVR [in] | E199: =IF('PVR BH'!$A$26="","",'PVR BH'!$A$26) -> 1
A200: 198 | B200: =IF('PVR BH'!$S$27="","",'PVR BH'!$S$27) -> 0 | C200: =IF( 'PVR BH'!$B$5="","", 'PVR BH'!$B$5) -> TEX-124-E | D200: =IF('PVR BH'!$S$24="","",'PVR BH'!$S$24) -> Total PVR [in] | E200: =IF('PVR BH'!$A$27="","",'PVR BH'!$A$27) -> 2
... 8 more rows

Sheet Figdata (hidden)
AM4: 35 | AT4: 20 | AZ4: 5
B5: LOAD | C5: 35 | D5: 30 | E5: 25 | F5: 20 | G5: 15 | H5: 10 | I5: 5 | AM5: Y | AN5: X | AO5: X2 | AP5: X3 | AQ5: X4 | AT5: Y | AU5: X | AV5: X2 | AW5: X3 | AX5: X4 | AZ5: Y | BA5: X | BB5: X2 | BC5: X3 | BD5: X4
B6: 0 | C6: 0 | D6: 0 | E6: 0 | F6: 0 | G6: 0 | H6: 0 | I6: 0 | AM6: =C6 -> 0 | AN6: =B6 -> 0 | AO6: =AN6^2 -> 0 | AP6: =AO6*AN6 -> 0 | AQ6: =AO6*AO6 -> 0 | AT6: =F6 -> 0 | AU6: =B6 -> 0 | AV6: =AU6^2 -> 0 | AW6: =AV6*AU6 -> 0 | AX6: =AV6*AV6 -> 0 | AZ6: 0 | BA6: 0 | BB6: =BA6^2 -> 0 | BC6: =BB6*BA6 -> 0 | BD6: =BB6*BB6 -> 0
B7: =B6+10 -> 10 | C7: 10.7 | D7: 9 | E7: 7 | F7: 5.4 | G7: 2.3 | H7: 1.45 | I7: 0.3 | AM7: =C7 -> 10.7 | AN7: =B7 -> 10 | AO7: =AN7^2 -> 100 | AP7: =AO7*AN7 -> 1000 | AQ7: =AO7*AO7 -> 10000 | AT7: =F7 -> 5.4 | AU7: =B7 -> 10 | AV7: =AU7^2 -> 100 | AW7: =AV7*AU7 -> 1000 | AX7: =AV7*AV7 -> 10000 | AZ7: 0.3 | BA7: 2.5 | BB7: 6.25 | BC7: 15.625 | BD7: 39.0625
B8: =B7+10 -> 20 | C8: 16.6 | D8: 13.6 | E8: 10.2 | F8: 7.55 | G8: 3.4 | H8: 1.9 | I8: 0.38 | AM8: 16.6 | AN8: 20 | AO8: 400 | AP8: 8000 | AQ8: 160000 | AT8: =F8 -> 7.55 | AU8: =B8 -> 20 | AV8: =AU8^2 -> 400 | AW8: =AV8*AU8 -> 8000 | AX8: =AV8*AV8 -> 160000 | AZ8: 0.38 | BA8: 5 | BB8: 25 | BC8: 125 | BD8: 625
B9: 30 | C9: 20.6 | D9: 16.43 | E9: 12 | F9: 8.6 | G9: 3.98 | H9: 2.1 | I9: 0.4 | AM9: 20.6 | AN9: 30 | AO9: 900 | AP9: 27000 | AQ9: 810000 | AT9: =F9 -> 8.6 | AU9: =B9 -> 30 | AV9: =AU9^2 -> 900 | AW9: =AV9*AU9 -> 27000 | AX9: =AV9*AV9 -> 810000 | AZ9: 0.4 | BA9: 7.5 | BB9: 56.25 | BC9: 421.875 | BD9: 3164.0625
B10: 40 | C10: 23.2 | D10: 18.09 | E10: 12.8 | F10: 9.03 | G10: 4.3 | H10: 2.19 | I10: 0.4 | AM10: 23.2 | AN10: 40 | AO10: 1600 | AP10: 64000 | AQ10: 2560000 | AT10: =F10 -> 9.03 | AU10: =B10 -> 40 | AV10: =AU10^2 -> 1600 | AW10: =AV10*AU10 -> 64000 | AX10: =AV10*AV10 -> 2560000 | AZ10: 0.4 | BA10: 10 | BB10: 100 | BC10: 1000 | BD10: 10000
B11: 50 | C11: 24.8 | D11: 18.9 | E11: 13.1 | G11: 4.47 | I11: 0.4 | AM11: 24.8 | AN11: 50 | AO11: 2500 | AP11: 125000 | AQ11: 6250000 | AZ11: 0.4 | BA11: 15 | BB11: 225 | BC11: 3375 | BD11: 50625
B12: 60 | C12: 25.6 | D12: 18.38 | AM12: 25.6 | AN12: 60 | AO12: 3600 | AP12: 216000 | AQ12: 12960000
B13: 70 | C13: 26 | AM13: 26 | AN13: 70 | AO13: 4900 | AP13: 343000 | AQ13: 24010000
B15: LOAD | C15: 35 | D15: 34 | E15: 33 | F15: 32 | G15: 31 | H15: 30 | I15: 29 | J15: 28 | K15: 27 | L15: 26 | M15: 25 | N15: 24 | O15: 23 | P15: 22 | Q15: 21 | R15: 20 | S15: 19 | T15: 18 | U15: 17 | V15: 16 | W15: 15 | X15: 14 | Y15: 13 | Z15: 12 | AA15: 11 | AB15: 10 | AC15: =AD15+1 -> 9 | AD15: =AE15+1 -> 8 | AE15: =AF15+1 -> 7 | AF15: =AG15+1 -> 6 | AG15: 5 | AH15: 4 | AI15: 3 | AJ15: 2 | AK15: 1 | AL15: 0 | AM15: A | AN15: =INDEX(LINEST($AM$6:$AM$13,$AN$6:$AQ$13),0) -> -1.884469697e-06 | AT15: A | AU15: =INDEX(LINEST($AT$6:$AT$10,$AU$6:$AX$10),0) -> -6.958333333e-06 | AZ15: A | BA15: =INDEX(LINEST($AZ$6:$AZ$11,$BA$6:$BD$11),0) -> -6.259119497e-05
B16: 0 | C16: =$AN$15*B16^4+$AN$16*B16^3+$AN$17*B16^2+$AN$18*B16+0 -> 0 | D16: =C16-(C16-H16)*(($C$15-$D$15)/($C$15-$H$15)) -> 0 | E16: =C16-(C16-H16)*(($C$15-$E$15)/($C$15-$H$15)) -> 0 | F16: =C16-(C16-H16)*(($C$15-$F$15)/($C$15-$H$15)) -> 0 | G16: =C16-(C16-H16)*(($C$15-$G$15)/($C$15-$H$15)) -> 0 | H16: =-0.000002916253*B16^4+0.000482296*B16^3+-0.032226153*B16^2+1.153912525*B16+0 -> 0 | I16: =H16-(H16-M16)*(($H$15-$I$15)/($H$15-$M$15)) -> 0 | J16: =H16-(H16-M16)*(($H$15-$J$15)/($H$15-$M$15)) -> 0 | K16: =H16-(H16-M16)*(($H$15-$K$15)/($H$15-$M$15)) -> 0 | L16: =H16-(H16-M16)*(($H$15-$L$15)/($H$15-$M$15)) -> 0 | M16: =$AN$48*B16^4+$AN$49*B16^3+$AN$50*B16^2+$AN$51*B16+0 -> 0 | N16: =M16-(M16-R16)*(($M$15-$N$15)/($M$15-$R$15)) -> 0 | O16: =M16-(M16-R16)*(($M$15-$O$15)/($M$15-$R$15)) -> 0 | P16: =M16-(M16-R16)*(($M$15-$P$15)/($M$15-$R$15)) -> 0 | Q16: =M16-(M16-R16)*(($M$15-$Q$15)/($M$15-$R$15)) -> 0 | R16: =$AU$15*B16^4+$AU$16*B16^3+$AU$17*B16^2+$AU$18*B16+0 -> 0 | S16: =R16-(R16-W16)*(($R$15-$S$15)/($R$15-$W$15)) -> 0 | T16: =R16-(R16-W16)*(($R$15-$T$15)/($R$15-$W$15)) -> 0 | U16: =R16-(R16-W16)*(($R$15-$U$15)/($R$15-$W$15)) -> 0 | V16: =R16-(R16-W16)*(($R$15-$V$15)/($R$15-$W$15)) -> 0 | W16: =$AU$31*B16^4+$AU$32*B16^3+$AU$33*B16^2+$AU$34*B16+0 -> 0 | X16: =W16-(W16-AB16)*(($W$15-$X$15)/($W$15-$AB$15)) -> 0 | Y16: =W16-(W16-AB16)*(($W$15-$Y$15)/($W$15-$AB$15)) -> 0 | Z16: =W16-(W16-AB16)*(($W$15-$Z$15)/($W$15-$AB$15)) -> 0 | AA16: =W16-(W16-AB16)*(($W$15-$AA$15)/($W$15-$AB$15)) -> 0 | AB16: =$AU$48*B16^4+$AU$49*B16^3+$AU$50*B16^2+$AU$51*B16+0 -> 0 | AC16: =AB16-(AB16-AG16)*((10-9)/5) -> 0 | AD16: =AB16-((AB16-AG16)*(($AB$15-$AD$15)/($AB$15-$AG$15))) -> 0 | AE16: 0 | AF16: 0 | AG16: =$BA$15*B16^4+$BA$16*B16^3+$BA$17*B16^2+$BA$18*B16+0 -> 0 | AH16: 0 | AI16: 0 | AJ16: 0 | AK16: 0 | AL16: 0 | AM16: B | AN16: =INDEX(LINEST($AM$6:$AM$13,$AN$6:$AQ$13),2) -> 0.0003706439394 | AT16: B | AU16: =INDEX(LINEST($AT$6:$AT$10,$AU$6:$AX$10),2) -> 0.0007758333333 | AZ16: B | BA16: =INDEX(LINEST($AZ$6:$AZ$11,$BA$6:$BD$11),2) -> 0.002343647799
B17: 1 | C17: =$AN$15*B17^4+$AN$16*B17^3+$AN$17*B17^2+$AN$18*B17+0 -> 1.27670818 | D17: =C17-(C17-H17)*(($C$15-$D$15)/($C$15-$H$15)) -> 1.245799695 | E17: =C17-(C17-H17)*(($C$15-$E$15)/($C$15-$H$15)) -> 1.214891209 | F17: =C17-(C17-H17)*(($C$15-$F$15)/($C$15-$H$15)) -> 1.183982723 | G17: =C17-(C17-H17)*(($C$15-$G$15)/($C$15-$H$15)) -> 1.153074237 | H17: =-0.000002916253*B17^4+0.000482296*B17^3+-0.032226153*B17^2+1.153912525*B17+0 -> 1.122165752 | I17: =H17-(H17-M17)*(($H$15-$I$15)/($H$15-$M$15)) -> 1.084303476 | J17: =H17-(H17-M17)*(($H$15-$J$15)/($H$15-$M$15)) -> 1.046441201 | K17: =H17-(H17-M17)*(($H$15-$K$15)/($H$15-$M$15)) -> 1.008578926 | L17: 0.9707166503 | M17: =$AN$48*B17^4+$AN$49*B17^3+$AN$50*B17^2+$AN$51*B17+0 -> 0.932854375 | N17: =M17-(M17-R17)*(($M$15-$N$15)/($M$15-$R$15)) -> 0.902689775 | O17: =M17-(M17-R17)*(($M$15-$O$15)/($M$15-$R$15)) -> 0.872525175 | P17: =M17-(M17-R17)*(($M$15-$P$15)/($M$15-$R$15)) -> 0.842360575 | Q17: =M17-(M17-R17)*(($M$15-$Q$15)/($M$15-$R$15)) -> 0.812195975 | R17: =$AU$15*B17^4+$AU$16*B17^3+$AU$17*B17^2+$AU$18*B17+0 -> 0.782031375 | S17: =R17-(R17-W17)*(($R$15-$S$15)/($R$15-$W$15)) -> 0.7440751571 | T17: =R17-(R17-W17)*(($R$15-$T$15)/($R$15-$W$15)) -> 0.7061189393 | U17: =R17-(R17-W17)*(($R$15-$U$15)/($R$15-$W$15)) -> 0.6681627214 | V17: =R17-(R17-W17)*(($R$15-$V$15)/($R$15-$W$15)) -> 0.6302065036 | W17: =$AU$31*B17^4+$AU$32*B17^3+$AU$33*B17^2+$AU$34*B17+0 -> 0.5922502857 | X17: =W17-(W17-AB17)*(($W$15-$X$15)/($W$15-$AB$15)) -> 0.5590994286 | Y17: =W17-(W17-AB17)*(($W$15-$Y$15)/($W$15-$AB$15)) -> 0.5259485714 | Z17: =W17-(W17-AB17)*(($W$15-$Z$15)/($W$15-$AB$15)) -> 0.4927977143 | AA17: =W17-(W17-AB17)*(($W$15-$AA$15)/($W$15-$AB$15)) -> 0.4596468571 | AB17: 0.426496 | AC17: =AB17-(AB17-AG17)*((10-9)/5) -> 0.3721260392 | AD17: =AB17-((AB17-AG17)*(($AB$15-$AD$15)/($AB$15-$AG$15))) -> 0.3177560783 | AE17: =AB17-((AB17-AG17)*(($AB$15-$AE$15)/($AB$15-$AG$15))) -> 0.2633861175 | AF17: =AB17-((AB17-AG17)*(($AB$15-$AF$15)/($AB$15-$AG$15))) -> 0.2090161567 | AG17: 0.1546461959 | AH17: =AG17-(AG17-AL17)*((5-4)/5) -> 0.1237169567 | AI17: =AG17-((AG17-AL17)*(($AG$15-$AI$15)/($AG$15-$AL$15))) -> 0.09278771752 | AJ17: =AG17-((AG17-AL17)*(($AG$15-$AJ$15)/($AG$15-$AL$15))) -> 0.06185847835 | AK17: =AG17-((AG17-AL17)*(($AG$15-$AK$15)/($AG$15-$AL$15))) -> 0.03092923917 | AL17: 0 | AM17: C | AN17: =INDEX(LINEST($AM$6:$AM$13,$AN$6:$AQ$13),3) -> -0.03009185606 | AT17: C | AU17: =INDEX(LINEST($AT$6:$AT$10,$AU$6:$AX$10),3) -> -0.03465416667 | AZ17: C | BA17: =INDEX(LINEST($AZ$6:$AZ$11,$BA$6:$BD$11),3) -> -0.03155849057
B18: 2 | C18: =$AN$15*B18^4+$AN$16*B18^3+$AN$17*B18^2+$AN$18*B18+0 -> 2.49543013 | D18: =C18-(C18-H18)*(($C$15-$D$15)/($C$15-$H$15)) -> 2.432890533 | E18: =C18-(C18-H18)*(($C$15-$E$15)/($C$15-$H$15)) -> 2.370350936 | F18: =C18-(C18-H18)*(($C$15-$F$15)/($C$15-$H$15)) -> 2.30781134 | G18: =C18-(C18-H18)*(($C$15-$G$15)/($C$15-$H$15)) -> 2.245271743 | H18: 2.182732146 | I18: =H18-(H18-M18)*(($H$15-$I$15)/($H$15-$M$15)) -> 2.107129717 | J18: =H18-(H18-M18)*(($H$15-$J$15)/($H$15-$M$15)) -> 2.031527288 | K18: =H18-(H18-M18)*(($H$15-$K$15)/($H$15-$M$15)) -> 1.955924858 | L18: 1.880322429 | M18: =$AN$48*B18^4+$AN$49*B18^3+$AN$50*B18^2+$AN$51*B18+0 -> 1.80472 | N18: =M18-(M18-R18)*(($M$15-$N$15)/($M$15-$R$15)) -> 1.7436384 | O18: =M18-(M18-R18)*(($M$15-$O$15)/($M$15-$R$15)) -> 1.6825568 | P18: =M18-(M18-R18)*(($M$15-$P$15)/($M$15-$R$15)) -> 1.6214752 | Q18: =M18-(M18-R18)*(($M$15-$Q$15)/($M$15-$R$15)) -> 1.5603936 | R18: =$AU$15*B18^4+$AU$16*B18^3+$AU$17*B18^2+$AU$18*B18+0 -> 1.499312 | S18: =R18-(R18-W18)*(($R$15-$S$15)/($R$15-$W$15)) -> 1.421502514 | T18: =R18-(R18-W18)*(($R$15-$T$15)/($R$15-$W$15)) -> 1.343693029 | U18: =R18-(R18-W18)*(($R$15-$U$15)/($R$15-$W$15)) -> 1.265883543 | V18: =R18-(R18-W18)*(($R$15-$V$15)/($R$15-$W$15)) -> 1.188074057 | W18: =$AU$31*B18^4+$AU$32*B18^3+$AU$33*B18^2+$AU$34*B18+0 -> 1.110264571 | X18: 1.042886857 | Y18: =W18-(W18-AB18)*(($W$15-$Y$15)/($W$15-$AB$15)) -> 0.9755091429 | Z18: =W18-(W18-AB18)*(($W$15-$Z$15)/($W$15-$AB$15)) -> 0.9081314286 | AA18: =W18-(W18-AB18)*(($W$15-$AA$15)/($W$15-$AB$15)) -> 0.8407537143 | AB18: 0.773376 | AC18: 0.6705730041 | AD18: 0.5677700083 | AE18: =AB18-((AB18-AG18)*(($AB$15-$AE$15)/($AB$15-$AG$15))) -> 0.4649670124 | AF18: 0.3621640165 | AG18: 0.2593610207 | AH18: =AG18-(AG18-AL18)*((5-4)/5) -> 0.2074888165 | AI18: =AG18-((AG18-AL18)*(($AG$15-$AI$15)/($AG$15-$AL$15))) -> 0.1556166124 | AJ18: =AG18-((AG18-AL18)*(($AG$15-$AJ$15)/($AG$15-$AL$15))) -> 0.1037444083 | AK18: =AG18-((AG18-AL18)*(($AG$15-$AK$15)/($AG$15-$AL$15))) -> 0.05187220413 | AL18: 0 | AM18: D | AN18: =INDEX(LINEST($AM$6:$AM$13,$AN$6:$AQ$13),4) -> 1.306431277 | AT18: D | AU18: =INDEX(LINEST($AT$6:$AT$10,$AU$6:$AX$10),4) -> 0.8159166667 | AZ18: D | BA18: =INDEX(LINEST($AZ$6:$AZ$11,$BA$6:$BD$11),4) -> 0.1839236298
B19: 3 | C19: 3.658321871 | D19: 3.563555091 | E19: 3.468788312 | F19: 3.374021532 | G19: 3.279254753 | H19: =-0.000002916253*B19^4+0.000482296*B19^3+-0.032226153*B19^2+1.153912525*B19+0 -> 3.184487974 | I19: 3.07135292 | J19: 2.958217867 | K19: 2.845082814 | L19: 2.731947761 | M19: =$AN$48*B19^4+$AN$49*B19^3+$AN$50*B19^2+$AN$51*B19+0 -> 2.618812708 | N19: =M19-(M19-R19)*(($M$15-$N$15)/($M$15-$R$15)) -> 2.526299442 | O19: =M19-(M19-R19)*(($M$15-$O$15)/($M$15-$R$15)) -> 2.433786175 | P19: =M19-(M19-R19)*(($M$15-$P$15)/($M$15-$R$15)) -> 2.341272908 | Q19: =M19-(M19-R19)*(($M$15-$Q$15)/($M$15-$R$15)) -> 2.248759642 | R19: =$AU$15*B19^4+$AU$16*B19^3+$AU$17*B19^2+$AU$18*B19+0 -> 2.156246375 | S19: =R19-(R19-W19)*(($R$15-$S$15)/($R$15-$W$15)) -> 2.037344871 | T19: =R19-(R19-W19)*(($R$15-$T$15)/($R$15-$W$15)) -> 1.918443368 | U19: =R19-(R19-W19)*(($R$15-$U$15)/($R$15-$W$15)) -> 1.799541864 | V19: =R19-(R19-W19)*(($R$15-$V$15)/($R$15-$W$15)) -> 1.680640361 | W19: =$AU$31*B19^4+$AU$32*B19^3+$AU$33*B19^2+$AU$34*B19+0 -> 1.561738857 | X19: =W19-(W19-AB19)*(($W$15-$X$15)/($W$15-$AB$15)) -> 1.459890286 | Y19: =W19-(W19-AB19)*(($W$15-$Y$15)/($W$15-$AB$15)) -> 1.358041714 | Z19: =W19-(W19-AB19)*(($W$15-$Z$15)/($W$15-$AB$15)) -> 1.256193143 | AA19: =W19-(W19-AB19)*(($W$15-$AA$15)/($W$15-$AB$15)) -> 1.154344571 | AB19: 1.052496 | AC19: =AB19-(AB19-AG19)*((10-9)/5) -> 0.9071874156 | AD19: =AB19-((AB19-AG19)*(($AB$15-$AD$15)/($AB$15-$AG$15))) -> 0.7618788313 | AE19: =AB19-((AB19-AG19)*(($AB$15-$AE$15)/($AB$15-$AG$15))) -> 0.6165702469 | AF19: 0.4712616625 | AG19: 0.3259530782 | AH19: 0.2607624625 | AI19: 0.1955718469 | AJ19: 0.1303812313 | AK19: 0.06519061563 | AL19: 0
B20: 4 | C20: 4.767494199 | D20: 4.640025766 | E20: 4.512557334 | F20: 4.385088901 | G20: 4.257620468 | H20: 4.130152035 | I20: 3.979772295 | J20: 3.829392554 | K20: 3.679012814 | L20: 3.528633074 | M20: 3.378253333 | N20: =M20-(M20-R20)*(($M$15-$N$15)/($M$15-$R$15)) -> 3.254017067 | O20: =M20-(M20-R20)*(($M$15-$O$15)/($M$15-$R$15)) -> 3.1297808 | P20: =M20-(M20-R20)*(($M$15-$P$15)/($M$15-$R$15)) -> 3.005544533 | Q20: =M20-(M20-R20)*(($M$15-$Q$15)/($M$15-$R$15)) -> 2.881308267 | R20: 2.757072 | S20: =R20-(R20-W20)*(($R$15-$S$15)/($R$15-$W$15)) -> 2.596440229 | T20: =R20-(R20-W20)*(($R$15-$T$15)/($R$15-$W$15)) -> 2.435808457 | U20: =R20-(R20-W20)*(($R$15-$U$15)/($R$15-$W$15)) -> 2.275176686 | V20: =R20-(R20-W20)*(($R$15-$V$15)/($R$15-$W$15)) -> 2.114544914 | W20: 1.953913143 | X20: 1.818077714 | Y20: =W20-(W20-AB20)*(($W$15-$Y$15)/($W$15-$AB$15)) -> 1.682242286 | Z20: =W20-(W20-AB20)*(($W$15-$Z$15)/($W$15-$AB$15)) -> 1.546406857 | AA20: =W20-(W20-AB20)*(($W$15-$AA$15)/($W$15-$AB$15)) -> 1.410571429 | AB20: 1.274736 | AC20: 1.092734557 | AD20: 0.9107331134 | AE20: =AB20-((AB20-AG20)*(($AB$15-$AE$15)/($AB$15-$AG$15))) -> 0.7287316701 | AF20: 0.5467302268 | AG20: 0.3647287835 | AH20: 0.2917830268 | AI20: 0.2188372701 | AJ20: 0.1458915134 | AK20: 0.07294575669 | AL20: 0 | AM20: 30 | AT20: 15
B21: 5 | C21: 5.825012683 | D21: 5.664484774 | E21: 5.503956866 | F21: 5.343428958 | G21: 5.18290105 | H21: =-0.000002916253*B21^4+0.000482296*B21^3+-0.032226153*B21^2+1.153912525*B21+0 -> 5.022373142 | I21: 4.835112055 | J21: 4.647850968 | K21: 4.460589882 | L21: 4.273328795 | M21: 4.086067708 | N21: 3.930026042 | O21: 3.773984375 | P21: 3.617942708 | Q21: 3.461901042 | R21: 3.305859375 | S21: 3.103401786 | T21: 2.900944196 | U21: 2.698486607 | V21: 2.496029018 | W21: 2.293571429 | X21: 2.124857143 | Y21: 1.956142857 | Z21: 1.787428571 | AA21: 1.618714286 | AB21: 1.45 | AC21: 1.236898473 | AD21: 1.023796945 | AE21: 0.8106954178 | AF21: 0.5975938904 | AG21: 0.384492363 | AH21: 0.3075938904 | AI21: 0.2306954178 | AJ21: 0.1537969452 | AK21: 0.0768984726 | AL21: 0 | AM21: Y | AN21: X | AO21: X2 | AP21: X3 | AQ21: X4 | AR21: X5 | AT21: Y | AU21: X | AV21: X2 | AW21: X3 | AX21: X4
B22: 6 | C22: 6.832897662 | D22: 6.639064153 | E22: 6.445230643 | F22: 6.251397133 | G22: 6.057563624 | H22: 5.863730114 | I22: 5.640021425 | J22: 5.416312735 | K22: 5.192604046 | L22: 4.968895356 | M22: 4.745186667 | N22: 4.557451733 | O22: 4.3697168 | P22: 4.181981867 | Q22: 3.994246933 | R22: 3.806512 | S22: 3.562617943 | T22: 3.318723886 | U22: 3.074829829 | V22: 2.830935771 | W22: 2.587041714 | X22: 2.387076571 | Y22: 2.187111429 | Z22: 1.987146286 | AA22: 1.787181143 | AB22: 1.587216 | AC22: 1.348281971 | AD22: 1.109347942 | AE22: 0.8704139127 | AF22: 0.6314798836 | AG22: 0.3925458544 | AH22: 0.3140366836 | AI22: 0.2355275127 | AJ22: 0.1570183418 | AK22: 0.07850917089 | AL22: 0 | AM22: =D6 -> 0 | AN22: =AN6 -> 0 | AO22: 0 | AP22: 0 | AQ22: 0 | AR22: =AQ22*AN22 -> 0 | AT22: 0 | AU22: 0 | AV22: =AU22^2 -> 0 | AW22: =AV22*AU22 -> 0 | AX22: =AV22*AV22 -> 0
B23: 7 | C23: 7.793124252 | D23: 7.565845758 | E23: 7.338567264 | F23: 7.11128877 | G23: 6.884010276 | H23: =-0.000002916253*B23^4+0.000482296*B23^3+-0.032226153*B23^2+1.153912525*B23+0 -> 6.656731783 | I23: 6.397074634 | J23: 6.137417486 | K23: 5.877760338 | L23: 5.61810319 | M23: 5.358446042 | N23: 5.139310108 | O23: 4.920174175 | P23: 4.701038242 | Q23: 4.481902308 | R23: 4.262766375 | S23: 3.9782523 | T23: 3.693738225 | U23: 3.40922415 | V23: 3.124710075 | W23: 2.840196 | X23: 2.611024 | Y23: 2.381852 | Z23: 2.15268 | AA23: 1.923508 | AB23: 1.694336 | AC23: 1.434406621 | AD23: 1.174477243 | AE23: 0.9145478642 | AF23: 0.6546184855 | AG23: 0.3946891069 | AH23: 0.3157512855 | AI23: 0.2368134642 | AJ23: 0.1578756428 | AK23: 0.07893782138 | AL23: 0 | AM23: 9 | AN23: 10 | AO23: 100 | AP23: 1000 | AQ23: 10000 | AR23: =AQ23*AN23 -> 100000 | AT23: 2.3 | AU23: 5 | AV23: 25 | AW23: 125 | AX23: 625
B24: 8 | C24: =$AN$15*B24^4+$AN$16*B24^3+$AN$17*B24^2+$AN$18*B24+0 -> 8.707622338 | D24: 8.446861268 | E24: 8.186100198 | F24: 7.925339128 | G24: 7.664578058 | H24: 7.403816988 | I24: 7.108770924 | J24: 6.813724859 | K24: 6.518678795 | L24: 6.223632731 | M24: =$AN$48*B24^4+$AN$49*B24^3+$AN$50*B24^2+$AN$51*B24+0 -> 5.928586667 | N24: 5.678507733 | O24: 5.4284288 | P24: 5.178349867 | Q24: 4.928270933 | R24: =$AU$15*B24^4+$AU$16*B24^3+$AU$17*B24^2+$AU$18*B24+0 -> 4.678192 | S24: 4.354243657 | T24: 4.030295314 | U24: 3.706346971 | V24: 3.382398629 | W24: =$AU$31*B24^4+$AU$32*B24^3+$AU$33*B24^2+$AU$34*B24+0 -> 3.058450286 | X24: 2.802427429 | Y24: 2.546404571 | Z24: 2.290381714 | AA24: 2.034358857 | AB24: 1.778336 | AC24: 1.501712756 | AD24: 1.225089512 | AE24: 0.9484662685 | AF24: 0.6718430246 | AG24: 0.3952197808 | AH24: 0.3161758246 | AI24: 0.2371318685 | AJ24: 0.1580879123 | AK24: 0.07904395615 | AL24: 0 | AM24: 13.6 | AN24: 20 | AO24: 400 | AP24: 8000 | AQ24: 160000 | AR24: 3200000 | AT24: 3.4 | AU24: 10 | AV24: 100 | AW24: 1000 | AX24: 10000
B25: 9 | C25: 9.578276579 | D25: 9.284092179 | E25: 8.989907779 | F25: 8.69572338 | G25: 8.40153898 | H25: 8.10735458 | I25: 7.777534539 | J25: 7.447714498 | K25: 7.117894457 | L25: 6.788074416 | M25: 6.458254375 | N25: 6.177841775 | O25: 5.897429175 | P25: 5.617016575 | Q25: 5.336603975 | R25: 5.056191375 | S25: 4.694306014 | T25: 4.332420654 | U25: 3.970535293 | V25: 3.608649932 | W25: 3.246764571 | X25: 2.966454857 | Y25: 2.686145143 | Z25: 2.405835429 | AA25: 2.125525714 | AB25: 1.845216 | AC25: 1.5561728 | AD25: 1.2671296 | AE25: 0.9780864 | AF25: 0.6890432 | AG25: 0.4 | AH25: 0.32 | AI25: 0.24 | AJ25: 0.16 | AK25: 0.08 | AL25: 0 | AM25: 16.43 | AN25: 30 | AO25: 900 | AP25: 27000 | AQ25: 810000 | AR25: 24300000 | AT25: 3.98 | AU25: 15 | AV25: 225 | AW25: 3375 | AX25: 50625
B26: =B24+2 -> 10 | C26: 10.40692641 | D26: 10.07946981 | E26: 9.752013212 | F26: 9.424556615 | G26: 9.097100017 | H26: 8.76964342 | I26: 8.405714736 | J26: 8.041786052 | K26: 7.677857368 | L26: 7.313928684 | M26: 6.95 | N26: 6.64 | O26: 6.33 | P26: 6.02 | Q26: 5.71 | R26: 5.4 | S26: 5.001928571 | T26: 4.603857143 | U26: 4.205785714 | V26: 3.807714286 | W26: 3.409642857 | X26: 3.107714286 | Y26: 2.805785714 | Z26: 2.503857143 | AA26: 2.201928571 | AB26: 1.9 | AC26: 1.6 | AD26: =AB26-((AB26-AG26)*(($AB$15-$AD$15)/($AB$15-$AG$15))) -> 1.3 | AE26: 1 | AF26: 0.7 | AG26: 0.4 | AH26: 0.32 | AI26: 0.24 | AJ26: 0.16 | AK26: 0.08 | AL26: 0 | AM26: 18.09 | AN26: 40 | AO26: 1600 | AP26: 64000 | AQ26: 2560000 | AR26: 102400000 | AT26: 4.3 | AU26: 20 | AV26: 400 | AW26: 8000 | AX26: 160000
B27: 11 | C27: 11.19536603 | D27: 10.8348753 | E27: 10.47438457 | F27: 10.11389384 | G27: 9.753403108 | H27: 9.392912378 | I27: 8.995585777 | J27: 8.598259177 | K27: 8.200932576 | L27: 7.803605976 | M27: 7.406279375 | N27: =M27-(M27-R27)*(($M$15-$N$15)/($M$15-$R$15)) -> 7.067560775 | O27: =M27-(M27-R27)*(($M$15-$O$15)/($M$15-$R$15)) -> 6.728842175 | P27: =M27-(M27-R27)*(($M$15-$P$15)/($M$15-$R$15)) -> 6.390123575 | Q27: =M27-(M27-R27)*(($M$15-$Q$15)/($M$15-$R$15)) -> 6.051404975 | R27: 5.712686375 | S27: =R27-(R27-W27)*(($R$15-$S$15)/($R$15-$W$15)) -> 5.280375729 | T27: =R27-(R27-W27)*(($R$15-$T$15)/($R$15-$W$15)) -> 4.848065082 | U27: =R27-(R27-W27)*(($R$15-$U$15)/($R$15-$W$15)) -> 4.415754436 | V27: =R27-(R27-W27)*(($R$15-$V$15)/($R$15-$W$15)) -> 3.983443789 | W27: 3.551133143 | X27: =W27-(W27-AB27)*(($W$15-$X$15)/($W$15-$AB$15)) -> 3.230253714 | Y27: =W27-(W27-AB27)*(($W$15-$Y$15)/($W$15-$AB$15)) -> 2.909374286 | Z27: =W27-(W27-AB27)*(($W$15-$Z$15)/($W$15-$AB$15)) -> 2.588494857 | AA27: =W27-(W27-AB27)*(($W$15-$AA$15)/($W$15-$AB$15)) -> 2.267615429 | AB27: 1.946736 | AC27: =AB27-(AB27-AG27)*((10-9)/5) -> 1.6373888 | AD27: =AB27-((AB27-AG27)*(($AB$15-$AD$15)/($AB$15-$AG$15))) -> 1.3280416 | AE27: =AB27-((AB27-AG27)*(($AB$15-$AE$15)/($AB$15-$AG$15))) -> 1.0186944 | AF27: 0.7093472 | AG27: 0.4 | AH27: 0.32 | AI27: 0.24 | AJ27: 0.16 | AK27: 0.08 | AL27: 0 | AM27: 18.9 | AN27: 50 | AO27: 2500 | AP27: 125000 | AQ27: 6250000 | AR27: 312500000 | AT27: 4.47 | AU27: 25 | AV27: 625 | AW27: 15625 | AX27: 390625
B28: =B26+2 -> 12 | C28: 11.94534442 | D28: 11.5521396 | E28: 11.15893478 | F28: 10.76572997 | G28: 10.37252515 | H28: 9.979320334 | I28: 9.549346934 | J28: 9.119373534 | K28: 8.689400134 | L28: 8.259426733 | M28: 7.829453333 | N28: 7.462993067 | O28: 7.0965328 | P28: 6.730072533 | Q28: 6.363612267 | R28: 5.997152 | S28: 5.532687086 | T28: 5.068222171 | U28: 4.603757257 | V28: 4.139292343 | W28: 3.674827429 | X28: 3.337561143 | Y28: 3.000294857 | Z28: 2.663028571 | AA28: 2.325762286 | AB28: 1.988496 | AC28: 1.6707968 | AD28: =AB28-((AB28-AG28)*(($AB$15-$AD$15)/($AB$15-$AG$15))) -> 1.3530976 | AE28: 1.0353984 | AF28: 0.7177 | AG28: 0.4 | AH28: 0.32 | AI28: 0.24 | AJ28: 0.16 | AK28: 0.08 | AL28: 0 | AM28: 18.38 | AN28: 60 | AO28: 3600 | AP28: 216000 | AQ28: 12960000 | AR28: 777600000
B29: 13 | C29: 12.65856532 | D29: 12.23304349 | E29: 11.80752167 | F29: 11.38199984 | G29: 10.95647801 | H29: 10.53095618 | I29: 10.06912248 | J29: 9.60728879 | K29: 9.145455096 | L29: 8.683621402 | M29: 8.221787708 | N29: 7.828656442 | O29: 7.435525175 | P29: 7.042393908 | Q29: 6.649262642 | R29: 6.256131375 | S29: 5.761677443 | T29: 5.267223511 | U29: 4.772769579 | V29: 4.278315646 | W29: 3.783861714 | X29: 3.432564571 | Y29: 3.081267429 | Z29: 2.729970286 | AA29: 2.378673143 | AB29: 2.027376 | AC29: =AB29-(AB29-AG29)*((10-9)/5) -> 1.7019008 | AD29: =AB29-((AB29-AG29)*(($AB$15-$AD$15)/($AB$15-$AG$15))) -> 1.3764256 | AE29: =AB29-((AB29-AG29)*(($AB$15-$AE$15)/($AB$15-$AG$15))) -> 1.0509504 | AF29: =AB29-((AB29-AG29)*(($AB$15-$AF$15)/($AB$15-$AG$15))) -> 0.7254752 | AG29: 0.4 | AH29: 0.32 | AI29: 0.24 | AJ29: 0.16 | AK29: 0.08 | AL29: 0
B30: 14 | C30: 13.33668727 | D30: 12.87931758 | E30: 12.42194789 | F30: 11.9645782 | G30: 11.5072085 | H30: 11.04983881 | I30: 10.55696172 | J30: 10.06408462 | K30: 9.571207524 | L30: 9.078330429 | M30: 8.585453333 | N30: 8.166801067 | O30: 7.7481488 | P30: 7.329496533 | Q30: 6.910844267 | R30: 6.492192 | S30: 5.9699368 | T30: 5.4476816 | U30: 4.9254264 | V30: 4.4031712 | W30: 3.880916 | X30: 3.517632 | Y30: 3.154348 | Z30: 2.791064 | AA30: 2.42778 | AB30: 2.064496 | AC30: =AB30-(AB30-AG30)*((10-9)/5) -> 1.7315968 | AD30: =AB30-((AB30-AG30)*(($AB$15-$AD$15)/($AB$15-$AG$15))) -> 1.3986976 | AE30: 1.0657984 | AF30: 0.725475 | AG30: 0.4 | AH30: 0.32 | AI30: 0.24 | AJ30: 0.16 | AK30: 0.08 | AL30: 0
B31: 15 | C31: 13.98132356 | D31: 13.49264228 | E31: 13.00396099 | F31: 12.51527971 | G31: 12.02659843 | H31: 11.53791714 | I31: 11.01483892 | J31: 10.4917607 | K31: 9.968682482 | L31: 9.445604262 | M31: 8.922526042 | N31: =M31-(M31-R31)*(($M$15-$N$15)/($M$15-$R$15)) -> 8.479567708 | O31: =M31-(M31-R31)*(($M$15-$O$15)/($M$15-$R$15)) -> 8.036609375 | P31: =M31-(M31-R31)*(($M$15-$P$15)/($M$15-$R$15)) -> 7.593651042 | Q31: =M31-(M31-R31)*(($M$15-$Q$15)/($M$15-$R$15)) -> 7.150692708 | R31: 6.707734375 | S31: =R31-(R31-W31)*(($R$15-$S$15)/($R$15-$W$15)) -> 6.159830357 | T31: =R31-(R31-W31)*(($R$15-$T$15)/($R$15-$W$15)) -> 5.611926339 | U31: =R31-(R31-W31)*(($R$15-$U$15)/($R$15-$W$15)) -> 5.064022321 | V31: =R31-(R31-W31)*(($R$15-$V$15)/($R$15-$W$15)) -> 4.516118304 | W31: 3.968214286 | X31: =W31-(W31-AB31)*(($W$15-$X$15)/($W$15-$AB$15)) -> 3.594571429 | Y31: =W31-(W31-AB31)*(($W$15-$Y$15)/($W$15-$AB$15)) -> 3.220928571 | Z31: =W31-(W31-AB31)*(($W$15-$Z$15)/($W$15-$AB$15)) -> 2.847285714 | AA31: =W31-(W31-AB31)*(($W$15-$AA$15)/($W$15-$AB$15)) -> 2.473642857 | AB31: 2.1 | AC31: 1.7558 | AD31: 1.408549 | AE31: 1.079 | AF31: 0.725475 | AM31: A | AN31: =INDEX(LINEST($AM$22:$AM$28,$AN$22:$AR$28),0) -> 5.125e-08 | AT31: A | AU31: =INDEX(LINEST($AT$22:$AT$27,$AU$22:$AX$27),0) -> -1.9e-05
B32: =B30+2 -> 16 | C32: 14.59404225 | D32: 14.07464782 | E32: 13.55525339 | F32: 13.03585896 | G32: 12.51646452 | H32: 11.99707009 | I32: 11.44465341 | J32: 10.89223672 | K32: 10.33982004 | L32: 9.787403352 | M32: 9.234986667 | N32: 8.768987733 | O32: 8.3029888 | P32: 7.836989867 | Q32: 7.370990933 | R32: 6.904992 | S32: 6.333498514 | T32: 5.762005029 | U32: 5.190511543 | V32: 4.619018057 | W32: 4.047524571 | X32: 3.664630857 | Y32: 3.281737143 | Z32: 2.898843429 | AA32: 2.515949714 | AB32: 2.133056 | AC32: 1.78 | AD32: 1.425 | AE32: 1.09 | AM32: B | AN32: =INDEX(LINEST($AM$22:$AM$28,$AN$22:$AR$28),2) -> -1.143371212e-05 | AT32: B | AU32: =INDEX(LINEST($AT$22:$AT$27,$AU$22:$AX$27),2) -> 0.001396666667
B33: 17 | C33: 15.17636619 | D33: =C33-(C33-H33)*(($C$15-$D$15)/($C$15-$H$15)) -> 14.62691427 | E33: =C33-(C33-H33)*(($C$15-$E$15)/($C$15-$H$15)) -> 14.07746235 | F33: =C33-(C33-H33)*(($C$15-$F$15)/($C$15-$H$15)) -> 13.52801043 | G33: =C33-(C33-H33)*(($C$15-$G$15)/($C$15-$H$15)) -> 12.97855851 | H33: 12.42910659 | I33: =H33-(H33-M33)*(($H$15-$I$15)/($H$15-$M$15)) -> 11.84822948 | J33: =H33-(H33-M33)*(($H$15-$J$15)/($H$15-$M$15)) -> 11.26735237 | K33: =H33-(H33-M33)*(($H$15-$K$15)/($H$15-$M$15)) -> 10.68647526 | L33: 10.10559815 | M33: 9.524721042 | N33: =M33-(M33-R33)*(($M$15-$N$15)/($M$15-$R$15)) -> 9.036983108 | O33: =M33-(M33-R33)*(($M$15-$O$15)/($M$15-$R$15)) -> 8.549245175 | P33: =M33-(M33-R33)*(($M$15-$P$15)/($M$15-$R$15)) -> 8.061507242 | Q33: =M33-(M33-R33)*(($M$15-$Q$15)/($M$15-$R$15)) -> 7.573769308 | R33: 7.086031375 | S33: =R33-(R33-W33)*(($R$15-$S$15)/($R$15-$W$15)) -> 6.492856871 | T33: =R33-(R33-W33)*(($R$15-$T$15)/($R$15-$W$15)) -> 5.899682368 | U33: =R33-(R33-W33)*(($R$15-$U$15)/($R$15-$W$15)) -> 5.306507864 | V33: =R33-(R33-W33)*(($R$15-$V$15)/($R$15-$W$15)) -> 4.713333361 | W33: 4.120158857 | X33: =W33-(W33-AB33)*(($W$15-$X$15)/($W$15-$AB$15)) -> 3.728498286 | Y33: =W33-(W33-AB33)*(($W$15-$Y$15)/($W$15-$AB$15)) -> 3.336837714 | Z33: =W33-(W33-AB33)*(($W$15-$Z$15)/($W$15-$AB$15)) -> 2.945177143 | AA33: =W33-(W33-AB33)*(($W$15-$AA$15)/($W$15-$AB$15)) -> 2.553516571 | AB33: 2.161856 | AC33: =1.795 -> 1.795 | AD33: 1.43 | AM33: C | AN33: =INDEX(LINEST($AM$22:$AM$28,$AN$22:$AR$28),3) -> 0.0009618371212 | AT33: C | AU33: =INDEX(LINEST($AT$22:$AT$27,$AU$22:$AX$27),3) -> -0.041175
B34: =B32+2 -> 18 | C34: 15.72977299 | D34: 15.1509715 | E34: 14.57217002 | F34: 13.99336854 | G34: 13.41456706 | H34: 12.83576558 | I34: 12.22731646 | J34: 11.61886735 | K34: 11.01041823 | L34: 10.40196912 | M34: 9.79352 | N34: 9.2853664 | O34: 8.7772128 | P34: 8.2690592 | Q34: 7.7609056 | R34: 7.252752 | S34: 6.639596229 | T34: 6.026440457 | U34: 5.413284686 | V34: 4.800128914 | W34: 4.186973143 | X34: 3.786301714 | Y34: 3.385630286 | Z34: 2.984958857 | AA34: 2.584287429 | AB34: 2.183616 | AC34: 1.81 | AD34: 1.435 | AM34: D | AN34: =INDEX(LINEST($AM$22:$AM$28,$AN$22:$AR$28),4) -> -0.04327632576 | AT34: D | AU34: =INDEX(LINEST($AT$22:$AT$27,$AU$22:$AX$27),4) -> 0.632047619
B35: 19 | C35: 16.25569503 | D35: 15.64829922 | E35: 15.04090342 | F35: 14.43350761 | G35: 13.82611181 | H35: 13.218716 | I35: 12.58358867 | J35: 11.94846135 | K35: 11.31333402 | L35: 10.6782067 | M35: 10.04307938 | N35: 9.515840775 | O35: 8.988602175 | P35: 8.461363575 | Q35: 7.934124975 | R35: 7.406886375 | S35: 6.775182586 | T35: 6.143478796 | U35: 5.511775007 | V35: 4.880071218 | W35: 4.248367429 | X35: 3.837609143 | Y35: 3.426850857 | Z35: 3.016092571 | AA35: =W35-(W35-AB35)*(($W$15-$AA$15)/($W$15-$AB$15))+0.008 -> 2.613334286 | AB35: 2.194576 | AC35: 1.821 | AM35: E | AN35: =INDEX(LINEST(AM22:AM28,AN22:AR28),5) -> 1.245781061
B36: 20 | C36: 16.75551948 | D36: 16.12032695 | E36: 15.48513442 | F36: 14.84994188 | G36: 14.21474935 | H36: 13.57955682 | I36: 12.91864546 | J36: 12.25773409 | K36: 11.59682273 | L36: 10.93591136 | M36: 10.275 | N36: 9.73 | O36: 9.185 | P36: 8.64 | Q36: 8.095 | R36: 7.55 | S36: 6.900857143 | T36: 6.251714286 | U36: 5.602571429 | V36: 4.953428571 | W36: 4.304285714 | X36: =W36-(W36-AB36)*(($W$15-$X$15)/($W$15-$AB$15)) -> 3.885428571 | Y36: 3.466571429 | Z36: 3.047714286 | AA36: 2.628857143 | AB36: 2.21
B37: 21 | C37: 17.23058827 | D37: 16.56843402 | E37: 15.90627976 | F37: 15.24412551 | G37: 14.58197126 | H37: 13.91981701 | I37: 13.23401115 | J37: 12.54820529 | K37: 11.86239943 | L37: 11.17659357 | M37: 10.49078771 | N37: 9.929328442 | O37: 9.367869175 | P37: 8.806409908 | Q37: 8.244950642 | R37: 7.683491375 | S37: 7.0176363 | T37: 6.351781225 | U37: 5.68592615 | V37: 5.020071075 | W37: 4.354216 | X37: 3.935 | Y37: 3.5 | Z37: 3.067 | AA37: 2.64 | AM37: 25 | AT37: 10
B38: =B36+2 -> 22 | C38: 17.6821981 | D38: 16.99394958 | E38: 16.30570107 | F38: 15.61745256 | G38: 14.92920405 | H38: 14.24095554 | I38: 13.5311351 | J38: 12.82131466 | K38: 12.11149422 | L38: 11.40167378 | M38: 10.69185333 | N38: 10.11520107 | O38: 9.5385488 | P38: 8.961896533 | Q38: 8.385244267 | R38: 7.808592 | S38: 7.126311657 | T38: 6.444031314 | U38: 5.761750971 | V38: 5.079470629 | W38: 4.397190286 | X38: 3.965 | Y38: 3.52 | Z38: 3.08 | AM38: Y | AN38: X | AO38: X2 | AP38: X3 | AQ38: X4 | AT38: Y | AU38: X | AV38: X2 | AW38: X3 | AX38: X4
B39: 23 | C39: 18.11160044 | D39: 17.39815264 | E39: 16.68470483 | F39: 15.97125703 | G39: 15.25780922 | H39: 14.54436141 | I39: 13.81139167 | J39: 13.07842193 | K39: 12.34545219 | L39: 11.61248245 | M39: 10.87951271 | N39: 10.28888344 | O39: 9.698254175 | P39: 9.107624908 | Q39: 8.516995642 | R39: 7.926366375 | S39: 7.227450014 | T39: 6.528533654 | U39: 5.829617293 | V39: 5.130700932 | W39: 4.431784571 | X39: 3.985 | Y39: 3.53 | AM39: =E6 -> 0 | AN39: =AN22 -> 0 | AO39: 0 | AP39: 0 | AQ39: 0 | AT39: 0 | AU39: 0 | AV39: =AU39^2 -> 0 | AW39: =AV39*AU39 -> 0 | AX39: =AV39*AV39 -> 0
B40: 24 | C40: 18.52000156 | D40: 17.78227197 | E40: 17.04454238 | F40: 16.3068128 | G40: 15.56908321 | H40: 14.83135362 | I40: 14.07608023 | J40: 13.32080684 | K40: 12.56553345 | L40: 11.81026006 | M40: 11.05498667 | N40: 10.45153173 | O40: 9.8480768 | P40: 9.244621867 | Q40: 8.641166933 | R40: 8.037712 | S40: 7.321393371 | T40: 6.605074743 | U40: 5.888756114 | V40: 5.172437486 | W40: 4.456118857 | X40: 4 | AM40: 7 | AN40: 10 | AO40: 100 | AP40: 1000 | AQ40: 10000 | AT40: 1.45 | AU40: 5 | AV40: =AU40^2 -> 25 | AW40: =AV40*AU40 -> 125 | AX40: =AV40*AV40 -> 625
B41: =B40+2 -> 26 | C41: 19.27839896 | D41: 18.49492379 | E41: 17.71144861 | F41: 16.92797344 | G41: 16.14449826 | H41: 15.36102309 | I41: 14.5635758 | J41: 13.76612852 | K41: 12.96868123 | L41: 12.17123395 | M41: 11.37378667 | N41: 10.74780373 | O41: 10.1218208 | P41: 9.495837867 | Q41: 8.869854933 | R41: 8.243872 | S41: 7.488939086 | T41: 6.734006171 | U41: 5.979073257 | V41: 5.224140343 | W41: =$AU$31*B41^4+$AU$32*B41^3+$AU$33*B41^2+$AU$34*B41+0.005 -> 4.469207429 | AM41: 10.2 | AN41: 20 | AO41: 400 | AP41: 8000 | AQ41: 160000 | AT41: 1.9 | AU41: 10 | AV41: =AU41^2 -> 100 | AW41: =AV41*AU41 -> 1000 | AX41: =AV41*AV41 -> 10000
B42: 28 | C42: 19.96613576 | D42: 19.14073183 | E42: 18.31532791 | F42: 17.48992398 | G42: 16.66452006 | H42: 15.83911614 | I42: 15.00251691 | J42: 14.16591768 | K42: 13.32931845 | L42: 12.49271923 | M42: 11.65612 | N42: 11.0110784 | O42: 10.3660368 | P42: 9.7209952 | Q42: 9.0759536 | R42: 8.430912 | S42: 7.64 | T42: 6.83 | U42: 6.05 | V42: 5.25 | AM42: 12 | AN42: 30 | AO42: 900 | AP42: 27000 | AQ42: 810000 | AT42: 2.1 | AU42: 15 | AV42: =AU42^2 -> 225 | AW42: =AV42*AU42 -> 3375 | AX42: =AV42*AV42 -> 50625
B43: 30 | C43: 20.59123377 | D43: 19.72772004 | E43: 18.86420631 | F43: 18.00069258 | G43: 17.13717885 | H43: 16.27366512 | I43: 15.40059876 | J43: 14.52753241 | K43: 13.65446605 | L43: 12.78139969 | M43: 11.90833333 | N43: 11.24666667 | O43: 10.585 | P43: 9.923333333 | Q43: 9.261666667 | R43: 8.6 | S43: 7.79 | T43: 6.92 | U43: 6.07 | AM43: 12.8 | AN43: 40 | AO43: 1600 | AP43: 64000 | AQ43: 2560000 | AT43: 2.19 | AU43: 20 | AV43: =AU43^2 -> 400 | AW43: =AV43*AU43 -> 8000 | AX43: =AV43*AV43 -> 160000
B44: 32 | C44: 21.16099117 | D44: 20.26310945 | E44: 19.36522772 | F44: 18.467346 | G44: 17.56946427 | H44: 16.67158255 | I44: 15.76431671 | J44: 14.85705086 | K44: 13.94978502 | L44: 13.04251918 | M44: 12.13525333 | N44: 11.45812907 | O44: 10.7810048 | P44: 10.10388053 | Q44: 9.426756267 | R44: 8.749632 | S44: 7.9 | T44: 6.97 | AM44: 13.1 | AN44: 50 | AO44: 2500 | AP44: 125000 | AQ44: 6250000
B45: 34 | C45: 21.68198251 | D45: 20.75331823 | E45: 19.82465395 | F45: 18.89598966 | G45: 17.96732538 | H45: 17.0386611 | I45: 16.09896621 | J45: 15.15927132 | K45: 14.21957644 | L45: 13.27988155 | M45: 12.34018667 | N45: 11.64727573 | O45: 10.9543648 | P45: 10.26145387 | Q45: 9.568542933 | R45: 8.875632 | S45: 7.99 | T45: 7.02
B46: 36 | C46: 22.1600587 | D46: 21.20396168 | E46: 20.24786466 | F46: 19.29176763 | G46: 18.33567061 | H46: 17.37957359 | I46: 16.40864287 | J46: 15.43771215 | K46: 14.46678144 | L46: 13.49585072 | M46: 12.52492 | N46: 11.8141664 | O46: 11.1034128 | P46: 10.3926592 | Q46: 9.6819056 | R46: 8.971152 | S46: 8.04
B47: 38 | C47: 22.60034701 | D47: 21.61985221 | E47: 20.63935741 | F47: 19.65886261 | G47: 18.67836781 | H47: 17.69787301 | I47: 16.69624241 | J47: 15.69461181 | K47: 14.69298121 | L47: 13.6913506 | M47: 12.68972 | N47: 11.9571104 | O47: 11.2245008 | P47: 10.4918912 | Q47: 9.7592816 | R47: 9.026672 | S47: 8.06
B48: 40 | C48: 23.00725108 | D48: 22.00499937 | E48: 21.00274766 | F48: 20.00049594 | G48: 18.99824423 | H48: 17.99599252 | I48: 16.96346068 | J48: 15.93092885 | K48: 14.89839701 | L48: 13.86586517 | M48: 12.83333333 | N48: 12.07266667 | O48: 11.312 | P48: 10.55133333 | Q48: 9.790666667 | R48: 9.03 | AM48: A | AN48: =INDEX(LINEST($AM$39:$AM$44,$AN$39:$AQ$44),0) -> -3.958333333e-06 | AT48: A | AU48: =INDEX(LINEST($AT$39:$AT$43,$AU$39:$AX$43),0) -> -4.066666667e-05
B49: 42 | C49: 23.38445091 | D49: 22.36260981 | E49: 21.34076871 | F49: 20.31892761 | G49: 19.29708651 | H49: 18.27524541 | I49: 17.21079366 | J49: 16.14634191 | K49: 15.08189016 | L49: 14.01743842 | M49: 12.95298667 | N49: 12.15 | O49: 11.38 | P49: 10.58 | Q49: 9.83 | AM49: B | AN49: =INDEX(LINEST($AM$39:$AM$44,$AN$39:$AQ$44),2) -> 0.0005597222222 | AT49: B | AU49: =INDEX(LINEST($AT$39:$AT$43,$AU$39:$AX$43),2) -> 0.00222
B50: 44 | C50: 23.73490286 | D50: 22.69508732 | E50: 21.65527177 | F50: 20.61545623 | G50: 19.57564069 | H50: 18.53582515 | I50: 17.42866012 | J50: 16.32149509 | K50: 15.21433006 | L50: 14.10716503 | M50: 13 | N50: 12.22 | O50: 11.43 | P50: 10.61 | AM50: C | AN50: =INDEX(LINEST($AM$39:$AM$44,$AN$39:$AQ$44),3) -> -0.03214583333 | AT50: C | AU50: =INDEX(LINEST($AT$39:$AT$43,$AU$39:$AX$43),3) -> -0.04618333333
B51: 46 | C51: 24.06083965 | D51: 23.0040328 | E51: 21.94722594 | F51: 20.89041908 | G51: 19.83361222 | H51: 18.77680537 | I51: 17.63144429 | J51: 16.48608322 | K51: 15.34072215 | L51: 14.19536107 | M51: 13.05 | N51: 12.28 | O51: 11.46 | AM51: D | AN51: =INDEX(LINEST($AM$39:$AM$44,$AN$39:$AQ$44),4) -> 0.9644444444 | AT51: D | AU51: =INDEX(LINEST($AT$39:$AT$43,$AU$39:$AX$43),4) -> 0.4705
B52: 48 | C52: 24.36377039 | D52: 23.29024428 | E52: 22.21671817 | F52: 21.14319206 | G52: 20.06966595 | H52: 18.99613983 | I52: 17.80691187 | J52: 16.6176839 | K52: 15.42845593 | L52: =H52-(H52-M52)*(($H$15-$L$15)/($H$15-$M$15))+0.02 -> 14.25922797 | M52: 13.05 | N52: 12.32
B53: 50 | C53: 24.64448052 | D53: 23.55371692 | E53: 22.46295331 | F53: 21.37218971 | G53: 20.2814261 | H53: 19.1906625 | I53: 17.96919667 | J53: 16.74773083 | K53: 15.526265 | L53: =H53-(H53-M53)*(($H$15-$L$15)/($H$15-$M$15)) -> 14.30479917 | M53: =$AN$48*B53^4+$AN$49*B53^3+$AN$50*B53^2+$AN$51*B53+0 -> 13.08333333
B54: 52 | C54: 24.90303186 | D54: 23.79364298 | E54: 22.6842541 | F54: 21.57486522 | G54: 20.46547634 | H54: 19.35608746 | I54: 18.09 | J54: 16.84 | K54: 15.6 | L54: 14.34
B55: 54 | C55: 25.1387626 | D55: 24.00041187 | E55: 22.86206115 | F55: 21.72371043 | G55: 20.5853597 | H55: =-0.000002916253*B55^4+0.000482296*B55^3+-0.032226153*B55^2+1.153912525*B55-0.04 -> 19.44700898 | I55: 18.19 | J55: 16.92 | K55: 15.66
B56: 56 | C56: 25.35028727 | D56: 24.19561011 | E56: 23.04093295 | F56: 21.88625579 | G56: 20.73157863 | H56: =-0.000002916253*B56^4+0.000482296*B56^3+-0.032226153*B56^2+1.153912525*B56+0 -> 19.57690146 | I56: 18.27 | J56: 16.98
B57: 58 | C57: 25.5354968 | D57: 24.35202134 | E57: 23.16854588 | F57: 21.98507042 | G57: 20.80159496 | H57: =-0.000002916253*B57^4+0.000482296*B57^3+-0.032226153*B57^2+1.153912525*B57+0 -> 19.6181195 | I57: 18.33
B58: 60 | C58: 25.69155844 | D58: 24.49362632 | E58: 23.29569419 | F58: 22.09776207 | G58: 20.89982994 | H58: =-0.000002916253*B58^4+0.000482296*B58^3+-0.032226153*B58^2+1.153912525*B58+0.1 -> 19.70189782
B59: 62 | C59: 25.81491584 | D59: 24.61 | E59: 23.41 | F59: 22.17 | G59: 20.95
B60: 64 | C60: 25.901289 | D60: 24.71 | E60: 23.46 | F60: =22.25 -> 22.25
B61: 66 | C61: 25.94567429 | D61: 24.79 | E61: 23.5
B62: 68 | C62: 25.94234442 | D62: 24.83
B63: 70 | C63: 26
C72: =(-4/(0.773376-0.259361)) -> -7.78187407

Sheet Calculations (hidden)
E4: CALC
G11: Supplemental Calculations
B13: PVR [in] Top of Layer | C13: PVR [in] Bottom of Layer | D13: Average Moisture | E13: Dry / Average Moisture | F13: Wet / Average Moisture | H13: % Vol Swell: Wet | I13: % Vol Swell: Avg | J13: % Vol Swell: Dry | L13: Percent +No.40 | N13: ='PVR BH'!C24 -> Average Load [psi] | O13: % Vol Swell: Avg | P13: LAYER | Q13: 35-30 | R13: 29-24 | S13: 23-18 | T13: 17-12 | U13: 11-5 | V13: <5 | Z13: ='PVR BH'!C24 -> Average Load [psi] | AA13: % Vol Swell: Avg | AB13: LAYER | AC13: 35-30 | AD13: 29-24 | AE13: 23-18 | AF13: 17-12 | AG13: 11-5 | AH13: <5
D14: =AVERAGE('PVR BH'!E25:F25) ->  | E14: =AVERAGE('PVR BH'!E25,D14) ->  | F14: =AVERAGE('PVR BH'!F25,D14) ->  | H14: =(0.217*'PVR BH'!J25)-2.9 ->  | I14: =(0.294*'PVR BH'!J25)-2.9 ->  | J14: =('PVR BH'!J25*0.325)-1.75 ->  | L14: =100-'PVR BH'!I25 ->  | N14: ='PVR BH'!C25 -> 0 | O14: =ROUND('PVR BH'!L26,0) -> 0 | P14: 1 | Q14: =IF(O14=35,VLOOKUP(N14,Figdata!$B$15:$C$63,2),IF(O14=34,VLOOKUP(N14,Figdata!$B$15:$D$63,3),IF(O14=33,VLOOKUP(N14,Figdata!$B$15:$E$63,4),IF(O14=32,VLOOKUP(N14,Figdata!$B$15:$F$63,5),IF(O14=31,VLOOKUP(N14,Figdata!$B$15:$G$63,6),IF(O14=30,VLOOKUP(N14,Figdata!$B$15:$H$63,7),"")))))) ->  | R14: =IF(O14=29,VLOOKUP(N14,Figdata!$B$16:$I$64,8),IF(O14=28,VLOOKUP(N14,Figdata!$B$16:$J$64,9),IF(O14=27,VLOOKUP(N14,Figdata!$B$16:$K$64,10),IF(O14=26,VLOOKUP(N14,Figdata!$B$16:$L$64,11),IF(O14=25,VLOOKUP(N14,Figdata!$B$16:$M$64,12),IF(O14=24,VLOOKUP(N14,Figdata!$B$16:$N$64,13),"")))))) ->  | S14: =IF(O14=23,VLOOKUP(N14,Figdata!$B$16:$O$64,14),IF(O14=22,VLOOKUP(N14,Figdata!$B$16:$P$64,15),IF(O14=21,VLOOKUP(N14,Figdata!$B$16:$Q$64,16),IF(O14=20,VLOOKUP(N14,Figdata!$B$16:$R$64,17),IF(O14=19,VLOOKUP(N14,Figdata!$B$16:$S$64,18),IF(O14=18,VLOOKUP(N14,Figdata!$B$16:$T$64,19),"")))))) ->  | T14: =IF(O14=17,VLOOKUP(N14,Figdata!$B$16:$U$64,20),IF(O14=16,VLOOKUP(N14,Figdata!$B$16:$V$64,21),IF(O14=15,VLOOKUP(N14,Figdata!$B$16:$W$64,22),IF(O14=14,VLOOKUP(N14,Figdata!$B$16:$X$64,23),IF(O14=13,VLOOKUP(N14,Figdata!$B$16:$Y$64,24),IF(O14=12,VLOOKUP(N14,Figdata!$B$16:$Z$64,25),"")))))) ->  | U14: =IF(O14=11,VLOOKUP(N14,Figdata!$B$16:$AA$64,26),IF(O14=10,VLOOKUP(N14,Figdata!$B$16:$AB$64,27),IF(O14=9,VLOOKUP(N14,Figdata!$B$16:$AC$64,28),IF(O14=8,VLOOKUP(N14,Figdata!$B$16:$AD$64,29),IF(O14=7,VLOOKUP(N14,Figdata!$B$16:$AE$64,30),IF(O14=6,VLOOKUP(N14,Figdata!$B$16:$AF$64,31),IF(O14=5,VLOOKUP(N14,Figdata!$B$16:$AG$64,32),""))))))) ->  | V14: =IF(O14=4,VLOOKUP(N14,Figdata!$B$16:$AH$64,33),IF(O14=3,VLOOKUP(N14,Figdata!$B$16:$AI$64,34),IF(O14=2,VLOOKUP(N14,Figdata!$B$16:$AJ$64,35),IF(O14=1,VLOOKUP(N14,Figdata!$B$16:$AK$64,36),"")))) ->  | W14: =MAX(Q14:V14) -> 0 | Z14: ='PVR BH'!C26 -> 0 | AA14: =ROUND('PVR BH'!L26,0) -> 0 | AB14: 1 | AC14: =IF(AA14=35,VLOOKUP(Z14,Figdata!$B$15:$C$63,2),IF(AA14=34,VLOOKUP(Z14,Figdata!$B$15:$D$63,3),IF(AA14=33,VLOOKUP(Z14,Figdata!$B$15:$E$63,4),IF(AA14=32,VLOOKUP(Z14,Figdata!$B$15:$F$63,5),IF(AA14=31,VLOOKUP(Z14,Figdata!$B$15:$G$63,6),IF(AA14=30,VLOOKUP(Z14,Figdata!$B$15:$H$63,7),"")))))) ->  | AD14: =IF(AA14=29,VLOOKUP(Z14,Figdata!$B$16:$I$64,8),IF(AA14=28,VLOOKUP(Z14,Figdata!$B$16:$J$64,9),IF(AA14=27,VLOOKUP(Z14,Figdata!$B$16:$K$64,10),IF(AA14=26,VLOOKUP(Z14,Figdata!$B$16:$L$64,11),IF(AA14=25,VLOOKUP(Z14,Figdata!$B$16:$M$64,12),IF(AA14=24,VLOOKUP(Z14,Figdata!$B$16:$N$64,13),"")))))) ->  | AE14: =IF(AA14=23,VLOOKUP(Z14,Figdata!$B$16:$O$64,14),IF(AA14=22,VLOOKUP(Z14,Figdata!$B$16:$P$64,15),IF(AA14=21,VLOOKUP(Z14,Figdata!$B$16:$Q$64,16),IF(AA14=20,VLOOKUP(Z14,Figdata!$B$16:$R$64,17),IF(AA14=19,VLOOKUP(Z14,Figdata!$B$16:$S$64,18),IF(AA14=18,VLOOKUP(Z14,Figdata!$B$16:$T$64,19),"")))))) ->  | AF14: =IF(AA14=17,VLOOKUP(Z14,Figdata!$B$16:$U$64,20),IF(AA14=16,VLOOKUP(Z14,Figdata!$B$16:$V$64,21),IF(AA14=15,VLOOKUP(Z14,Figdata!$B$16:$W$64,22),IF(AA14=14,VLOOKUP(Z14,Figdata!$B$16:$X$64,23),IF(AA14=13,VLOOKUP(Z14,Figdata!$B$16:$Y$64,24),IF(AA14=12,VLOOKUP(Z14,Figdata!$B$16:$Z$64,25),"")))))) ->  | AG14: =IF(AA14=11,VLOOKUP(Z14,Figdata!$B$16:$AA$64,26),IF(AA14=10,VLOOKUP(Z14,Figdata!$B$16:$AB$64,27),IF(AA14=9,VLOOKUP(Z14,Figdata!$B$16:$AC$64,28),IF(AA14=8,VLOOKUP(Z14,Figdata!$B$16:$AD$64,29),IF(AA14=7,VLOOKUP(Z14,Figdata!$B$16:$AE$64,30),IF(AA14=6,VLOOKUP(Z14,Figdata!$B$16:$AF$64,31),IF(AA14=5,VLOOKUP(Z14,Figdata!$B$16:$AG$64,32),""))))))) ->  | AH14: =IF(AA14=4,VLOOKUP(Z14,Figdata!$B$16:$AH$64,33),IF(AA14=3,VLOOKUP(Z14,Figdata!$B$16:$AI$64,34),IF(AA14=2,VLOOKUP(Z14,Figdata!$B$16:$AJ$64,35),IF(AA14=1,VLOOKUP(Z14,Figdata!$B$16:$AK$64,36),"")))) ->  | AI14: =MAX(AC14:AH14) -> 0
B15: 0 | C15: 1.1 | D15: =AVERAGE('PVR BH'!E26:F26) -> 5.5 | E15: =AVERAGE('PVR BH'!E26,D15) -> 7.25 | F15: =AVERAGE('PVR BH'!F26,D15) -> 3.75 | H15: =(0.217*'PVR BH'!J26)-2.9 -> -2.9 | I15: =(0.294*'PVR BH'!J26)-2.9 -> -2.9 | J15: =('PVR BH'!J26*0.325)-1.75 -> -1.75 | L15: =100-'PVR BH'!I26 -> 100 | N15: ='PVR BH'!C26 -> 0 | O15: =ROUND('PVR BH'!L27,0) -> 0 | P15: 2 | Q15: =IF(O15=35,VLOOKUP(N15,Figdata!$B$15:$C$63,2),IF(O15=34,VLOOKUP(N15,Figdata!$B$15:$D$63,3),IF(O15=33,VLOOKUP(N15,Figdata!$B$15:$E$63,4),IF(O15=32,VLOOKUP(N15,Figdata!$B$15:$F$63,5),IF(O15=31,VLOOKUP(N15,Figdata!$B$15:$G$63,6),IF(O15=30,VLOOKUP(N15,Figdata!$B$15:$H$63,7),"")))))) ->  | R15: =IF(O15=29,VLOOKUP(N15,Figdata!$B$16:$I$64,8),IF(O15=28,VLOOKUP(N15,Figdata!$B$16:$J$64,9),IF(O15=27,VLOOKUP(N15,Figdata!$B$16:$K$64,10),IF(O15=26,VLOOKUP(N15,Figdata!$B$16:$L$64,11),IF(O15=25,VLOOKUP(N15,Figdata!$B$16:$M$64,12),IF(O15=24,VLOOKUP(N15,Figdata!$B$16:$N$64,13),"")))))) ->  | S15: =IF(O15=23,VLOOKUP(N15,Figdata!$B$16:$O$64,14),IF(O15=22,VLOOKUP(N15,Figdata!$B$16:$P$64,15),IF(O15=21,VLOOKUP(N15,Figdata!$B$16:$Q$64,16),IF(O15=20,VLOOKUP(N15,Figdata!$B$16:$R$64,17),IF(O15=19,VLOOKUP(N15,Figdata!$B$16:$S$64,18),IF(O15=18,VLOOKUP(N15,Figdata!$B$16:$T$64,19),"")))))) ->  | T15: =IF(O15=17,VLOOKUP(N15,Figdata!$B$16:$U$64,20),IF(O15=16,VLOOKUP(N15,Figdata!$B$16:$V$64,21),IF(O15=15,VLOOKUP(N15,Figdata!$B$16:$W$64,22),IF(O15=14,VLOOKUP(N15,Figdata!$B$16:$X$64,23),IF(O15=13,VLOOKUP(N15,Figdata!$B$16:$Y$64,24),IF(O15=12,VLOOKUP(N15,Figdata!$B$16:$Z$64,25),"")))))) ->  | U15: =IF(O15=11,VLOOKUP(N15,Figdata!$B$16:$AA$64,26),IF(O15=10,VLOOKUP(N15,Figdata!$B$16:$AB$64,27),IF(O15=9,VLOOKUP(N15,Figdata!$B$16:$AC$64,28),IF(O15=8,VLOOKUP(N15,Figdata!$B$16:$AD$64,29),IF(O15=7,VLOOKUP(N15,Figdata!$B$16:$AE$64,30),IF(O15=6,VLOOKUP(N15,Figdata!$B$16:$AF$64,31),IF(O15=5,VLOOKUP(N15,Figdata!$B$16:$AG$64,32),""))))))) ->  | V15: =IF(O15=4,VLOOKUP(N15,Figdata!$B$16:$AH$64,33),IF(O15=3,VLOOKUP(N15,Figdata!$B$16:$AI$64,34),IF(O15=2,VLOOKUP(N15,Figdata!$B$16:$AJ$64,35),IF(O15=1,VLOOKUP(N15,Figdata!$B$16:$AK$64,36),"")))) ->  | W15: 0 | Z15: ='PVR BH'!C27 -> 0 | AA15: =ROUND('PVR BH'!L27,0) -> 0 | AB15: 2 | AC15: =IF(AA15=35,VLOOKUP(Z15,Figdata!$B$15:$C$63,2),IF(AA15=34,VLOOKUP(Z15,Figdata!$B$15:$D$63,3),IF(AA15=33,VLOOKUP(Z15,Figdata!$B$15:$E$63,4),IF(AA15=32,VLOOKUP(Z15,Figdata!$B$15:$F$63,5),IF(AA15=31,VLOOKUP(Z15,Figdata!$B$15:$G$63,6),IF(AA15=30,VLOOKUP(Z15,Figdata!$B$15:$H$63,7),"")))))) ->  | AD15: =IF(AA15=29,VLOOKUP(Z15,Figdata!$B$16:$I$64,8),IF(AA15=28,VLOOKUP(Z15,Figdata!$B$16:$J$64,9),IF(AA15=27,VLOOKUP(Z15,Figdata!$B$16:$K$64,10),IF(AA15=26,VLOOKUP(Z15,Figdata!$B$16:$L$64,11),IF(AA15=25,VLOOKUP(Z15,Figdata!$B$16:$M$64,12),IF(AA15=24,VLOOKUP(Z15,Figdata!$B$16:$N$64,13),"")))))) ->  | AE15: =IF(AA15=23,VLOOKUP(Z15,Figdata!$B$16:$O$64,14),IF(AA15=22,VLOOKUP(Z15,Figdata!$B$16:$P$64,15),IF(AA15=21,VLOOKUP(Z15,Figdata!$B$16:$Q$64,16),IF(AA15=20,VLOOKUP(Z15,Figdata!$B$16:$R$64,17),IF(AA15=19,VLOOKUP(Z15,Figdata!$B$16:$S$64,18),IF(AA15=18,VLOOKUP(Z15,Figdata!$B$16:$T$64,19),"")))))) ->  | AF15: =IF(AA15=17,VLOOKUP(Z15,Figdata!$B$16:$U$64,20),IF(AA15=16,VLOOKUP(Z15,Figdata!$B$16:$V$64,21),IF(AA15=15,VLOOKUP(Z15,Figdata!$B$16:$W$64,22),IF(AA15=14,VLOOKUP(Z15,Figdata!$B$16:$X$64,23),IF(AA15=13,VLOOKUP(Z15,Figdata!$B$16:$Y$64,24),IF(AA15=12,VLOOKUP(Z15,Figdata!$B$16:$Z$64,25),"")))))) ->  | AG15: =IF(AA15=11,VLOOKUP(Z15,Figdata!$B$16:$AA$64,26),IF(AA15=10,VLOOKUP(Z15,Figdata!$B$16:$AB$64,27),IF(AA15=9,VLOOKUP(Z15,Figdata!$B$16:$AC$64,28),IF(AA15=8,VLOOKUP(Z15,Figdata!$B$16:$AD$64,29),IF(AA15=7,VLOOKUP(Z15,Figdata!$B$16:$AE$64,30),IF(AA15=6,VLOOKUP(Z15,Figdata!$B$16:$AF$64,31),IF(AA15=5,VLOOKUP(Z15,Figdata!$B$16:$AG$64,32),""))))))) ->  | AH15: =IF(AA15=4,VLOOKUP(Z15,Figdata!$B$16:$AH$64,33),IF(AA15=3,VLOOKUP(Z15,Figdata!$B$16:$AI$64,34),IF(AA15=2,VLOOKUP(Z15,Figdata!$B$16:$AJ$64,35),IF(AA15=1,VLOOKUP(Z15,Figdata!$B$16:$AK$64,36),"")))) ->  | AI15: 0
B16: 1.3 | C16: 1.9 | D16: =AVERAGE('PVR BH'!E27:F27) -> 5.5 | E16: =AVERAGE('PVR BH'!E27,D16) -> 7.25 | F16: =AVERAGE('PVR BH'!F27,D16) -> 3.75 | H16: =(0.217*'PVR BH'!J27)-2.9 -> -2.9 | I16: =(0.294*'PVR BH'!J27)-2.9 -> -2.9 | J16: =('PVR BH'!J27*0.325)-1.75 -> -1.75 | L16: =100-'PVR BH'!I27 -> 100 | N16: ='PVR BH'!C27 -> 0 | O16: =ROUND('PVR BH'!L28,0) -> 0 | P16: 3 | Q16: =IF(O16=35,VLOOKUP(N16,Figdata!$B$15:$C$63,2),IF(O16=34,VLOOKUP(N16,Figdata!$B$15:$D$63,3),IF(O16=33,VLOOKUP(N16,Figdata!$B$15:$E$63,4),IF(O16=32,VLOOKUP(N16,Figdata!$B$15:$F$63,5),IF(O16=31,VLOOKUP(N16,Figdata!$B$15:$G$63,6),IF(O16=30,VLOOKUP(N16,Figdata!$B$15:$H$63,7),"")))))) ->  | R16: =IF(O16=29,VLOOKUP(N16,Figdata!$B$16:$I$64,8),IF(O16=28,VLOOKUP(N16,Figdata!$B$16:$J$64,9),IF(O16=27,VLOOKUP(N16,Figdata!$B$16:$K$64,10),IF(O16=26,VLOOKUP(N16,Figdata!$B$16:$L$64,11),IF(O16=25,VLOOKUP(N16,Figdata!$B$16:$M$64,12),IF(O16=24,VLOOKUP(N16,Figdata!$B$16:$N$64,13),"")))))) ->  | S16: =IF(O16=23,VLOOKUP(N16,Figdata!$B$16:$O$64,14),IF(O16=22,VLOOKUP(N16,Figdata!$B$16:$P$64,15),IF(O16=21,VLOOKUP(N16,Figdata!$B$16:$Q$64,16),IF(O16=20,VLOOKUP(N16,Figdata!$B$16:$R$64,17),IF(O16=19,VLOOKUP(N16,Figdata!$B$16:$S$64,18),IF(O16=18,VLOOKUP(N16,Figdata!$B$16:$T$64,19),"")))))) ->  | T16: =IF(O16=17,VLOOKUP(N16,Figdata!$B$16:$U$64,20),IF(O16=16,VLOOKUP(N16,Figdata!$B$16:$V$64,21),IF(O16=15,VLOOKUP(N16,Figdata!$B$16:$W$64,22),IF(O16=14,VLOOKUP(N16,Figdata!$B$16:$X$64,23),IF(O16=13,VLOOKUP(N16,Figdata!$B$16:$Y$64,24),IF(O16=12,VLOOKUP(N16,Figdata!$B$16:$Z$64,25),"")))))) ->  | U16: =IF(O16=11,VLOOKUP(N16,Figdata!$B$16:$AA$64,26),IF(O16=10,VLOOKUP(N16,Figdata!$B$16:$AB$64,27),IF(O16=9,VLOOKUP(N16,Figdata!$B$16:$AC$64,28),IF(O16=8,VLOOKUP(N16,Figdata!$B$16:$AD$64,29),IF(O16=7,VLOOKUP(N16,Figdata!$B$16:$AE$64,30),IF(O16=6,VLOOKUP(N16,Figdata!$B$16:$AF$64,31),IF(O16=5,VLOOKUP(N16,Figdata!$B$16:$AG$64,32),""))))))) ->  | V16: =IF(O16=4,VLOOKUP(N16,Figdata!$B$16:$AH$64,33),IF(O16=3,VLOOKUP(N16,Figdata!$B$16:$AI$64,34),IF(O16=2,VLOOKUP(N16,Figdata!$B$16:$AJ$64,35),IF(O16=1,VLOOKUP(N16,Figdata!$B$16:$AK$64,36),"")))) ->  | W16: 0 | Z16: ='PVR BH'!C28 -> 0 | AA16: =ROUND('PVR BH'!L28,0) -> 0 | AB16: 3 | AC16: =IF(AA16=35,VLOOKUP(Z16,Figdata!$B$15:$C$63,2),IF(AA16=34,VLOOKUP(Z16,Figdata!$B$15:$D$63,3),IF(AA16=33,VLOOKUP(Z16,Figdata!$B$15:$E$63,4),IF(AA16=32,VLOOKUP(Z16,Figdata!$B$15:$F$63,5),IF(AA16=31,VLOOKUP(Z16,Figdata!$B$15:$G$63,6),IF(AA16=30,VLOOKUP(Z16,Figdata!$B$15:$H$63,7),"")))))) ->  | AD16: =IF(AA16=29,VLOOKUP(Z16,Figdata!$B$16:$I$64,8),IF(AA16=28,VLOOKUP(Z16,Figdata!$B$16:$J$64,9),IF(AA16=27,VLOOKUP(Z16,Figdata!$B$16:$K$64,10),IF(AA16=26,VLOOKUP(Z16,Figdata!$B$16:$L$64,11),IF(AA16=25,VLOOKUP(Z16,Figdata!$B$16:$M$64,12),IF(AA16=24,VLOOKUP(Z16,Figdata!$B$16:$N$64,13),"")))))) ->  | AE16: =IF(AA16=23,VLOOKUP(Z16,Figdata!$B$16:$O$64,14),IF(AA16=22,VLOOKUP(Z16,Figdata!$B$16:$P$64,15),IF(AA16=21,VLOOKUP(Z16,Figdata!$B$16:$Q$64,16),IF(AA16=20,VLOOKUP(Z16,Figdata!$B$16:$R$64,17),IF(AA16=19,VLOOKUP(Z16,Figdata!$B$16:$S$64,18),IF(AA16=18,VLOOKUP(Z16,Figdata!$B$16:$T$64,19),"")))))) ->  | AF16: =IF(AA16=17,VLOOKUP(Z16,Figdata!$B$16:$U$64,20),IF(AA16=16,VLOOKUP(Z16,Figdata!$B$16:$V$64,21),IF(AA16=15,VLOOKUP(Z16,Figdata!$B$16:$W$64,22),IF(AA16=14,VLOOKUP(Z16,Figdata!$B$16:$X$64,23),IF(AA16=13,VLOOKUP(Z16,Figdata!$B$16:$Y$64,24),IF(AA16=12,VLOOKUP(Z16,Figdata!$B$16:$Z$64,25),"")))))) ->  | AG16: =IF(AA16=11,VLOOKUP(Z16,Figdata!$B$16:$AA$64,26),IF(AA16=10,VLOOKUP(Z16,Figdata!$B$16:$AB$64,27),IF(AA16=9,VLOOKUP(Z16,Figdata!$B$16:$AC$64,28),IF(AA16=8,VLOOKUP(Z16,Figdata!$B$16:$AD$64,29),IF(AA16=7,VLOOKUP(Z16,Figdata!$B$16:$AE$64,30),IF(AA16=6,VLOOKUP(Z16,Figdata!$B$16:$AF$64,31),IF(AA16=5,VLOOKUP(Z16,Figdata!$B$16:$AG$64,32),""))))))) ->  | AH16: =IF(AA16=4,VLOOKUP(Z16,Figdata!$B$16:$AH$64,33),IF(AA16=3,VLOOKUP(Z16,Figdata!$B$16:$AI$64,34),IF(AA16=2,VLOOKUP(Z16,Figdata!$B$16:$AJ$64,35),IF(AA16=1,VLOOKUP(Z16,Figdata!$B$16:$AK$64,36),"")))) ->  | AI16: 0
B17: 1.7 | C17: 2.1 | D17: =AVERAGE('PVR BH'!E28:F28) -> 5.5 | E17: =AVERAGE('PVR BH'!E28,D17) -> 7.25 | F17: =AVERAGE('PVR BH'!F28,D17) -> 3.75 | H17: =(0.217*'PVR BH'!J28)-2.9 -> -2.9 | I17: =(0.294*'PVR BH'!J28)-2.9 -> -2.9 | J17: =('PVR BH'!J28*0.325)-1.75 -> -1.75 | L17: =100-'PVR BH'!I28 -> 100 | N17: ='PVR BH'!C28 -> 0 | O17: =ROUND('PVR BH'!L29,0) -> 0 | P17: 4 | Q17: =IF(O17=35,VLOOKUP(N17,Figdata!$B$15:$C$63,2),IF(O17=34,VLOOKUP(N17,Figdata!$B$15:$D$63,3),IF(O17=33,VLOOKUP(N17,Figdata!$B$15:$E$63,4),IF(O17=32,VLOOKUP(N17,Figdata!$B$15:$F$63,5),IF(O17=31,VLOOKUP(N17,Figdata!$B$15:$G$63,6),IF(O17=30,VLOOKUP(N17,Figdata!$B$15:$H$63,7),"")))))) ->  | R17: =IF(O17=29,VLOOKUP(N17,Figdata!$B$16:$I$64,8),IF(O17=28,VLOOKUP(N17,Figdata!$B$16:$J$64,9),IF(O17=27,VLOOKUP(N17,Figdata!$B$16:$K$64,10),IF(O17=26,VLOOKUP(N17,Figdata!$B$16:$L$64,11),IF(O17=25,VLOOKUP(N17,Figdata!$B$16:$M$64,12),IF(O17=24,VLOOKUP(N17,Figdata!$B$16:$N$64,13),"")))))) ->  | S17: =IF(O17=23,VLOOKUP(N17,Figdata!$B$16:$O$64,14),IF(O17=22,VLOOKUP(N17,Figdata!$B$16:$P$64,15),IF(O17=21,VLOOKUP(N17,Figdata!$B$16:$Q$64,16),IF(O17=20,VLOOKUP(N17,Figdata!$B$16:$R$64,17),IF(O17=19,VLOOKUP(N17,Figdata!$B$16:$S$64,18),IF(O17=18,VLOOKUP(N17,Figdata!$B$16:$T$64,19),"")))))) ->  | T17: =IF(O17=17,VLOOKUP(N17,Figdata!$B$16:$U$64,20),IF(O17=16,VLOOKUP(N17,Figdata!$B$16:$V$64,21),IF(O17=15,VLOOKUP(N17,Figdata!$B$16:$W$64,22),IF(O17=14,VLOOKUP(N17,Figdata!$B$16:$X$64,23),IF(O17=13,VLOOKUP(N17,Figdata!$B$16:$Y$64,24),IF(O17=12,VLOOKUP(N17,Figdata!$B$16:$Z$64,25),"")))))) ->  | U17: =IF(O17=11,VLOOKUP(N17,Figdata!$B$16:$AA$64,26),IF(O17=10,VLOOKUP(N17,Figdata!$B$16:$AB$64,27),IF(O17=9,VLOOKUP(N17,Figdata!$B$16:$AC$64,28),IF(O17=8,VLOOKUP(N17,Figdata!$B$16:$AD$64,29),IF(O17=7,VLOOKUP(N17,Figdata!$B$16:$AE$64,30),IF(O17=6,VLOOKUP(N17,Figdata!$B$16:$AF$64,31),IF(O17=5,VLOOKUP(N17,Figdata!$B$16:$AG$64,32),""))))))) ->  | V17: =IF(O17=4,VLOOKUP(N17,Figdata!$B$16:$AH$64,33),IF(O17=3,VLOOKUP(N17,Figdata!$B$16:$AI$64,34),IF(O17=2,VLOOKUP(N17,Figdata!$B$16:$AJ$64,35),IF(O17=1,VLOOKUP(N17,Figdata!$B$16:$AK$64,36),"")))) ->  | W17: 0 | Z17: ='PVR BH'!C29 -> 0 | AA17: =ROUND('PVR BH'!L29,0) -> 0 | AB17: 4 | AC17: =IF(AA17=35,VLOOKUP(Z17,Figdata!$B$15:$C$63,2),IF(AA17=34,VLOOKUP(Z17,Figdata!$B$15:$D$63,3),IF(AA17=33,VLOOKUP(Z17,Figdata!$B$15:$E$63,4),IF(AA17=32,VLOOKUP(Z17,Figdata!$B$15:$F$63,5),IF(AA17=31,VLOOKUP(Z17,Figdata!$B$15:$G$63,6),IF(AA17=30,VLOOKUP(Z17,Figdata!$B$15:$H$63,7),"")))))) ->  | AD17: =IF(AA17=29,VLOOKUP(Z17,Figdata!$B$16:$I$64,8),IF(AA17=28,VLOOKUP(Z17,Figdata!$B$16:$J$64,9),IF(AA17=27,VLOOKUP(Z17,Figdata!$B$16:$K$64,10),IF(AA17=26,VLOOKUP(Z17,Figdata!$B$16:$L$64,11),IF(AA17=25,VLOOKUP(Z17,Figdata!$B$16:$M$64,12),IF(AA17=24,VLOOKUP(Z17,Figdata!$B$16:$N$64,13),"")))))) ->  | AE17: =IF(AA17=23,VLOOKUP(Z17,Figdata!$B$16:$O$64,14),IF(AA17=22,VLOOKUP(Z17,Figdata!$B$16:$P$64,15),IF(AA17=21,VLOOKUP(Z17,Figdata!$B$16:$Q$64,16),IF(AA17=20,VLOOKUP(Z17,Figdata!$B$16:$R$64,17),IF(AA17=19,VLOOKUP(Z17,Figdata!$B$16:$S$64,18),IF(AA17=18,VLOOKUP(Z17,Figdata!$B$16:$T$64,19),"")))))) ->  | AF17: =IF(AA17=17,VLOOKUP(Z17,Figdata!$B$16:$U$64,20),IF(AA17=16,VLOOKUP(Z17,Figdata!$B$16:$V$64,21),IF(AA17=15,VLOOKUP(Z17,Figdata!$B$16:$W$64,22),IF(AA17=14,VLOOKUP(Z17,Figdata!$B$16:$X$64,23),IF(AA17=13,VLOOKUP(Z17,Figdata!$B$16:$Y$64,24),IF(AA17=12,VLOOKUP(Z17,Figdata!$B$16:$Z$64,25),"")))))) ->  | AG17: =IF(AA17=11,VLOOKUP(Z17,Figdata!$B$16:$AA$64,26),IF(AA17=10,VLOOKUP(Z17,Figdata!$B$16:$AB$64,27),IF(AA17=9,VLOOKUP(Z17,Figdata!$B$16:$AC$64,28),IF(AA17=8,VLOOKUP(Z17,Figdata!$B$16:$AD$64,29),IF(AA17=7,VLOOKUP(Z17,Figdata!$B$16:$AE$64,30),IF(AA17=6,VLOOKUP(Z17,Figdata!$B$16:$AF$64,31),IF(AA17=5,VLOOKUP(Z17,Figdata!$B$16:$AG$64,32),""))))))) ->  | AH17: =IF(AA17=4,VLOOKUP(Z17,Figdata!$B$16:$AH$64,33),IF(AA17=3,VLOOKUP(Z17,Figdata!$B$16:$AI$64,34),IF(AA17=2,VLOOKUP(Z17,Figdata!$B$16:$AJ$64,35),IF(AA17=1,VLOOKUP(Z17,Figdata!$B$16:$AK$64,36),"")))) ->  | AI17: 0
B18: 3.2 | C18: 3.7 | D18: =AVERAGE('PVR BH'!E29:F29) -> 5.5 | E18: =AVERAGE('PVR BH'!E29,D18) -> 7.25 | F18: =AVERAGE('PVR BH'!F29,D18) -> 3.75 | H18: =(0.217*'PVR BH'!J29)-2.9 -> -2.9 | I18: =(0.294*'PVR BH'!J29)-2.9 -> -2.9 | J18: =('PVR BH'!J29*0.325)-1.75 -> -1.75 | L18: =100-'PVR BH'!I29 -> 100 | M18: * | N18: ='PVR BH'!C29 -> 0 | O18: =ROUND('PVR BH'!L30,0) -> 0 | P18: 5 | Q18: =IF(O18=35,VLOOKUP(N18,Figdata!$B$15:$C$63,2),IF(O18=34,VLOOKUP(N18,Figdata!$B$15:$D$63,3),IF(O18=33,VLOOKUP(N18,Figdata!$B$15:$E$63,4),IF(O18=32,VLOOKUP(N18,Figdata!$B$15:$F$63,5),IF(O18=31,VLOOKUP(N18,Figdata!$B$15:$G$63,6),IF(O18=30,VLOOKUP(N18,Figdata!$B$15:$H$63,7),"")))))) ->  | R18: =IF(O18=29,VLOOKUP(N18,Figdata!$B$16:$I$64,8),IF(O18=28,VLOOKUP(N18,Figdata!$B$16:$J$64,9),IF(O18=27,VLOOKUP(N18,Figdata!$B$16:$K$64,10),IF(O18=26,VLOOKUP(N18,Figdata!$B$16:$L$64,11),IF(O18=25,VLOOKUP(N18,Figdata!$B$16:$M$64,12),IF(O18=24,VLOOKUP(N18,Figdata!$B$16:$N$64,13),"")))))) ->  | S18: =IF(O18=23,VLOOKUP(N18,Figdata!$B$16:$O$64,14),IF(O18=22,VLOOKUP(N18,Figdata!$B$16:$P$64,15),IF(O18=21,VLOOKUP(N18,Figdata!$B$16:$Q$64,16),IF(O18=20,VLOOKUP(N18,Figdata!$B$16:$R$64,17),IF(O18=19,VLOOKUP(N18,Figdata!$B$16:$S$64,18),IF(O18=18,VLOOKUP(N18,Figdata!$B$16:$T$64,19),"")))))) ->  | T18: =IF(O18=17,VLOOKUP(N18,Figdata!$B$16:$U$64,20),IF(O18=16,VLOOKUP(N18,Figdata!$B$16:$V$64,21),IF(O18=15,VLOOKUP(N18,Figdata!$B$16:$W$64,22),IF(O18=14,VLOOKUP(N18,Figdata!$B$16:$X$64,23),IF(O18=13,VLOOKUP(N18,Figdata!$B$16:$Y$64,24),IF(O18=12,VLOOKUP(N18,Figdata!$B$16:$Z$64,25),"")))))) ->  | U18: =IF(O18=11,VLOOKUP(N18,Figdata!$B$16:$AA$64,26),IF(O18=10,VLOOKUP(N18,Figdata!$B$16:$AB$64,27),IF(O18=9,VLOOKUP(N18,Figdata!$B$16:$AC$64,28),IF(O18=8,VLOOKUP(N18,Figdata!$B$16:$AD$64,29),IF(O18=7,VLOOKUP(N18,Figdata!$B$16:$AE$64,30),IF(O18=6,VLOOKUP(N18,Figdata!$B$16:$AF$64,31),IF(O18=5,VLOOKUP(N18,Figdata!$B$16:$AG$64,32),""))))))) ->  | V18: =IF(O18=4,VLOOKUP(N18,Figdata!$B$16:$AH$64,33),IF(O18=3,VLOOKUP(N18,Figdata!$B$16:$AI$64,34),IF(O18=2,VLOOKUP(N18,Figdata!$B$16:$AJ$64,35),IF(O18=1,VLOOKUP(N18,Figdata!$B$16:$AK$64,36),"")))) ->  | W18: 0 | Z18: ='PVR BH'!C30 -> 0 | AA18: =ROUND('PVR BH'!L30,0) -> 0 | AB18: 5 | AC18: =IF(AA18=35,VLOOKUP(Z18,Figdata!$B$15:$C$63,2),IF(AA18=34,VLOOKUP(Z18,Figdata!$B$15:$D$63,3),IF(AA18=33,VLOOKUP(Z18,Figdata!$B$15:$E$63,4),IF(AA18=32,VLOOKUP(Z18,Figdata!$B$15:$F$63,5),IF(AA18=31,VLOOKUP(Z18,Figdata!$B$15:$G$63,6),IF(AA18=30,VLOOKUP(Z18,Figdata!$B$15:$H$63,7),"")))))) ->  | AD18: =IF(AA18=29,VLOOKUP(Z18,Figdata!$B$16:$I$64,8),IF(AA18=28,VLOOKUP(Z18,Figdata!$B$16:$J$64,9),IF(AA18=27,VLOOKUP(Z18,Figdata!$B$16:$K$64,10),IF(AA18=26,VLOOKUP(Z18,Figdata!$B$16:$L$64,11),IF(AA18=25,VLOOKUP(Z18,Figdata!$B$16:$M$64,12),IF(AA18=24,VLOOKUP(Z18,Figdata!$B$16:$N$64,13),"")))))) ->  | AE18: =IF(AA18=23,VLOOKUP(Z18,Figdata!$B$16:$O$64,14),IF(AA18=22,VLOOKUP(Z18,Figdata!$B$16:$P$64,15),IF(AA18=21,VLOOKUP(Z18,Figdata!$B$16:$Q$64,16),IF(AA18=20,VLOOKUP(Z18,Figdata!$B$16:$R$64,17),IF(AA18=19,VLOOKUP(Z18,Figdata!$B$16:$S$64,18),IF(AA18=18,VLOOKUP(Z18,Figdata!$B$16:$T$64,19),"")))))) ->  | AF18: =IF(AA18=17,VLOOKUP(Z18,Figdata!$B$16:$U$64,20),IF(AA18=16,VLOOKUP(Z18,Figdata!$B$16:$V$64,21),IF(AA18=15,VLOOKUP(Z18,Figdata!$B$16:$W$64,22),IF(AA18=14,VLOOKUP(Z18,Figdata!$B$16:$X$64,23),IF(AA18=13,VLOOKUP(Z18,Figdata!$B$16:$Y$64,24),IF(AA18=12,VLOOKUP(Z18,Figdata!$B$16:$Z$64,25),"")))))) ->  | AG18: =IF(AA18=11,VLOOKUP(Z18,Figdata!$B$16:$AA$64,26),IF(AA18=10,VLOOKUP(Z18,Figdata!$B$16:$AB$64,27),IF(AA18=9,VLOOKUP(Z18,Figdata!$B$16:$AC$64,28),IF(AA18=8,VLOOKUP(Z18,Figdata!$B$16:$AD$64,29),IF(AA18=7,VLOOKUP(Z18,Figdata!$B$16:$AE$64,30),IF(AA18=6,VLOOKUP(Z18,Figdata!$B$16:$AF$64,31),IF(AA18=5,VLOOKUP(Z18,Figdata!$B$16:$AG$64,32),""))))))) ->  | AH18: =IF(AA18=4,VLOOKUP(Z18,Figdata!$B$16:$AH$64,33),IF(AA18=3,VLOOKUP(Z18,Figdata!$B$16:$AI$64,34),IF(AA18=2,VLOOKUP(Z18,Figdata!$B$16:$AJ$64,35),IF(AA18=1,VLOOKUP(Z18,Figdata!$B$16:$AK$64,36),"")))) ->  | AI18: 0
B19: 3.7 | C19: 4.1 | D19: =AVERAGE('PVR BH'!E30:F30) -> 5.5 | E19: =AVERAGE('PVR BH'!E30,D19) -> 7.25 | F19: =AVERAGE('PVR BH'!F30,D19) -> 3.75 | H19: =(0.217*'PVR BH'!J30)-2.9 -> -2.9 | I19: =(0.294*'PVR BH'!J30)-2.9 -> -2.9 | J19: =('PVR BH'!J30*0.325)-1.75 -> -1.75 | L19: =100-'PVR BH'!I30 -> 100 | N19: ='PVR BH'!C30 -> 0 | O19: =ROUND('PVR BH'!L31,0) -> 0 | P19: 6 | Q19: =IF(O19=35,VLOOKUP(N19,Figdata!$B$15:$C$63,2),IF(O19=34,VLOOKUP(N19,Figdata!$B$15:$D$63,3),IF(O19=33,VLOOKUP(N19,Figdata!$B$15:$E$63,4),IF(O19=32,VLOOKUP(N19,Figdata!$B$15:$F$63,5),IF(O19=31,VLOOKUP(N19,Figdata!$B$15:$G$63,6),IF(O19=30,VLOOKUP(N19,Figdata!$B$15:$H$63,7),"")))))) ->  | R19: =IF(O19=29,VLOOKUP(N19,Figdata!$B$16:$I$64,8),IF(O19=28,VLOOKUP(N19,Figdata!$B$16:$J$64,9),IF(O19=27,VLOOKUP(N19,Figdata!$B$16:$K$64,10),IF(O19=26,VLOOKUP(N19,Figdata!$B$16:$L$64,11),IF(O19=25,VLOOKUP(N19,Figdata!$B$16:$M$64,12),IF(O19=24,VLOOKUP(N19,Figdata!$B$16:$N$64,13),"")))))) ->  | S19: =IF(O19=23,VLOOKUP(N19,Figdata!$B$16:$O$64,14),IF(O19=22,VLOOKUP(N19,Figdata!$B$16:$P$64,15),IF(O19=21,VLOOKUP(N19,Figdata!$B$16:$Q$64,16),IF(O19=20,VLOOKUP(N19,Figdata!$B$16:$R$64,17),IF(O19=19,VLOOKUP(N19,Figdata!$B$16:$S$64,18),IF(O19=18,VLOOKUP(N19,Figdata!$B$16:$T$64,19),"")))))) ->  | T19: =IF(O19=17,VLOOKUP(N19,Figdata!$B$16:$U$64,20),IF(O19=16,VLOOKUP(N19,Figdata!$B$16:$V$64,21),IF(O19=15,VLOOKUP(N19,Figdata!$B$16:$W$64,22),IF(O19=14,VLOOKUP(N19,Figdata!$B$16:$X$64,23),IF(O19=13,VLOOKUP(N19,Figdata!$B$16:$Y$64,24),IF(O19=12,VLOOKUP(N19,Figdata!$B$16:$Z$64,25),"")))))) ->  | U19: =IF(O19=11,VLOOKUP(N19,Figdata!$B$16:$AA$64,26),IF(O19=10,VLOOKUP(N19,Figdata!$B$16:$AB$64,27),IF(O19=9,VLOOKUP(N19,Figdata!$B$16:$AC$64,28),IF(O19=8,VLOOKUP(N19,Figdata!$B$16:$AD$64,29),IF(O19=7,VLOOKUP(N19,Figdata!$B$16:$AE$64,30),IF(O19=6,VLOOKUP(N19,Figdata!$B$16:$AF$64,31),IF(O19=5,VLOOKUP(N19,Figdata!$B$16:$AG$64,32),""))))))) ->  | V19: =IF(O19=4,VLOOKUP(N19,Figdata!$B$16:$AH$64,33),IF(O19=3,VLOOKUP(N19,Figdata!$B$16:$AI$64,34),IF(O19=2,VLOOKUP(N19,Figdata!$B$16:$AJ$64,35),IF(O19=1,VLOOKUP(N19,Figdata!$B$16:$AK$64,36),"")))) ->  | W19: 0 | Z19: ='PVR BH'!C31 -> 0 | AA19: =ROUND('PVR BH'!L31,0) -> 0 | AB19: 6 | AC19: =IF(AA19=35,VLOOKUP(Z19,Figdata!$B$15:$C$63,2),IF(AA19=34,VLOOKUP(Z19,Figdata!$B$15:$D$63,3),IF(AA19=33,VLOOKUP(Z19,Figdata!$B$15:$E$63,4),IF(AA19=32,VLOOKUP(Z19,Figdata!$B$15:$F$63,5),IF(AA19=31,VLOOKUP(Z19,Figdata!$B$15:$G$63,6),IF(AA19=30,VLOOKUP(Z19,Figdata!$B$15:$H$63,7),"")))))) ->  | AD19: =IF(AA19=29,VLOOKUP(Z19,Figdata!$B$16:$I$64,8),IF(AA19=28,VLOOKUP(Z19,Figdata!$B$16:$J$64,9),IF(AA19=27,VLOOKUP(Z19,Figdata!$B$16:$K$64,10),IF(AA19=26,VLOOKUP(Z19,Figdata!$B$16:$L$64,11),IF(AA19=25,VLOOKUP(Z19,Figdata!$B$16:$M$64,12),IF(AA19=24,VLOOKUP(Z19,Figdata!$B$16:$N$64,13),"")))))) ->  | AE19: =IF(AA19=23,VLOOKUP(Z19,Figdata!$B$16:$O$64,14),IF(AA19=22,VLOOKUP(Z19,Figdata!$B$16:$P$64,15),IF(AA19=21,VLOOKUP(Z19,Figdata!$B$16:$Q$64,16),IF(AA19=20,VLOOKUP(Z19,Figdata!$B$16:$R$64,17),IF(AA19=19,VLOOKUP(Z19,Figdata!$B$16:$S$64,18),IF(AA19=18,VLOOKUP(Z19,Figdata!$B$16:$T$64,19),"")))))) ->  | AF19: =IF(AA19=17,VLOOKUP(Z19,Figdata!$B$16:$U$64,20),IF(AA19=16,VLOOKUP(Z19,Figdata!$B$16:$V$64,21),IF(AA19=15,VLOOKUP(Z19,Figdata!$B$16:$W$64,22),IF(AA19=14,VLOOKUP(Z19,Figdata!$B$16:$X$64,23),IF(AA19=13,VLOOKUP(Z19,Figdata!$B$16:$Y$64,24),IF(AA19=12,VLOOKUP(Z19,Figdata!$B$16:$Z$64,25),"")))))) ->  | AG19: =IF(AA19=11,VLOOKUP(Z19,Figdata!$B$16:$AA$64,26),IF(AA19=10,VLOOKUP(Z19,Figdata!$B$16:$AB$64,27),IF(AA19=9,VLOOKUP(Z19,Figdata!$B$16:$AC$64,28),IF(AA19=8,VLOOKUP(Z19,Figdata!$B$16:$AD$64,29),IF(AA19=7,VLOOKUP(Z19,Figdata!$B$16:$AE$64,30),IF(AA19=6,VLOOKUP(Z19,Figdata!$B$16:$AF$64,31),IF(AA19=5,VLOOKUP(Z19,Figdata!$B$16:$AG$64,32),""))))))) ->  | AH19: =IF(AA19=4,VLOOKUP(Z19,Figdata!$B$16:$AH$64,33),IF(AA19=3,VLOOKUP(Z19,Figdata!$B$16:$AI$64,34),IF(AA19=2,VLOOKUP(Z19,Figdata!$B$16:$AJ$64,35),IF(AA19=1,VLOOKUP(Z19,Figdata!$B$16:$AK$64,36),"")))) ->  | AI19: 0
B20: 2.2 | C20: 2.4 | D20: =AVERAGE('PVR BH'!E31:F31) -> 5.5 | E20: =AVERAGE('PVR BH'!E31,D20) -> 7.25 | F20: =AVERAGE('PVR BH'!F31,D20) -> 3.75 | H20: =(0.217*'PVR BH'!J31)-2.9 -> -2.9 | I20: =(0.294*'PVR BH'!J31)-2.9 -> -2.9 | J20: =('PVR BH'!J31*0.325)-1.75 -> -1.75 | L20: =100-'PVR BH'!I31 -> 100 | N20: ='PVR BH'!C31 -> 0 | O20: =ROUND('PVR BH'!L32,0) -> 0 | P20: 7 | Q20: =IF(O20=35,VLOOKUP(N20,Figdata!$B$15:$C$63,2),IF(O20=34,VLOOKUP(N20,Figdata!$B$15:$D$63,3),IF(O20=33,VLOOKUP(N20,Figdata!$B$15:$E$63,4),IF(O20=32,VLOOKUP(N20,Figdata!$B$15:$F$63,5),IF(O20=31,VLOOKUP(N20,Figdata!$B$15:$G$63,6),IF(O20=30,VLOOKUP(N20,Figdata!$B$15:$H$63,7),"")))))) ->  | R20: =IF(O20=29,VLOOKUP(N20,Figdata!$B$16:$I$64,8),IF(O20=28,VLOOKUP(N20,Figdata!$B$16:$J$64,9),IF(O20=27,VLOOKUP(N20,Figdata!$B$16:$K$64,10),IF(O20=26,VLOOKUP(N20,Figdata!$B$16:$L$64,11),IF(O20=25,VLOOKUP(N20,Figdata!$B$16:$M$64,12),IF(O20=24,VLOOKUP(N20,Figdata!$B$16:$N$64,13),"")))))) ->  | S20: =IF(O20=23,VLOOKUP(N20,Figdata!$B$16:$O$64,14),IF(O20=22,VLOOKUP(N20,Figdata!$B$16:$P$64,15),IF(O20=21,VLOOKUP(N20,Figdata!$B$16:$Q$64,16),IF(O20=20,VLOOKUP(N20,Figdata!$B$16:$R$64,17),IF(O20=19,VLOOKUP(N20,Figdata!$B$16:$S$64,18),IF(O20=18,VLOOKUP(N20,Figdata!$B$16:$T$64,19),"")))))) ->  | T20: =IF(O20=17,VLOOKUP(N20,Figdata!$B$16:$U$64,20),IF(O20=16,VLOOKUP(N20,Figdata!$B$16:$V$64,21),IF(O20=15,VLOOKUP(N20,Figdata!$B$16:$W$64,22),IF(O20=14,VLOOKUP(N20,Figdata!$B$16:$X$64,23),IF(O20=13,VLOOKUP(N20,Figdata!$B$16:$Y$64,24),IF(O20=12,VLOOKUP(N20,Figdata!$B$16:$Z$64,25),"")))))) ->  | U20: =IF(O20=11,VLOOKUP(N20,Figdata!$B$16:$AA$64,26),IF(O20=10,VLOOKUP(N20,Figdata!$B$16:$AB$64,27),IF(O20=9,VLOOKUP(N20,Figdata!$B$16:$AC$64,28),IF(O20=8,VLOOKUP(N20,Figdata!$B$16:$AD$64,29),IF(O20=7,VLOOKUP(N20,Figdata!$B$16:$AE$64,30),IF(O20=6,VLOOKUP(N20,Figdata!$B$16:$AF$64,31),IF(O20=5,VLOOKUP(N20,Figdata!$B$16:$AG$64,32),""))))))) ->  | V20: =IF(O20=4,VLOOKUP(N20,Figdata!$B$16:$AH$64,33),IF(O20=3,VLOOKUP(N20,Figdata!$B$16:$AI$64,34),IF(O20=2,VLOOKUP(N20,Figdata!$B$16:$AJ$64,35),IF(O20=1,VLOOKUP(N20,Figdata!$B$16:$AK$64,36),"")))) ->  | W20: 0 | Z20: ='PVR BH'!C32 -> 0 | AA20: =ROUND('PVR BH'!L32,0) -> 0 | AB20: 7 | AC20: =IF(AA20=35,VLOOKUP(Z20,Figdata!$B$15:$C$63,2),IF(AA20=34,VLOOKUP(Z20,Figdata!$B$15:$D$63,3),IF(AA20=33,VLOOKUP(Z20,Figdata!$B$15:$E$63,4),IF(AA20=32,VLOOKUP(Z20,Figdata!$B$15:$F$63,5),IF(AA20=31,VLOOKUP(Z20,Figdata!$B$15:$G$63,6),IF(AA20=30,VLOOKUP(Z20,Figdata!$B$15:$H$63,7),"")))))) ->  | AD20: =IF(AA20=29,VLOOKUP(Z20,Figdata!$B$16:$I$64,8),IF(AA20=28,VLOOKUP(Z20,Figdata!$B$16:$J$64,9),IF(AA20=27,VLOOKUP(Z20,Figdata!$B$16:$K$64,10),IF(AA20=26,VLOOKUP(Z20,Figdata!$B$16:$L$64,11),IF(AA20=25,VLOOKUP(Z20,Figdata!$B$16:$M$64,12),IF(AA20=24,VLOOKUP(Z20,Figdata!$B$16:$N$64,13),"")))))) ->  | AE20: =IF(AA20=23,VLOOKUP(Z20,Figdata!$B$16:$O$64,14),IF(AA20=22,VLOOKUP(Z20,Figdata!$B$16:$P$64,15),IF(AA20=21,VLOOKUP(Z20,Figdata!$B$16:$Q$64,16),IF(AA20=20,VLOOKUP(Z20,Figdata!$B$16:$R$64,17),IF(AA20=19,VLOOKUP(Z20,Figdata!$B$16:$S$64,18),IF(AA20=18,VLOOKUP(Z20,Figdata!$B$16:$T$64,19),"")))))) ->  | AF20: =IF(AA20=17,VLOOKUP(Z20,Figdata!$B$16:$U$64,20),IF(AA20=16,VLOOKUP(Z20,Figdata!$B$16:$V$64,21),IF(AA20=15,VLOOKUP(Z20,Figdata!$B$16:$W$64,22),IF(AA20=14,VLOOKUP(Z20,Figdata!$B$16:$X$64,23),IF(AA20=13,VLOOKUP(Z20,Figdata!$B$16:$Y$64,24),IF(AA20=12,VLOOKUP(Z20,Figdata!$B$16:$Z$64,25),"")))))) ->  | AG20: =IF(AA20=11,VLOOKUP(Z20,Figdata!$B$16:$AA$64,26),IF(AA20=10,VLOOKUP(Z20,Figdata!$B$16:$AB$64,27),IF(AA20=9,VLOOKUP(Z20,Figdata!$B$16:$AC$64,28),IF(AA20=8,VLOOKUP(Z20,Figdata!$B$16:$AD$64,29),IF(AA20=7,VLOOKUP(Z20,Figdata!$B$16:$AE$64,30),IF(AA20=6,VLOOKUP(Z20,Figdata!$B$16:$AF$64,31),IF(AA20=5,VLOOKUP(Z20,Figdata!$B$16:$AG$64,32),""))))))) ->  | AH20: =IF(AA20=4,VLOOKUP(Z20,Figdata!$B$16:$AH$64,33),IF(AA20=3,VLOOKUP(Z20,Figdata!$B$16:$AI$64,34),IF(AA20=2,VLOOKUP(Z20,Figdata!$B$16:$AJ$64,35),IF(AA20=1,VLOOKUP(Z20,Figdata!$B$16:$AK$64,36),"")))) ->  | AI20: 0
B21: 2.4 | C21: 2.5 | D21: =AVERAGE('PVR BH'!E32:F32) -> 5.5 | E21: =AVERAGE('PVR BH'!E32,D21) -> 7.25 | F21: =AVERAGE('PVR BH'!F32,D21) -> 3.75 | H21: =(0.217*'PVR BH'!J32)-2.9 -> -2.9 | I21: =(0.294*'PVR BH'!J32)-2.9 -> -2.9 | J21: =('PVR BH'!J32*0.325)-1.75 -> -1.75 | L21: =100-'PVR BH'!I32 -> 100 | M21: * | N21: ='PVR BH'!C32 -> 0 | O21: =ROUND('PVR BH'!L33,0) -> 0 | P21: 8 | Q21: =IF(O21=35,VLOOKUP(N21,Figdata!$B$15:$C$63,2),IF(O21=34,VLOOKUP(N21,Figdata!$B$15:$D$63,3),IF(O21=33,VLOOKUP(N21,Figdata!$B$15:$E$63,4),IF(O21=32,VLOOKUP(N21,Figdata!$B$15:$F$63,5),IF(O21=31,VLOOKUP(N21,Figdata!$B$15:$G$63,6),IF(O21=30,VLOOKUP(N21,Figdata!$B$15:$H$63,7),"")))))) ->  | R21: =IF(O21=29,VLOOKUP(N21,Figdata!$B$16:$I$64,8),IF(O21=28,VLOOKUP(N21,Figdata!$B$16:$J$64,9),IF(O21=27,VLOOKUP(N21,Figdata!$B$16:$K$64,10),IF(O21=26,VLOOKUP(N21,Figdata!$B$16:$L$64,11),IF(O21=25,VLOOKUP(N21,Figdata!$B$16:$M$64,12),IF(O21=24,VLOOKUP(N21,Figdata!$B$16:$N$64,13),"")))))) ->  | S21: =IF(O21=23,VLOOKUP(N21,Figdata!$B$16:$O$64,14),IF(O21=22,VLOOKUP(N21,Figdata!$B$16:$P$64,15),IF(O21=21,VLOOKUP(N21,Figdata!$B$16:$Q$64,16),IF(O21=20,VLOOKUP(N21,Figdata!$B$16:$R$64,17),IF(O21=19,VLOOKUP(N21,Figdata!$B$16:$S$64,18),IF(O21=18,VLOOKUP(N21,Figdata!$B$16:$T$64,19),"")))))) ->  | T21: =IF(O21=17,VLOOKUP(N21,Figdata!$B$16:$U$64,20),IF(O21=16,VLOOKUP(N21,Figdata!$B$16:$V$64,21),IF(O21=15,VLOOKUP(N21,Figdata!$B$16:$W$64,22),IF(O21=14,VLOOKUP(N21,Figdata!$B$16:$X$64,23),IF(O21=13,VLOOKUP(N21,Figdata!$B$16:$Y$64,24),IF(O21=12,VLOOKUP(N21,Figdata!$B$16:$Z$64,25),"")))))) ->  | U21: =IF(O21=11,VLOOKUP(N21,Figdata!$B$16:$AA$64,26),IF(O21=10,VLOOKUP(N21,Figdata!$B$16:$AB$64,27),IF(O21=9,VLOOKUP(N21,Figdata!$B$16:$AC$64,28),IF(O21=8,VLOOKUP(N21,Figdata!$B$16:$AD$64,29),IF(O21=7,VLOOKUP(N21,Figdata!$B$16:$AE$64,30),IF(O21=6,VLOOKUP(N21,Figdata!$B$16:$AF$64,31),IF(O21=5,VLOOKUP(N21,Figdata!$B$16:$AG$64,32),""))))))) ->  | V21: =IF(O21=4,VLOOKUP(N21,Figdata!$B$16:$AH$64,33),IF(O21=3,VLOOKUP(N21,Figdata!$B$16:$AI$64,34),IF(O21=2,VLOOKUP(N21,Figdata!$B$16:$AJ$64,35),IF(O21=1,VLOOKUP(N21,Figdata!$B$16:$AK$64,36),"")))) ->  | W21: 0 | Z21: ='PVR BH'!C33 -> 0 | AA21: =ROUND('PVR BH'!L33,0) -> 0 | AB21: 8 | AC21: =IF(AA21=35,VLOOKUP(Z21,Figdata!$B$15:$C$63,2),IF(AA21=34,VLOOKUP(Z21,Figdata!$B$15:$D$63,3),IF(AA21=33,VLOOKUP(Z21,Figdata!$B$15:$E$63,4),IF(AA21=32,VLOOKUP(Z21,Figdata!$B$15:$F$63,5),IF(AA21=31,VLOOKUP(Z21,Figdata!$B$15:$G$63,6),IF(AA21=30,VLOOKUP(Z21,Figdata!$B$15:$H$63,7),"")))))) ->  | AD21: =IF(AA21=29,VLOOKUP(Z21,Figdata!$B$16:$I$64,8),IF(AA21=28,VLOOKUP(Z21,Figdata!$B$16:$J$64,9),IF(AA21=27,VLOOKUP(Z21,Figdata!$B$16:$K$64,10),IF(AA21=26,VLOOKUP(Z21,Figdata!$B$16:$L$64,11),IF(AA21=25,VLOOKUP(Z21,Figdata!$B$16:$M$64,12),IF(AA21=24,VLOOKUP(Z21,Figdata!$B$16:$N$64,13),"")))))) ->  | AE21: =IF(AA21=23,VLOOKUP(Z21,Figdata!$B$16:$O$64,14),IF(AA21=22,VLOOKUP(Z21,Figdata!$B$16:$P$64,15),IF(AA21=21,VLOOKUP(Z21,Figdata!$B$16:$Q$64,16),IF(AA21=20,VLOOKUP(Z21,Figdata!$B$16:$R$64,17),IF(AA21=19,VLOOKUP(Z21,Figdata!$B$16:$S$64,18),IF(AA21=18,VLOOKUP(Z21,Figdata!$B$16:$T$64,19),"")))))) ->  | AF21: =IF(AA21=17,VLOOKUP(Z21,Figdata!$B$16:$U$64,20),IF(AA21=16,VLOOKUP(Z21,Figdata!$B$16:$V$64,21),IF(AA21=15,VLOOKUP(Z21,Figdata!$B$16:$W$64,22),IF(AA21=14,VLOOKUP(Z21,Figdata!$B$16:$X$64,23),IF(AA21=13,VLOOKUP(Z21,Figdata!$B$16:$Y$64,24),IF(AA21=12,VLOOKUP(Z21,Figdata!$B$16:$Z$64,25),"")))))) ->  | AG21: =IF(AA21=11,VLOOKUP(Z21,Figdata!$B$16:$AA$64,26),IF(AA21=10,VLOOKUP(Z21,Figdata!$B$16:$AB$64,27),IF(AA21=9,VLOOKUP(Z21,Figdata!$B$16:$AC$64,28),IF(AA21=8,VLOOKUP(Z21,Figdata!$B$16:$AD$64,29),IF(AA21=7,VLOOKUP(Z21,Figdata!$B$16:$AE$64,30),IF(AA21=6,VLOOKUP(Z21,Figdata!$B$16:$AF$64,31),IF(AA21=5,VLOOKUP(Z21,Figdata!$B$16:$AG$64,32),""))))))) ->  | AH21: =IF(AA21=4,VLOOKUP(Z21,Figdata!$B$16:$AH$64,33),IF(AA21=3,VLOOKUP(Z21,Figdata!$B$16:$AI$64,34),IF(AA21=2,VLOOKUP(Z21,Figdata!$B$16:$AJ$64,35),IF(AA21=1,VLOOKUP(Z21,Figdata!$B$16:$AK$64,36),"")))) ->  | AI21: 0
B22: 1.9 | C22: 1.95 | D22: =AVERAGE('PVR BH'!E33:F33) -> 5.5 | E22: =AVERAGE('PVR BH'!E33,D22) -> 7.25 | F22: =AVERAGE('PVR BH'!F33,D22) -> 3.75 | H22: =(0.217*'PVR BH'!J33)-2.9 -> -2.9 | I22: =(0.294*'PVR BH'!J33)-2.9 -> -2.9 | J22: =('PVR BH'!J33*0.325)-1.75 -> -1.75 | L22: =100-'PVR BH'!I33 -> 100 | N22: ='PVR BH'!C33 -> 0 | O22: =ROUND('PVR BH'!L34,0) -> 0 | P22: 9 | Q22: =IF(O22=35,VLOOKUP(N22,Figdata!$B$15:$C$63,2),IF(O22=34,VLOOKUP(N22,Figdata!$B$15:$D$63,3),IF(O22=33,VLOOKUP(N22,Figdata!$B$15:$E$63,4),IF(O22=32,VLOOKUP(N22,Figdata!$B$15:$F$63,5),IF(O22=31,VLOOKUP(N22,Figdata!$B$15:$G$63,6),IF(O22=30,VLOOKUP(N22,Figdata!$B$15:$H$63,7),"")))))) ->  | R22: =IF(O22=29,VLOOKUP(N22,Figdata!$B$16:$I$64,8),IF(O22=28,VLOOKUP(N22,Figdata!$B$16:$J$64,9),IF(O22=27,VLOOKUP(N22,Figdata!$B$16:$K$64,10),IF(O22=26,VLOOKUP(N22,Figdata!$B$16:$L$64,11),IF(O22=25,VLOOKUP(N22,Figdata!$B$16:$M$64,12),IF(O22=24,VLOOKUP(N22,Figdata!$B$16:$N$64,13),"")))))) ->  | S22: =IF(O22=23,VLOOKUP(N22,Figdata!$B$16:$O$64,14),IF(O22=22,VLOOKUP(N22,Figdata!$B$16:$P$64,15),IF(O22=21,VLOOKUP(N22,Figdata!$B$16:$Q$64,16),IF(O22=20,VLOOKUP(N22,Figdata!$B$16:$R$64,17),IF(O22=19,VLOOKUP(N22,Figdata!$B$16:$S$64,18),IF(O22=18,VLOOKUP(N22,Figdata!$B$16:$T$64,19),"")))))) ->  | T22: =IF(O22=17,VLOOKUP(N22,Figdata!$B$16:$U$64,20),IF(O22=16,VLOOKUP(N22,Figdata!$B$16:$V$64,21),IF(O22=15,VLOOKUP(N22,Figdata!$B$16:$W$64,22),IF(O22=14,VLOOKUP(N22,Figdata!$B$16:$X$64,23),IF(O22=13,VLOOKUP(N22,Figdata!$B$16:$Y$64,24),IF(O22=12,VLOOKUP(N22,Figdata!$B$16:$Z$64,25),"")))))) ->  | U22: =IF(O22=11,VLOOKUP(N22,Figdata!$B$16:$AA$64,26),IF(O22=10,VLOOKUP(N22,Figdata!$B$16:$AB$64,27),IF(O22=9,VLOOKUP(N22,Figdata!$B$16:$AC$64,28),IF(O22=8,VLOOKUP(N22,Figdata!$B$16:$AD$64,29),IF(O22=7,VLOOKUP(N22,Figdata!$B$16:$AE$64,30),IF(O22=6,VLOOKUP(N22,Figdata!$B$16:$AF$64,31),IF(O22=5,VLOOKUP(N22,Figdata!$B$16:$AG$64,32),""))))))) ->  | V22: =IF(O22=4,VLOOKUP(N22,Figdata!$B$16:$AH$64,33),IF(O22=3,VLOOKUP(N22,Figdata!$B$16:$AI$64,34),IF(O22=2,VLOOKUP(N22,Figdata!$B$16:$AJ$64,35),IF(O22=1,VLOOKUP(N22,Figdata!$B$16:$AK$64,36),"")))) ->  | W22: 0 | Z22: ='PVR BH'!C34 -> 0 | AA22: =ROUND('PVR BH'!L34,0) -> 0 | AB22: 9 | AC22: =IF(AA22=35,VLOOKUP(Z22,Figdata!$B$15:$C$63,2),IF(AA22=34,VLOOKUP(Z22,Figdata!$B$15:$D$63,3),IF(AA22=33,VLOOKUP(Z22,Figdata!$B$15:$E$63,4),IF(AA22=32,VLOOKUP(Z22,Figdata!$B$15:$F$63,5),IF(AA22=31,VLOOKUP(Z22,Figdata!$B$15:$G$63,6),IF(AA22=30,VLOOKUP(Z22,Figdata!$B$15:$H$63,7),"")))))) ->  | AD22: =IF(AA22=29,VLOOKUP(Z22,Figdata!$B$16:$I$64,8),IF(AA22=28,VLOOKUP(Z22,Figdata!$B$16:$J$64,9),IF(AA22=27,VLOOKUP(Z22,Figdata!$B$16:$K$64,10),IF(AA22=26,VLOOKUP(Z22,Figdata!$B$16:$L$64,11),IF(AA22=25,VLOOKUP(Z22,Figdata!$B$16:$M$64,12),IF(AA22=24,VLOOKUP(Z22,Figdata!$B$16:$N$64,13),"")))))) ->  | AE22: =IF(AA22=23,VLOOKUP(Z22,Figdata!$B$16:$O$64,14),IF(AA22=22,VLOOKUP(Z22,Figdata!$B$16:$P$64,15),IF(AA22=21,VLOOKUP(Z22,Figdata!$B$16:$Q$64,16),IF(AA22=20,VLOOKUP(Z22,Figdata!$B$16:$R$64,17),IF(AA22=19,VLOOKUP(Z22,Figdata!$B$16:$S$64,18),IF(AA22=18,VLOOKUP(Z22,Figdata!$B$16:$T$64,19),"")))))) ->  | AF22: =IF(AA22=17,VLOOKUP(Z22,Figdata!$B$16:$U$64,20),IF(AA22=16,VLOOKUP(Z22,Figdata!$B$16:$V$64,21),IF(AA22=15,VLOOKUP(Z22,Figdata!$B$16:$W$64,22),IF(AA22=14,VLOOKUP(Z22,Figdata!$B$16:$X$64,23),IF(AA22=13,VLOOKUP(Z22,Figdata!$B$16:$Y$64,24),IF(AA22=12,VLOOKUP(Z22,Figdata!$B$16:$Z$64,25),"")))))) ->  | AG22: =IF(AA22=11,VLOOKUP(Z22,Figdata!$B$16:$AA$64,26),IF(AA22=10,VLOOKUP(Z22,Figdata!$B$16:$AB$64,27),IF(AA22=9,VLOOKUP(Z22,Figdata!$B$16:$AC$64,28),IF(AA22=8,VLOOKUP(Z22,Figdata!$B$16:$AD$64,29),IF(AA22=7,VLOOKUP(Z22,Figdata!$B$16:$AE$64,30),IF(AA22=6,VLOOKUP(Z22,Figdata!$B$16:$AF$64,31),IF(AA22=5,VLOOKUP(Z22,Figdata!$B$16:$AG$64,32),""))))))) ->  | AH22: =IF(AA22=4,VLOOKUP(Z22,Figdata!$B$16:$AH$64,33),IF(AA22=3,VLOOKUP(Z22,Figdata!$B$16:$AI$64,34),IF(AA22=2,VLOOKUP(Z22,Figdata!$B$16:$AJ$64,35),IF(AA22=1,VLOOKUP(Z22,Figdata!$B$16:$AK$64,36),"")))) ->  | AI22: 0
B23: 1.95 | C23: 2 | D23: =AVERAGE('PVR BH'!E34:F34) -> 5.5 | E23: =AVERAGE('PVR BH'!E34,D23) -> 7.25 | F23: =AVERAGE('PVR BH'!F34,D23) -> 3.75 | H23: =(0.217*'PVR BH'!J34)-2.9 -> -2.9 | I23: =(0.294*'PVR BH'!J34)-2.9 -> -2.9 | J23: =('PVR BH'!J34*0.325)-1.75 -> -1.75 | L23: =100-'PVR BH'!I34 -> 100 | N23: ='PVR BH'!C34 -> 0 | O23: =ROUND('PVR BH'!L35,0) -> 0 | P23: 10 | Q23: =IF(O23=35,VLOOKUP(N23,Figdata!$B$15:$C$63,2),IF(O23=34,VLOOKUP(N23,Figdata!$B$15:$D$63,3),IF(O23=33,VLOOKUP(N23,Figdata!$B$15:$E$63,4),IF(O23=32,VLOOKUP(N23,Figdata!$B$15:$F$63,5),IF(O23=31,VLOOKUP(N23,Figdata!$B$15:$G$63,6),IF(O23=30,VLOOKUP(N23,Figdata!$B$15:$H$63,7),"")))))) ->  | R23: =IF(O23=29,VLOOKUP(N23,Figdata!$B$16:$I$64,8),IF(O23=28,VLOOKUP(N23,Figdata!$B$16:$J$64,9),IF(O23=27,VLOOKUP(N23,Figdata!$B$16:$K$64,10),IF(O23=26,VLOOKUP(N23,Figdata!$B$16:$L$64,11),IF(O23=25,VLOOKUP(N23,Figdata!$B$16:$M$64,12),IF(O23=24,VLOOKUP(N23,Figdata!$B$16:$N$64,13),"")))))) ->  | S23: =IF(O23=23,VLOOKUP(N23,Figdata!$B$16:$O$64,14),IF(O23=22,VLOOKUP(N23,Figdata!$B$16:$P$64,15),IF(O23=21,VLOOKUP(N23,Figdata!$B$16:$Q$64,16),IF(O23=20,VLOOKUP(N23,Figdata!$B$16:$R$64,17),IF(O23=19,VLOOKUP(N23,Figdata!$B$16:$S$64,18),IF(O23=18,VLOOKUP(N23,Figdata!$B$16:$T$64,19),"")))))) ->  | T23: =IF(O23=17,VLOOKUP(N23,Figdata!$B$16:$U$64,20),IF(O23=16,VLOOKUP(N23,Figdata!$B$16:$V$64,21),IF(O23=15,VLOOKUP(N23,Figdata!$B$16:$W$64,22),IF(O23=14,VLOOKUP(N23,Figdata!$B$16:$X$64,23),IF(O23=13,VLOOKUP(N23,Figdata!$B$16:$Y$64,24),IF(O23=12,VLOOKUP(N23,Figdata!$B$16:$Z$64,25),"")))))) ->  | U23: =IF(O23=11,VLOOKUP(N23,Figdata!$B$16:$AA$64,26),IF(O23=10,VLOOKUP(N23,Figdata!$B$16:$AB$64,27),IF(O23=9,VLOOKUP(N23,Figdata!$B$16:$AC$64,28),IF(O23=8,VLOOKUP(N23,Figdata!$B$16:$AD$64,29),IF(O23=7,VLOOKUP(N23,Figdata!$B$16:$AE$64,30),IF(O23=6,VLOOKUP(N23,Figdata!$B$16:$AF$64,31),IF(O23=5,VLOOKUP(N23,Figdata!$B$16:$AG$64,32),""))))))) ->  | V23: =IF(O23=4,VLOOKUP(N23,Figdata!$B$16:$AH$64,33),IF(O23=3,VLOOKUP(N23,Figdata!$B$16:$AI$64,34),IF(O23=2,VLOOKUP(N23,Figdata!$B$16:$AJ$64,35),IF(O23=1,VLOOKUP(N23,Figdata!$B$16:$AK$64,36),"")))) ->  | W23: 0 | Z23: ='PVR BH'!C35 -> 0 | AA23: =ROUND('PVR BH'!L35,0) -> 0 | AB23: 10 | AC23: =IF(AA23=35,VLOOKUP(Z23,Figdata!$B$15:$C$63,2),IF(AA23=34,VLOOKUP(Z23,Figdata!$B$15:$D$63,3),IF(AA23=33,VLOOKUP(Z23,Figdata!$B$15:$E$63,4),IF(AA23=32,VLOOKUP(Z23,Figdata!$B$15:$F$63,5),IF(AA23=31,VLOOKUP(Z23,Figdata!$B$15:$G$63,6),IF(AA23=30,VLOOKUP(Z23,Figdata!$B$15:$H$63,7),"")))))) ->  | AD23: =IF(AA23=29,VLOOKUP(Z23,Figdata!$B$16:$I$64,8),IF(AA23=28,VLOOKUP(Z23,Figdata!$B$16:$J$64,9),IF(AA23=27,VLOOKUP(Z23,Figdata!$B$16:$K$64,10),IF(AA23=26,VLOOKUP(Z23,Figdata!$B$16:$L$64,11),IF(AA23=25,VLOOKUP(Z23,Figdata!$B$16:$M$64,12),IF(AA23=24,VLOOKUP(Z23,Figdata!$B$16:$N$64,13),"")))))) ->  | AE23: =IF(AA23=23,VLOOKUP(Z23,Figdata!$B$16:$O$64,14),IF(AA23=22,VLOOKUP(Z23,Figdata!$B$16:$P$64,15),IF(AA23=21,VLOOKUP(Z23,Figdata!$B$16:$Q$64,16),IF(AA23=20,VLOOKUP(Z23,Figdata!$B$16:$R$64,17),IF(AA23=19,VLOOKUP(Z23,Figdata!$B$16:$S$64,18),IF(AA23=18,VLOOKUP(Z23,Figdata!$B$16:$T$64,19),"")))))) ->  | AF23: =IF(AA23=17,VLOOKUP(Z23,Figdata!$B$16:$U$64,20),IF(AA23=16,VLOOKUP(Z23,Figdata!$B$16:$V$64,21),IF(AA23=15,VLOOKUP(Z23,Figdata!$B$16:$W$64,22),IF(AA23=14,VLOOKUP(Z23,Figdata!$B$16:$X$64,23),IF(AA23=13,VLOOKUP(Z23,Figdata!$B$16:$Y$64,24),IF(AA23=12,VLOOKUP(Z23,Figdata!$B$16:$Z$64,25),"")))))) ->  | AG23: =IF(AA23=11,VLOOKUP(Z23,Figdata!$B$16:$AA$64,26),IF(AA23=10,VLOOKUP(Z23,Figdata!$B$16:$AB$64,27),IF(AA23=9,VLOOKUP(Z23,Figdata!$B$16:$AC$64,28),IF(AA23=8,VLOOKUP(Z23,Figdata!$B$16:$AD$64,29),IF(AA23=7,VLOOKUP(Z23,Figdata!$B$16:$AE$64,30),IF(AA23=6,VLOOKUP(Z23,Figdata!$B$16:$AF$64,31),IF(AA23=5,VLOOKUP(Z23,Figdata!$B$16:$AG$64,32),""))))))) ->  | AH23: =IF(AA23=4,VLOOKUP(Z23,Figdata!$B$16:$AH$64,33),IF(AA23=3,VLOOKUP(Z23,Figdata!$B$16:$AI$64,34),IF(AA23=2,VLOOKUP(Z23,Figdata!$B$16:$AJ$64,35),IF(AA23=1,VLOOKUP(Z23,Figdata!$B$16:$AK$64,36),"")))) ->  | AI23: 0
B24: 2 | C24: 2.05 | D24: =AVERAGE('PVR BH'!E35:F35) -> 5.5 | E24: =AVERAGE('PVR BH'!E35,D24) -> 7.25 | F24: =AVERAGE('PVR BH'!F35,D24) -> 3.75 | H24: =(0.217*'PVR BH'!J35)-2.9 -> -2.9 | I24: =(0.294*'PVR BH'!J35)-2.9 -> -2.9 | J24: =('PVR BH'!J35*0.325)-1.75 -> -1.75 | L24: =100-'PVR BH'!I35 -> 100
